Workbook

Sheet Meilleure_Offre
B2: Choisir le plan de financement présentant le moindre coût du crédit corrigé et/ou la valeur du patrimoine total le plus élevé au terme de la durée du prêt le plus long tous prêts confondus des deux projets
B4: Renseigner toutes les cellules matérialisées en mauve puis cliquer sur le bouton ''CALCULS'' | L4: Comparaisons détaillées - Coût Crédit Corrigé - Valeur patrimoine total - Contrôle cohérence | V4: Banque "A" | Z4: Apport | AA4: =I8 -> 20000 | AC4: Banque "B" | AF4: Apport | AG4: =J8 -> 0 | AI4: Pas d'investissement physique - Seulement investissement financier | AR4: Manques à gagner en intérêts Banque "A" | AZ4: Manques à gagner en intérêts Banque "B" | BH4: Epargne résiduelle Banque "A" | BP4: Epargne résiduelle Banque "B"
B5: Plans de financements | L5: Différentes hypothèses à comparer | P5: Pas d'investissement physique = Investissement financier seulement | Q5: =E6 -> BPCE | R5: =J6 -> LCL | S5: Commentaires | V5: Rang | W5: Échéances | X5: Intérêts + Assurances | Y5: TAEG | Z5: Coût crédit simple | AA5: Coût crédit corrigé | AC5: Échéances | AD5: Intérêts + Assurances | AE5: TAEG | AF5: Coût crédit simple | AG5: Coût crédit corrigé | AI5: Placement capacité épargne/remboursement | AN5: Placement apport personnel maxi | AR5: Manque à gagner en intérêts sur échéances payées | AV5: Manque gagner en intérêts sur apport | AZ5: Manque à gagner en intérêts sur échéances payées | BD5: Manque gagner en intérêts sur apport | BH5: Placement disponible sur échéances | BL5: Placement disponible sur apport | BP5: Placement disponible sur échéances | BT5: Placement disponible sur apport
B6: Besoins = Emplois = Dépenses | E6: BPCE | F6: LCL | G6: Ressources = Recettes | I6: =E6 -> BPCE | J6: =F6 -> LCL | L6: Ce que vous avez réellement payé | M6: Intérêts plus assurances - obligatoires et facultatives - réellement payés | P6: 0 | Q6: =X6 -> 22682.11 | R6: =AD6 -> 30636.76 | S6: Critère non pertinent | W6: =W404 -> 306682.11 | X6: =W6-I22 -> 22682.11 | Y6: =((1+Y404)^(12))-1 -> 0.02137814657 | Z6: =X6+E12+E13+E14+E15+E16 -> 34682.11 | AA6: =Z6+AT404+AW404 -> 59379.45762 | AC6: =AC404 -> 340636.76 | AD6: =AC6-J22 -> 30636.76 | AE6: =((1+AE404)^(12))-1 -> 0.02097902511 | AF6: =AD6+F12+F13+F14+F15+F16 -> 48636.76 | AG6: =AF6+BB404+BE404 -> 70331.64222
M7: Frais payés | P7: 0 | Q7: =E12+E13+E14+E15+E16 -> 12000 | R7: =F12+F13+F14+F15+F16 -> 18000 | U7: 0 | V7: 0 | Y7: =I22-(E12+E13+E14+E15+E16) -> 272000 | AE7: =J22-(F12+F13+F14+F15+F16) -> 292000 | AI7: 0 | AN7: =$E$23 -> 20000 | AV7: =$I$8 -> 20000 | BD7: =$J$8 -> 0 | BL7: =$E$23-$I$8 -> 0 | BT7: =$E$23-$J$8 -> 20000
B8: Coût Achat Terrain ou Logement | F8: =E8 -> 0 | G8: Apport personnel | I8: 20000 | J8: 0 | M8: => Coût Crédit Simple | P8: =SUM(P6:P7) -> 0 | Q8: =SUM(Q6:Q7) -> 34682.11 | R8: =SUM(R6:R7) -> 48636.76 | U8: 1 | V8: 1 | W8: =C32 -> 1191.83 | Y8: =-W8 -> -1191.83 | AC8: =I32 -> 1023 | AE8: =-AC8 -> -1023 | AI8: 1 | AJ8: =IF(AI8>$K$21,0,IF(AC8>W8,AC8,W8)) -> 1191.83 | AK8: =IF(AI8>$K$21,0,AJ8) -> 1191.83 | AL8: =AK8*$E$20/12 -> 0.4965958333 | AN8: =IF(AI8>$K$21,0,AN7) -> 20000 | AO8: =IF(AI8>$K$21,0,AN7*$E$20/12) -> 8.333333333 | AR8: =W8 -> 1191.83 | AS8: =IF(AI8>$K$21,0,AR8) -> 1191.83 | AT8: =AS8*$E$20/12 -> 0.4965958333 | AV8: =IF(AI8>$K$21,0,AV7) -> 20000 | AW8: =IF(AI8>$K$21,0,AV7*$E$20/12) -> 8.333333333 | AZ8: =AC8 -> 1023 | BA8: =AZ8 -> 1023 | BB8: =BA8*$E$20/12 -> 0.42625 | BD8: =IF(AI8>$K$21,0,BD7) -> 0 | BE8: =IF(AI8>$K$21,0,BD7*$E$20/12) -> 0 | BH8: =AJ8-W8 -> 0 | BI8: =BH8 -> 0 | BJ8: =BI8*$E$20/12 -> 0 | BL8: =IF(AI8>$K$21,0,BL7) -> 0 | BM8: =IF(AI8>$K$21,0,BL7*$E$20/12) -> 0 | BP8: =AJ8-AC8 -> 168.83 | BQ8: =BP8 -> 168.83 | BR8: =BQ8*$E$20/12 -> 0.07034583333 | BT8: =IF(AI8>$K$21,0,BT7) -> 20000 | BU8: =IF(AI8>$K$21,0,BT7*$E$20/12) -> 8.333333333
B9: Coût Travaux ou Construction | E9: 292000 | F9: =E9 -> 292000 | G9: Prêt Relais | I9: 92000 | J9: 95000 | L9: C'est le coût réel dans chaque cas de figure | M9: Manque à gagner en intérêts sur apport investi sur durée la plus longue | P9: 0 | Q9: =AW404 -> 2097.911544 | R9: =BE404 -> 0 | S9: Critère à privilégier au même titre que la Valeur Patimoine | U9: 2 | V9: 2 | W9: 1191.83 | Y9: -1191.83 | AC9: 1023 | AE9: -1023 | AI9: 2 | AJ9: =IF(AI9>$K$21,0,IF(AC9>W9,AC9,W9)) -> 1191.83 | AK9: =IF(AI9>$K$21,0,AJ9+AK8) -> 2383.66 | AL9: 0.9931916667 | AN9: =IF(AI9>$K$21,0,AN8) -> 20000 | AO9: =IF(AI9>$K$21,0,AN8*$E$20/12) -> 8.333333333 | AR9: 1191.83 | AS9: =IF(AI9>$K$21,0,AS8+AR9) -> 2383.66 | AT9: 0.9931916667 | AV9: =IF(AI9>$K$21,0,AV8) -> 20000 | AW9: =IF(AI9>$K$21,0,AV8*$E$20/12) -> 8.333333333 | AZ9: 1023 | BA9: =IF(AI9>$K$21,0,BA8+AZ9) -> 2046 | BB9: 0.8525 | BD9: =IF(AI9>$K$21,0,BD8) -> 0 | BE9: =IF(AI9>$K$21,0,BD8*$E$20/12) -> 0 | BH9: 0 | BI9: =IF(V9>$K$21,0,BI8+BH9) -> 0 | BJ9: 0 | BL9: =IF(AI9>$K$21,0,BL8) -> 0 | BM9: =IF(AI9>$K$21,0,BL8*$E$20/12) -> 0 | BP9: 168.83 | BQ9: =IF(AI9>$K$21,0,BQ8+BP9) -> 337.66 | BR9: 0.1406916667 | BT9: =IF(AI9>$K$21,0,BT8) -> 20000 | BU9: =IF(AI9>$K$21,0,BT8*$E$20/12) -> 8.333333333
B10: Frais négociation (Agence ou notaire) | F10: =E10 -> 0 | G10: Prêt N° 1 | I10: 192000 | J10: 215000 | M10: Manque à gagner en intérêts sur échéances payées sur durée la plus longue | P10: 0 | Q10: =AT404 -> 22599.43607 | R10: =BB404 -> 21694.88222 | U10: 3 | V10: 3 | W10: 1191.83 | Y10: -1191.83 | AC10: 1023 | AE10: -1023 | AI10: 3 | AJ10: 1191.83 | AK10: =IF(AI10>$K$21,0,AJ10+AK9) -> 3575.49 | AL10: 1.4897875 | AN10: 20000 | AO10: 8.333333333 | AR10: 1191.83 | AS10: =IF(AI10>$K$21,0,AS9+AR10) -> 3575.49 | AT10: 1.4897875 | AV10: 20000 | AW10: 8.333333333 | AZ10: 1023 | BA10: =IF(AI10>$K$21,0,BA9+AZ10) -> 3069 | BB10: 1.27875 | BD10: 0 | BE10: 0 | BH10: 0 | BI10: =IF(V10>$K$21,0,BI9+BH10) -> 0 | BJ10: 0 | BL10: 0 | BM10: 0 | BP10: 168.83 | BQ10: =IF(AI10>$K$21,0,BQ9+BP10) -> 506.49 | BR10: 0.2110375 | BT10: 20000 | BU10: 8.333333333
B11: Frais acte acquisition notarié | F11: =E11 -> 0 | G11: Prêt N° 2 | M11: => Coût Crédit Corrigé | P11: =SUM(P9:P10) -> 0 | Q11: =Q8+Q9+Q10 -> 59379.45762 | R11: =R8+R9+R10 -> 70331.64222 | U11: 4 | V11: 4 | W11: 1191.83 | Y11: -1191.83 | AC11: 1023 | AE11: -1023 | AI11: 4 | AJ11: 1191.83 | AK11: 4767.32 | AL11: 1.986383333 | AN11: 20000 | AO11: 8.333333333 | AR11: 1191.83 | AS11: 4767.32 | AT11: 1.986383333 | AV11: 20000 | AW11: 8.333333333 | AZ11: 1023 | BA11: 4092 | BB11: 1.705 | BD11: 0 | BE11: 0 | BH11: 0 | BI11: 0 | BJ11: 0 | BL11: 0 | BM11: 0 | BP11: 168.83 | BQ11: 675.32 | BR11: 0.2813833333 | BT11: 20000 | BU11: 8.333333333
B12: Frais courtage | E12: 2000 | F12: 4000 | G12: Prêt N° 3 | L12: Valeur du parimoine total au terme de la durée du prêt initial le plus long | M12: Valeur acquise par épargne résuiduelle après apport au terme durée la plus longue | P12: =AN404 -> 22097.91154 | Q12: =BL404 -> 0 | R12: =BT404 -> 22097.91154 | S12: Critère à prévilégier au même titre que le Coût du Crédit Corrigé | U12: 5 | V12: 5 | W12: 1191.83 | Y12: -1191.83 | AC12: 1023 | AE12: -1023 | AI12: 5 | AJ12: 1191.83 | AK12: 5959.15 | AL12: 2.482979167 | AN12: 20000 | AO12: 8.333333333 | AR12: 1191.83 | AS12: 5959.15 | AT12: 2.482979167 | AV12: 20000 | AW12: 8.333333333 | AZ12: 1023 | BA12: 5115 | BB12: 2.13125 | BD12: 0 | BE12: 0 | BH12: 0 | BI12: 0 | BJ12: 0 | BL12: 0 | BM12: 0 | BP12: 168.83 | BQ12: 844.15 | BR12: 0.3517291667 | BT12: 20000 | BU12: 8.333333333
B13: Frais dossier | E13: 2000 | F13: 3000 | G13: Prêt N° 4 | M13: Valeur acquise par résiduel sur capacité endettement au terme durée la plus longue | P13: =AK404 -> 394504.8856 | Q13: =BI404 -> 65223.33949 | R13: =BQ404 -> 32173.24334 | U13: 6 | V13: 6 | W13: 1191.83 | Y13: -1191.83 | AC13: 1023 | AE13: -1023 | AI13: 6 | AJ13: 1191.83 | AK13: 7150.98 | AL13: 2.979575 | AN13: 20000 | AO13: 8.333333333 | AR13: 1191.83 | AS13: 7150.98 | AT13: 2.979575 | AV13: 20000 | AW13: 8.333333333 | AZ13: 1023 | BA13: 6138 | BB13: 2.5575 | BD13: 0 | BE13: 0 | BH13: 0 | BI13: 0 | BJ13: 0 | BL13: 0 | BM13: 0 | BP13: 168.83 | BQ13: 1012.98 | BR13: 0.422075 | BT13: 20000 | BU13: 8.333333333
B14: Frais garanties | E14: 5000 | F14: 8000 | G14: Prêt N° 5 | M14: Valeur patrimoine financier | P14: =SUM(P12:P13) -> 416602.7971 | Q14: =SUM(Q12:Q13) -> 65223.33949 | R14: 54271.15488 | U14: 7 | V14: 7 | W14: 1191.83 | Y14: -1191.83 | AC14: 1023 | AE14: -1023 | AI14: 7 | AJ14: 1191.83 | AK14: 8342.81 | AL14: 3.476170833 | AN14: 20000 | AO14: 8.333333333 | AR14: 1191.83 | AS14: 8342.81 | AT14: 3.476170833 | AV14: 20000 | AW14: 8.333333333 | AZ14: 1023 | BA14: 7161 | BB14: 2.98375 | BD14: 0 | BE14: 0 | BH14: 0 | BI14: 0 | BJ14: 0 | BL14: 0 | BM14: 0 | BP14: 168.83 | BQ14: 1181.81 | BR14: 0.4924208333 | BT14: 20000 | BU14: 8.333333333
B15: Parts sociales | E15: 3000 | F15: 3000 | G15: Prêt N° 6 | M15: Valeur patrimoine physique sans plus value ni moins value | P15: 0 | Q15: =F8+F9+F10+F11 -> 292000 | R15: =Q15 -> 292000 | U15: 8 | V15: 8 | W15: 1191.83 | Y15: -1191.83 | AC15: 1023 | AE15: -1023 | AI15: 8 | AJ15: 1191.83 | AK15: 9534.64 | AL15: 3.972766667 | AN15: 20000 | AO15: 8.333333333 | AR15: 1191.83 | AS15: 9534.64 | AT15: 3.972766667 | AV15: 20000 | AW15: 8.333333333 | AZ15: 1023 | BA15: 8184 | BB15: 3.41 | BD15: 0 | BE15: 0 | BH15: 0 | BI15: 0 | BJ15: 0 | BL15: 0 | BM15: 0 | BP15: 168.83 | BQ15: 1350.64 | BR15: 0.5627666667 | BT15: 20000 | BU15: 8.333333333
B16: Autres frais initiaux liés aux prêts | G16: Prêt N° 7 | M16: => Valeur patrimoine total | P16: =SUM(P14:P15) -> 416602.7971 | Q16: =SUM(Q14:Q15) -> 357223.3395 | R16: =SUM(R14:R15) -> 346271.1549 | U16: 9 | V16: 9 | W16: 1191.83 | Y16: -1191.83 | AC16: 1023 | AE16: -1023 | AI16: 9 | AJ16: 1191.83 | AK16: 10726.47 | AL16: 4.4693625 | AN16: 20000 | AO16: 8.333333333 | AR16: 1191.83 | AS16: 10726.47 | AT16: 4.4693625 | AV16: 20000 | AW16: 8.333333333 | AZ16: 1023 | BA16: 9207 | BB16: 3.83625 | BD16: 0 | BE16: 0 | BH16: 0 | BI16: 0 | BJ16: 0 | BL16: 0 | BM16: 0 | BP16: 168.83 | BQ16: 1519.47 | BR16: 0.6331125 | BT16: 20000 | BU16: 8.333333333
B17: =IF(AND($E$17<>$I$17,$F$17<>$J$17),"Plans de financements ''A'' et ''B'' non équilibrés",IF($F$17<>$J$17,"Plan de financement ''B'' non équilibré",IF($E$17<>$I$17,"Plan de financement ''A'' non équilibré","Total ''Besoins-Emplois-Dépenses''"))) -> Total ''Besoins-Emplois-Dépenses'' | E17: =SUM(E8:E16) -> 304000 | F17: =SUM(F8:F16) -> 310000 | G17: =IF(AND(E17<>I17,F17<>J17),"Plans de financements ''A'' et ''B'' non équilibrés",IF(E17<>I17,"Plan de financement ''A'' non équilibré",IF(F17<>J17,"Plan de financement ''B'' non équilibré","Total ''Ressources-Recettes''"))) -> Total ''Ressources-Recettes'' | I17: =SUM(I8:I16) -> 304000 | J17: =SUM(J8:J16) -> 310000 | L17: Coût Crédit Corrigé au terme de la durée du prêt la plus longue | P17: =P11 -> 0 | Q17: =Q11 -> 59379.45762 | R17: =R11 -> 70331.64222 | S17: Contrôle de cohérence | U17: 10 | V17: 10 | W17: 1191.83 | Y17: -1191.83 | AC17: 1023 | AE17: -1023 | AI17: 10 | AJ17: 1191.83 | AK17: 11918.3 | AL17: 4.965958333 | AN17: 20000 | AO17: 8.333333333 | AR17: 1191.83 | AS17: 11918.3 | AT17: 4.965958333 | AV17: 20000 | AW17: 8.333333333 | AZ17: 1023 | BA17: 10230 | BB17: 4.2625 | BD17: 0 | BE17: 0 | BH17: 0 | BI17: 0 | BJ17: 0 | BL17: 0 | BM17: 0 | BP17: 168.83 | BQ17: 1688.3 | BR17: 0.7034583333 | BT17: 20000 | BU17: 8.333333333
B18: Différence | E18: =IF($E$17>$I$17,$E$17-$I$17,$E$17-$I$17) -> 0 | F18: =IF($F$17>$J$17,$F$17-$J$17,$F$17-$J$17) -> 0 | G18: Différence | I18: =IF($E$17>$I$17,$I$17-$E$17,$I$17-$E$17) -> 0 | J18: =IF($F$17>$J$17,$J$17-$F$17,$J$17-$F$17) -> 0 | L18: Valeur patrimoine total au terme de la durée du prêt la plus longue | P18: =P16 -> 416602.7971 | Q18: =Q16 -> 357223.3395 | R18: =R16 -> 346271.1549 | U18: 11 | V18: 11 | W18: 1191.83 | Y18: -1191.83 | AC18: 1023 | AE18: -1023 | AI18: 11 | AJ18: 1191.83 | AK18: 13110.13 | AL18: 5.462554167 | AN18: 20000 | AO18: 8.333333333 | AR18: 1191.83 | AS18: 13110.13 | AT18: 5.462554167 | AV18: 20000 | AW18: 8.333333333 | AZ18: 1023 | BA18: 11253 | BB18: 4.68875 | BD18: 0 | BE18: 0 | BH18: 0 | BI18: 0 | BJ18: 0 | BL18: 0 | BM18: 0 | BP18: 168.83 | BQ18: 1857.13 | BR18: 0.7738041667 | BT18: 20000 | BU18: 8.333333333
L19: Contrôle de cohérence | P19: =SUM(P17:P18) -> 416602.7971 | Q19: =SUM(Q17:Q18) -> 416602.7971 | R19: =SUM(R17:R18) -> 416602.7971 | U19: 12 | V19: 12 | W19: 1191.83 | Y19: -1191.83 | AC19: 1023 | AE19: -1023 | AI19: 12 | AJ19: 1191.83 | AK19: =AK18+AJ19 -> 14301.96 | AL19: 5.95915 | AM19: =SUM(AL8:AL19) -> 38.734475 | AN19: =IF(AI19>$K$21,0,AN18+AP19) -> 20100 | AO19: 8.333333333 | AP19: =SUM(AO8:AO19) -> 100 | AR19: 1191.83 | AS19: =IF(AI19>$K$21,0,AS18+AR19) -> 14301.96 | AT19: 5.95915 | AU19: =SUM(AT8:AT19) -> 38.734475 | AV19: =IF(AI19>$K$21,0,AV18+AX19) -> 20100 | AW19: 8.333333333 | AX19: =SUM(AW8:AW19) -> 100 | AZ19: 1023 | BA19: 12276 | BB19: 5.115 | BC19: =SUM(BB8:BB19) -> 33.2475 | BD19: =IF(AI19>$K$21,0,BD18+BF19) -> 0 | BE19: 0 | BF19: =SUM(BE8:BE19) -> 0 | BH19: 0 | BI19: 0 | BJ19: 0 | BK19: =SUM(BJ8:BJ19) -> 0 | BL19: =IF(AI19>$K$21,0,BL18+BN19) -> 0 | BM19: 0 | BN19: =SUM(BM8:BM19) -> 0 | BP19: 168.83 | BQ19: 2025.96 | BR19: 0.84415 | BS19: =SUM(BR8:BR19) -> 5.486975 | BT19: =IF(AI19>$K$21,0,BT18+BV19) -> 20100 | BU19: 8.333333333 | BV19: =SUM(BU8:BU19) -> 100
B20: Taux de rémunération épargne | E20: 0.005 | F20: Durée du prêt le plus long - éventuel différé externe compris - en mois | I20: =E6 -> BPCE | J20: =F6 -> LCL | L20: Meilleure offre de prêt | P20: 0 | Q20: =IF(AND(E20=P22,E20<>P21),Q5,IF(AND(P20<>1,Q18=S20),Q5,"")) -> BPCE | R20: =IF(AND(E20=P22,E20<>P21),R5,IF(AND(P20<>1,R18=S20),R5,"")) ->  | S20: =MAX(Q18,R18) -> 357223.3395 | U20: 13 | V20: 13 | W20: 1191.83 | Y20: -1191.83 | AC20: 1023 | AE20: -1023 | AI20: 13 | AJ20: 1191.83 | AK20: =AK19+AJ20+AM19 -> 15532.52447 | AL20: 6.471885198 | AN20: 20100 | AO20: 8.375 | AR20: 1191.83 | AS20: =IF(AI20>$K$21,0,AS19+AR20+AU19) -> 15532.52447 | AT20: 6.471885198 | AV20: 20100 | AW20: 8.375 | AZ20: 1023 | BA20: =IF(AI20>$K$21,0,BA19+AZ20+BC19) -> 13332.2475 | BB20: 5.555103125 | BD20: 0 | BE20: 0 | BH20: 0 | BI20: =IF(AI20>$K$21,0,BI19+BH20+BK19) -> 0 | BJ20: 0 | BL20: 0 | BM20: 0 | BP20: 168.83 | BQ20: =IF(AI20>$K$21,0,BQ19+BP20+BS19) -> 2200.276975 | BR20: 0.9167820729 | BT20: 20100 | BU20: 8.375
B21: Capacité de remboursement = Capacité d'épargne | E21: =MAX(C428,I428) -> 1345.16 | I21: 180 | J21: 240 | K21: =MAX(I21,J21) -> 240 | L21: Taux Effectif Global Financier (T.A.E.G.F.) | P21: 0.005 | Q21: =Y6 -> 0.02137814657 | R21: =AE6 -> 0.02097902511 | S21: =MIN(Q21,R21) -> 0.02097902511 | U21: 14 | V21: 14 | W21: 1191.83 | Y21: -1191.83 | AC21: 1023 | AE21: -1023 | AI21: 14 | AJ21: 1191.83 | AK21: 16724.35448 | AL21: 6.968481031 | AN21: 20100 | AO21: 8.375 | AR21: 1191.83 | AS21: =IF(AI21>$K$21,0,AS20+AR21) -> 16724.35448 | AT21: 6.968481031 | AV21: 20100 | AW21: 8.375 | AZ21: 1023 | BA21: 14355.2475 | BB21: 5.981353125 | BD21: 0 | BE21: 0 | BH21: 0 | BI21: 0 | BJ21: 0 | BL21: 0 | BM21: 0 | BP21: 168.83 | BQ21: 2369.106975 | BR21: 0.9871279062 | BT21: 20100 | BU21: 8.375
F22: Total des crédits solliicités | I22: =I17-I8 -> 284000 | J22: =J17-J8 -> 310000 | L22: =IF(P22<0,"Impossible calculer taux pivot rémunération","Taux Pivot de Rémunération de l'Epargne") -> Taux Pivot de Rémunération de l'Epargne | P22: 0.01999720468 | Q22: =Q17-R17 -> -10952.1846 | U22: 15 | V22: 15 | W22: 1191.83 | Y22: -1191.83 | AC22: 1023 | AE22: -1023 | AI22: 15 | AJ22: 1191.83 | AK22: 17916.18448 | AL22: 7.465076865 | AN22: 20100 | AO22: 8.375 | AR22: 1191.83 | AS22: 17916.18448 | AT22: 7.465076865 | AV22: 20100 | AW22: 8.375 | AZ22: 1023 | BA22: 15378.2475 | BB22: 6.407603125 | BD22: 0 | BE22: 0 | BH22: 0 | BI22: 0 | BJ22: 0 | BL22: 0 | BM22: 0 | BP22: 168.83 | BQ22: 2537.936975 | BR22: 1.05747374 | BT22: 20100 | BU22: 8.375
B23: Apport personnel maximum | E23: =MAX(I8,J8) -> 20000 | F23: Total frais inclus dans TAEGF | I23: =E12+E13+E14+E15+E16 -> 12000 | J23: =F12+F13+F14+F15+F16 -> 18000 | L23: =IF(AND(E20=P22,E20<>P21),"Au taux pivôt de rémunération de l'épargne les deux offres sont financièrement équivalentes - Ignorez le T.A.E.G.F.",IF(P20=1,"Au taux pivôt de rémunération de l'épargne les ''Coûts du Crédit Corrigé'' et les ''Valeurs du patrimoine'' sont identiques",IF(OR(AND(Q18=S20,Q21>R21),AND(R18=S20,R21>Q21)),"Au taux de rémunération de l'épargne indiqué, le T.A.E.G.F. le plus faible est incohérent avec le Coût du Crédit Corrigé et la Valeur du Patrimoine et oriente vers un mauvais choix","Au taux de rémunération de l'épargne indiqué, le T.A.E.G.F. le plus faible est cohérent avec le Coût du Crédit Corrigé et la Valeur du Patrimoine et oriente vers le bon choix"))) -> Au taux de rémunération de l'épargne indiqué, le T.A.E.G.F. le plus faible est incohérent avec le Coût du Crédit Corrigé et la Valeur du Patrimoine et oriente vers un mauvais choix | U23: 16 | V23: 16 | W23: 1191.83 | Y23: -1191.83 | AC23: 1023 | AE23: -1023 | AI23: 16 | AJ23: 1191.83 | AK23: 19108.01448 | AL23: 7.961672698 | AN23: 20100 | AO23: 8.375 | AR23: 1191.83 | AS23: 19108.01448 | AT23: 7.961672698 | AV23: 20100 | AW23: 8.375 | AZ23: 1023 | BA23: 16401.2475 | BB23: 6.833853125 | BD23: 0 | BE23: 0 | BH23: 0 | BI23: 0 | BJ23: 0 | BL23: 0 | BM23: 0 | BP23: 168.83 | BQ23: 2706.766975 | BR23: 1.127819573 | BT23: 20100 | BU23: 8.375
B24: =IF($I$9>0," Renseigner la durée du prêt relais en mois"," Pas de prêt relais - Supprimer éventuelle durée saisie") -> Renseigner la durée du prêt relais en mois | I24: 24 | J24: 24 | U24: 17 | V24: 17 | W24: 1191.83 | Y24: -1191.83 | AC24: 1023 | AE24: -1023 | AI24: 17 | AJ24: 1191.83 | AK24: =AK23+AJ24 -> 20299.84448 | AL24: 8.458268531 | AN24: =IF(AI24>$K$21,0,AN23) -> 20100 | AO24: =IF(AI24>$K$21,0,AN23*$E$20/12) -> 8.375 | AR24: 1191.83 | AS24: =IF(AI24>$K$21,0,AS23+AR24) -> 20299.84448 | AT24: 8.458268531 | AV24: =IF(AI24>$K$21,0,AV23) -> 20100 | AW24: =IF(AI24>$K$21,0,AV23*$E$20/12) -> 8.375 | AZ24: 1023 | BA24: =IF(AI24>$K$21,0,BA23+AZ24) -> 17424.2475 | BB24: 7.260103125 | BD24: =IF(AI24>$K$21,0,BD23) -> 0 | BE24: =IF(AI24>$K$21,0,BD23*$E$20/12) -> 0 | BH24: 0 | BI24: =IF(V24>$K$21,0,BI23+BH24) -> 0 | BJ24: 0 | BL24: =IF(AI24>$K$21,0,BL23) -> 0 | BM24: =IF(AI24>$K$21,0,BL23*$E$20/12) -> 0 | BP24: 168.83 | BQ24: =IF(AI24>$K$21,0,BQ23+BP24) -> 2875.596975 | BR24: 1.198165406 | BT24: =IF(AI24>$K$21,0,BT23) -> 20100 | BU24: =IF(AI24>$K$21,0,BT23*$E$20/12) -> 8.375
B25: =IF($J$9>0," Renseigner la durée du prêt relais en mois","Pas de prêt relais - Supprimer éventuelle durée saisie") -> Renseigner la durée du prêt relais en mois | U25: 18 | V25: 18 | W25: 1191.83 | Y25: -1191.83 | AC25: 1023 | AE25: -1023 | AI25: 18 | AJ25: 1191.83 | AK25: 21491.67448 | AL25: 8.954864365 | AN25: 20100 | AO25: 8.375 | AR25: 1191.83 | AS25: 21491.67448 | AT25: 8.954864365 | AV25: 20100 | AW25: 8.375 | AZ25: 1023 | BA25: 18447.2475 | BB25: 7.686353125 | BD25: 0 | BE25: 0 | BH25: 0 | BI25: 0 | BJ25: 0 | BL25: 0 | BM25: 0 | BP25: 168.83 | BQ25: 3044.426975 | BR25: 1.26851124 | BT25: 20100 | BU25: 8.375
U26: 19 | V26: 19 | W26: 1191.83 | Y26: -1191.83 | AC26: 1023 | AE26: -1023 | AI26: 19 | AJ26: 1191.83 | AK26: 22683.50448 | AL26: 9.451460198 | AN26: 20100 | AO26: 8.375 | AR26: 1191.83 | AS26: 22683.50448 | AT26: 9.451460198 | AV26: 20100 | AW26: 8.375 | AZ26: 1023 | BA26: 19470.2475 | BB26: 8.112603125 | BD26: 0 | BE26: 0 | BH26: 0 | BI26: 0 | BJ26: 0 | BL26: 0 | BM26: 0 | BP26: 168.83 | BQ26: 3213.256975 | BR26: 1.338857073 | BT26: 20100 | BU26: 8.375
B27: Pour chaque banque et pour les paliers de durées qui conviennent, saisir les mensualités tous prêts confondus assurances obligatoires et facultatives comprises dans les cellules matérialisées en mauve | K27: =IF($I$9>0,"Prêt relais","Pas de prêt relais") -> Prêt relais | M27: =IF($J$9>0,"Prêt relais","Pas de prêt relais") -> Prêt relais | N27: Aux termes des éventuels prêts relais désignés, l'échéance totale à renseigner est égale la somme: + Des échéances des prêts amortissables à long terme assurances obligatoires et facultatives comprises, + Des capitaux restant dus sur les prêts relais concernés, + Des intérêts et assurances éventuellement dus sur lesdits prêts relais. | U27: 20 | V27: 20 | W27: 1191.83 | Y27: -1191.83 | AC27: 1023 | AE27: -1023 | AI27: 20 | AJ27: 1191.83 | AK27: 23875.33448 | AL27: 9.948056031 | AN27: 20100 | AO27: 8.375 | AR27: 1191.83 | AS27: 23875.33448 | AT27: 9.948056031 | AV27: 20100 | AW27: 8.375 | AZ27: 1023 | BA27: 20493.2475 | BB27: 8.538853125 | BD27: 0 | BE27: 0 | BH27: 0 | BI27: 0 | BJ27: 0 | BL27: 0 | BM27: 0 | BP27: 168.83 | BQ27: 3382.086975 | BR27: 1.409202906 | BT27: 20100 | BU27: 8.375
U28: 21 | V28: 21 | W28: 1191.83 | Y28: -1191.83 | AC28: 1023 | AE28: -1023 | AI28: 21 | AJ28: 1191.83 | AK28: 25067.16448 | AL28: 10.44465186 | AN28: 20100 | AO28: 8.375 | AR28: 1191.83 | AS28: 25067.16448 | AT28: 10.44465186 | AV28: 20100 | AW28: 8.375 | AZ28: 1023 | BA28: 21516.2475 | BB28: 8.965103125 | BD28: 0 | BE28: 0 | BH28: 0 | BI28: 0 | BJ28: 0 | BL28: 0 | BM28: 0 | BP28: 168.83 | BQ28: 3550.916975 | BR28: 1.47954874 | BT28: 20100 | BU28: 8.375
U29: 22 | V29: 22 | W29: 1191.83 | Y29: -1191.83 | AC29: 1023 | AE29: -1023 | AI29: 22 | AJ29: 1191.83 | AK29: 26258.99448 | AL29: 10.9412477 | AN29: 20100 | AO29: 8.375 | AR29: 1191.83 | AS29: 26258.99448 | AT29: 10.9412477 | AV29: 20100 | AW29: 8.375 | AZ29: 1023 | BA29: 22539.2475 | BB29: 9.391353125 | BD29: 0 | BE29: 0 | BH29: 0 | BI29: 0 | BJ29: 0 | BL29: 0 | BM29: 0 | BP29: 168.83 | BQ29: 3719.746975 | BR29: 1.549894573 | BT29: 20100 | BU29: 8.375
U30: 23 | V30: 23 | W30: 1191.83 | Y30: -1191.83 | AC30: 1023 | AE30: -1023 | AI30: 23 | AJ30: 1191.83 | AK30: 27450.82448 | AL30: 11.43784353 | AN30: 20100 | AO30: 8.375 | AR30: 1191.83 | AS30: 27450.82448 | AT30: 11.43784353 | AV30: 20100 | AW30: 8.375 | AZ30: 1023 | BA30: 23562.2475 | BB30: 9.817603125 | BD30: 0 | BE30: 0 | BH30: 0 | BI30: 0 | BJ30: 0 | BL30: 0 | BM30: 0 | BP30: 168.83 | BQ30: 3888.576975 | BR30: 1.620240406 | BT30: 20100 | BU30: 8.375
B31: Echéance totale | D31: =E6 -> BPCE | E31: =I21 -> 180 | F31: Durée en mois | G31: =J21 -> 240 | H31: Echéance totale | J31: =F6 -> LCL | K31: =E6 -> BPCE | M31: =F6 -> LCL | U31: 24 | V31: 24 | W31: 93345.16 | Y31: -93345.16 | AC31: 96141.75 | AE31: -96141.75 | AI31: 24 | AJ31: 96141.75 | AK31: =IF(AI31>$K$21,0,AK30+AJ31) -> 123592.5745 | AL31: =AK31*$E$20/12 -> 51.49690603 | AM31: =SUM(AL20:AL31) -> 150.000414 | AN31: =IF(AI31>$K$21,0,AN30+AP31) -> 20200.5 | AO31: 8.375 | AP31: =SUM(AO20:AO31) -> 100.5 | AR31: 93345.16 | AS31: =IF(AI31>$K$21,0,AS30+AR31) -> 120795.9845 | AT31: 50.3316602 | AU31: =SUM(AT20:AT31) -> 148.8351682 | AV31: =IF(AI31>$K$21,0,AV30+AX31) -> 20200.5 | AW31: =IF(AI31>$K$21,0,AV30*$E$20/12) -> 8.375 | AX31: =SUM(AW20:AW31) -> 100.5 | AZ31: 96141.75 | BA31: =IF(AI31>$K$21,0,BA30+AZ31) -> 119703.9975 | BB31: 49.87666562 | BC31: =SUM(BB20:BB31) -> 134.42655 | BD31: =IF(AI31>$K$21,0,BD30+BF31) -> 0 | BE31: =IF(AI31>$K$21,0,BD30*$E$20/12) -> 0 | BF31: =SUM(BE20:BE31) -> 0 | BH31: 2796.59 | BI31: =IF(V31>$K$21,0,BI30+BH31) -> 2796.59 | BJ31: 1.165245833 | BK31: =SUM(BJ20:BJ31) -> 1.165245833 | BL31: =IF(AI31>$K$21,0,BL30+BN31) -> 0 | BM31: =IF(AI31>$K$21,0,BL30*$E$20/12) -> 0 | BN31: =SUM(BM20:BM31) -> 0 | BP31: 0 | BQ31: =IF(AI31>$K$21,0,BQ30+BP31) -> 3888.576975 | BR31: 1.620240406 | BS31: =SUM(BR20:BR31) -> 15.57386404 | BT31: =IF(AI31>$K$21,0,BT30+BV31) -> 20200.5 | BU31: 8.375 | BV31: =SUM(BU20:BU31) -> 100.5
B32: 1 | C32: =D32 -> 1191.83 | D32: 1191.83 | E32: ATTENTION La durée maximale prévue est de 396 mois ce qui pourrait correspondre à un différé externe/anticipation de 36 mois et une phase d'amortissement maximale de 360 mois. Mais, dans cet applicatif, le raisonnement repose uniquement sur les ''échéances assurances comprises'' saisies et, de ce fait, aucun contrôle n'est possible. Ce sont donc les montants d'échéances saisis qui, quels qu'ils soient, seront pris en considération pour les calculs comparatifs. Il va donc sans dire que la pertinence des résultats obtenus repose tant sur l'exactitude des montants d'échéances renseignés que sur les durées de leurs éventuels paliers. | H32: 1 | I32: =J32 -> 1023 | J32: 1023 | K32: =IF(AND($I$9>0,B32=($I$24+1),C32>=D31),"ERREUR ECHEANCE",IF(AND($I$9>0,H32=$I$24),"Échéance Prêt relais","")) ->  | M32: =IF(AND($J$9>0,H32=($J$24+1),I32>=J31),"ERREUR ECHEANCE",IF(AND($J$9>0,H32=$J$24),"Échéance Prêt relais","")) ->  | N32: =IF(OR(H32=$I$24+1,H32=$J$24+1),"Renseigner de nouveau l'échéance totale des prêts amortissables toutes assurances comprises",IF(OR(K32<>"",M32<>""),"Échéance à saisir = celle du prêt amortissable avec ADI + capital prêt relais + intérêts concernés","")) ->  | U32: 25 | V32: 25 | W32: 1191.83 | Y32: -1191.83 | AC32: 1023 | AE32: -1023 | AI32: 25 | AJ32: 1191.83 | AK32: =IF(AI32>$K$21,0,AK31+AJ32+AM31) -> 124934.4049 | AL32: 52.05600204 | AN32: 20200.5 | AO32: 8.416875 | AR32: 1191.83 | AS32: =IF(AI32>$K$21,0,AS31+AR32+AU31) -> 122136.6496 | AT32: 50.89027068 | AV32: =IF(AI32>$K$21,0,AV31) -> 20200.5 | AW32: 8.416875 | AZ32: 1023 | BA32: =IF(AI32>$K$21,0,BA31+AZ32+BC31) -> 120861.4241 | BB32: 50.35892669 | BD32: =IF(AI32>$K$21,0,BD31) -> 0 | BE32: 0 | BH32: 0 | BI32: =IF(AI32>$K$21,0,BI31+BH32+BK31) -> 2797.755246 | BJ32: 1.165731352 | BL32: =IF(AI32>$K$21,0,BL31) -> 0 | BM32: 0 | BP32: 168.83 | BQ32: =IF(AI32>$K$21,0,BQ31+BP32+BS31) -> 4072.980839 | BR32: 1.69707535 | BT32: =IF(AI32>$K$21,0,BT31) -> 20200.5 | BU32: 8.416875
B33: 2 | C33: =IF(B33>$I$21,0,IF(AND(D33<>C32,D33<>0),D33,C32)) -> 1191.83 | H33: 2 | I33: =IF(H33>$J$21,0,IF(AND(J33<>I32,J33<>0),J33,I32)) -> 1023 | U33: 26 | V33: 26 | W33: 1191.83 | Y33: -1191.83 | AC33: 1023 | AE33: -1023 | AI33: 26 | AJ33: 1191.83 | AK33: 126126.2349 | AL33: 52.55259787 | AN33: 20200.5 | AO33: 8.416875 | AR33: 1191.83 | AS33: =IF(AI33>$K$21,0,AS32+AR33) -> 123328.4796 | AT33: 51.38686652 | AV33: 20200.5 | AW33: 8.416875 | AZ33: 1023 | BA33: 121884.4241 | BB33: 50.78517669 | BD33: 0 | BE33: 0 | BH33: 0 | BI33: 2797.755246 | BJ33: 1.165731352 | BL33: 0 | BM33: 0 | BP33: 168.83 | BQ33: 4241.810839 | BR33: 1.767421183 | BT33: 20200.5 | BU33: 8.416875
B34: 3 | C34: =IF(B34>$I$21,0,IF(AND(D34<>C33,D34<>0),D34,C33)) -> 1191.83 | H34: 3 | I34: =IF(H34>$J$21,0,IF(AND(J34<>I33,J34<>0),J34,I33)) -> 1023 | U34: 27 | V34: 27 | W34: 1191.83 | Y34: -1191.83 | AC34: 1023 | AE34: -1023 | AI34: 27 | AJ34: 1191.83 | AK34: 127318.0649 | AL34: 53.0491937 | AN34: 20200.5 | AO34: 8.416875 | AR34: 1191.83 | AS34: 124520.3096 | AT34: 51.88346235 | AV34: 20200.5 | AW34: 8.416875 | AZ34: 1023 | BA34: 122907.4241 | BB34: 51.21142669 | BD34: 0 | BE34: 0 | BH34: 0 | BI34: 2797.755246 | BJ34: 1.165731352 | BL34: 0 | BM34: 0 | BP34: 168.83 | BQ34: 4410.640839 | BR34: 1.837767016 | BT34: 20200.5 | BU34: 8.416875
B35: 4 | C35: =IF(B35>$I$21,0,IF(AND(D35<>C34,D35<>0),D35,C34)) -> 1191.83 | H35: 4 | I35: 1023 | U35: 28 | V35: 28 | W35: 1191.83 | Y35: -1191.83 | AC35: 1023 | AE35: -1023 | AI35: 28 | AJ35: 1191.83 | AK35: 128509.8949 | AL35: 53.54578954 | AN35: 20200.5 | AO35: 8.416875 | AR35: 1191.83 | AS35: 125712.1396 | AT35: 52.38005818 | AV35: 20200.5 | AW35: 8.416875 | AZ35: 1023 | BA35: 123930.4241 | BB35: 51.63767669 | BD35: 0 | BE35: 0 | BH35: 0 | BI35: 2797.755246 | BJ35: 1.165731352 | BL35: 0 | BM35: 0 | BP35: 168.83 | BQ35: 4579.470839 | BR35: 1.90811285 | BT35: 20200.5 | BU35: 8.416875
B36: 5 | C36: 1191.83 | H36: 5 | I36: 1023 | U36: 29 | V36: 29 | W36: 1191.83 | Y36: -1191.83 | AC36: 1023 | AE36: -1023 | AI36: 29 | AJ36: 1191.83 | AK36: 129701.7249 | AL36: 54.04238537 | AN36: 20200.5 | AO36: 8.416875 | AR36: 1191.83 | AS36: 126903.9696 | AT36: 52.87665402 | AV36: 20200.5 | AW36: 8.416875 | AZ36: 1023 | BA36: 124953.4241 | BB36: 52.06392669 | BD36: 0 | BE36: 0 | BH36: 0 | BI36: 2797.755246 | BJ36: 1.165731352 | BL36: 0 | BM36: 0 | BP36: 168.83 | BQ36: 4748.300839 | BR36: 1.978458683 | BT36: 20200.5 | BU36: 8.416875
B37: 6 | C37: 1191.83 | H37: 6 | I37: 1023 | U37: 30 | V37: 30 | W37: 1191.83 | Y37: -1191.83 | AC37: 1023 | AE37: -1023 | AI37: 30 | AJ37: 1191.83 | AK37: 130893.5549 | AL37: 54.5389812 | AN37: 20200.5 | AO37: 8.416875 | AR37: 1191.83 | AS37: 128095.7996 | AT37: 53.37324985 | AV37: 20200.5 | AW37: 8.416875 | AZ37: 1023 | BA37: 125976.4241 | BB37: 52.49017669 | BD37: 0 | BE37: 0 | BH37: 0 | BI37: 2797.755246 | BJ37: 1.165731352 | BL37: 0 | BM37: 0 | BP37: 168.83 | BQ37: 4917.130839 | BR37: 2.048804516 | BT37: 20200.5 | BU37: 8.416875
B38: 7 | C38: 1191.83 | H38: 7 | I38: 1023 | U38: 31 | V38: 31 | W38: 1191.83 | Y38: -1191.83 | AC38: 1023 | AE38: -1023 | AI38: 31 | AJ38: 1191.83 | AK38: 132085.3849 | AL38: 55.03557704 | AN38: 20200.5 | AO38: 8.416875 | AR38: 1191.83 | AS38: 129287.6296 | AT38: 53.86984568 | AV38: 20200.5 | AW38: 8.416875 | AZ38: 1023 | BA38: 126999.4241 | BB38: 52.91642669 | BD38: 0 | BE38: 0 | BH38: 0 | BI38: 2797.755246 | BJ38: 1.165731352 | BL38: 0 | BM38: 0 | BP38: 168.83 | BQ38: 5085.960839 | BR38: 2.11915035 | BT38: 20200.5 | BU38: 8.416875
B39: 8 | C39: 1191.83 | H39: 8 | I39: 1023 | U39: 32 | V39: 32 | W39: 1191.83 | Y39: -1191.83 | AC39: 1023 | AE39: -1023 | AI39: 32 | AJ39: 1191.83 | AK39: 133277.2149 | AL39: 55.53217287 | AN39: 20200.5 | AO39: 8.416875 | AR39: 1191.83 | AS39: 130479.4596 | AT39: 54.36644152 | AV39: 20200.5 | AW39: 8.416875 | AZ39: 1023 | BA39: 128022.4241 | BB39: 53.34267669 | BD39: 0 | BE39: 0 | BH39: 0 | BI39: 2797.755246 | BJ39: 1.165731352 | BL39: 0 | BM39: 0 | BP39: 168.83 | BQ39: 5254.790839 | BR39: 2.189496183 | BT39: 20200.5 | BU39: 8.416875
B40: 9 | C40: 1191.83 | H40: 9 | I40: 1023 | U40: 33 | V40: 33 | W40: 1191.83 | Y40: -1191.83 | AC40: 1023 | AE40: -1023 | AI40: 33 | AJ40: 1191.83 | AK40: 134469.0449 | AL40: 56.0287687 | AN40: 20200.5 | AO40: 8.416875 | AR40: 1191.83 | AS40: 131671.2896 | AT40: 54.86303735 | AV40: 20200.5 | AW40: 8.416875 | AZ40: 1023 | BA40: 129045.4241 | BB40: 53.76892669 | BD40: 0 | BE40: 0 | BH40: 0 | BI40: 2797.755246 | BJ40: 1.165731352 | BL40: 0 | BM40: 0 | BP40: 168.83 | BQ40: 5423.620839 | BR40: 2.259842016 | BT40: 20200.5 | BU40: 8.416875
B41: 10 | C41: 1191.83 | H41: 10 | I41: 1023 | U41: 34 | V41: 34 | W41: 1191.83 | Y41: -1191.83 | AC41: 1023 | AE41: -1023 | AI41: 34 | AJ41: 1191.83 | AK41: 135660.8749 | AL41: 56.52536454 | AN41: 20200.5 | AO41: 8.416875 | AR41: 1191.83 | AS41: 132863.1196 | AT41: 55.35963318 | AV41: 20200.5 | AW41: 8.416875 | AZ41: 1023 | BA41: 130068.4241 | BB41: 54.19517669 | BD41: 0 | BE41: 0 | BH41: 0 | BI41: 2797.755246 | BJ41: 1.165731352 | BL41: 0 | BM41: 0 | BP41: 168.83 | BQ41: 5592.450839 | BR41: 2.33018785 | BT41: 20200.5 | BU41: 8.416875
B42: 11 | C42: 1191.83 | H42: 11 | I42: 1023 | U42: 35 | V42: 35 | W42: 1191.83 | Y42: -1191.83 | AC42: 1023 | AE42: -1023 | AI42: 35 | AJ42: 1191.83 | AK42: 136852.7049 | AL42: 57.02196037 | AN42: 20200.5 | AO42: 8.416875 | AR42: 1191.83 | AS42: 134054.9496 | AT42: 55.85622902 | AV42: 20200.5 | AW42: 8.416875 | AZ42: 1023 | BA42: 131091.4241 | BB42: 54.62142669 | BD42: 0 | BE42: 0 | BH42: 0 | BI42: 2797.755246 | BJ42: 1.165731352 | BL42: 0 | BM42: 0 | BP42: 168.83 | BQ42: 5761.280839 | BR42: 2.400533683 | BT42: 20200.5 | BU42: 8.416875
B43: 12 | C43: 1191.83 | H43: 12 | I43: 1023 | U43: 36 | V43: 36 | W43: 1191.83 | Y43: -1191.83 | AC43: 1023 | AE43: -1023 | AI43: 36 | AJ43: 1191.83 | AK43: =IF(AI43>$K$21,0,AK42+AJ43) -> 138044.5349 | AL43: =AK43*$E$20/12 -> 57.5185562 | AM43: =SUM(AL32:AL43) -> 657.4473494 | AN43: =IF(AI43>$K$21,0,AN42+AP43) -> 20301.5025 | AO43: 8.416875 | AP43: =SUM(AO32:AO43) -> 101.0025 | AR43: 1191.83 | AS43: =IF(AI43>$K$21,0,AS42+AR43) -> 135246.7796 | AT43: 56.35282485 | AU43: =SUM(AT32:AT43) -> 643.4585732 | AV43: =IF(AI43>$K$21,0,AV42+AX43) -> 20301.5025 | AW43: 8.416875 | AX43: =SUM(AW32:AW43) -> 101.0025 | AZ43: 1023 | BA43: 132114.4241 | BB43: 55.04767669 | BC43: =SUM(BB32:BB43) -> 632.4396203 | BD43: =IF(AI43>$K$21,0,BD42+BF43) -> 0 | BE43: 0 | BF43: =SUM(BE32:BE43) -> 0 | BH43: 0 | BI43: 2797.755246 | BJ43: 1.165731352 | BK43: =SUM(BJ32:BJ43) -> 13.98877623 | BL43: =IF(AI43>$K$21,0,BL42+BN43) -> 0 | BM43: 0 | BN43: =SUM(BM32:BM43) -> 0 | BP43: 168.83 | BQ43: 5930.110839 | BR43: 2.470879516 | BS43: =SUM(BR32:BR43) -> 25.0077292 | BT43: =IF(AI43>$K$21,0,BT42+BV43) -> 20301.5025 | BU43: 8.416875 | BV43: =SUM(BU32:BU43) -> 101.0025
B44: 13 | C44: 1191.83 | H44: 13 | I44: 1023 | U44: 37 | V44: 37 | W44: 1191.83 | Y44: -1191.83 | AC44: 1023 | AE44: -1023 | AI44: 37 | AJ44: 1191.83 | AK44: =IF(AI44>$K$21,0,AK43+AJ44+AM43) -> 139893.8122 | AL44: 58.28908843 | AN44: 20301.5025 | AO44: 8.458959375 | AR44: 1191.83 | AS44: =IF(AI44>$K$21,0,AS43+AR44+AU43) -> 137082.0682 | AT44: 57.11752842 | AV44: =IF(AI44>$K$21,0,AV43) -> 20301.5025 | AW44: 8.458959375 | AZ44: 1023 | BA44: =IF(AI44>$K$21,0,BA43+AZ44+BC43) -> 133769.8637 | BB44: 55.7374432 | BD44: =IF(AI44>$K$21,0,BD43) -> 0 | BE44: 0 | BH44: 0 | BI44: =IF(AI44>$K$21,0,BI43+BH44+BK43) -> 2811.744022 | BJ44: 1.171560009 | BL44: =IF(AI44>$K$21,0,BL43) -> 0 | BM44: 0 | BP44: 168.83 | BQ44: =IF(AI44>$K$21,0,BQ43+BP44+BS43) -> 6123.948568 | BR44: 2.551645237 | BT44: =IF(AI44>$K$21,0,BT43) -> 20301.5025 | BU44: 8.458959375
B45: 14 | C45: 1191.83 | H45: 14 | I45: 1023 | U45: 38 | V45: 38 | W45: 1191.83 | Y45: -1191.83 | AC45: 1023 | AE45: -1023 | AI45: 38 | AJ45: 1191.83 | AK45: =AK44+AJ45 -> 141085.6422 | AL45: 58.78568427 | AN45: 20301.5025 | AO45: 8.458959375 | AR45: 1191.83 | AS45: =IF(AI45>$K$21,0,AS44+AR45) -> 138273.8982 | AT45: 57.61412426 | AV45: 20301.5025 | AW45: 8.458959375 | AZ45: 1023 | BA45: 134792.8637 | BB45: 56.1636932 | BD45: 0 | BE45: 0 | BH45: 0 | BI45: 2811.744022 | BJ45: 1.171560009 | BL45: 0 | BM45: 0 | BP45: 168.83 | BQ45: 6292.778568 | BR45: 2.62199107 | BT45: 20301.5025 | BU45: 8.458959375
B46: 15 | C46: 1191.83 | H46: 15 | I46: 1023 | U46: 39 | V46: 39 | W46: 1191.83 | Y46: -1191.83 | AC46: 1023 | AE46: -1023 | AI46: 39 | AJ46: 1191.83 | AK46: 142277.4722 | AL46: 59.2822801 | AN46: 20301.5025 | AO46: 8.458959375 | AR46: 1191.83 | AS46: 139465.7282 | AT46: 58.11072009 | AV46: 20301.5025 | AW46: 8.458959375 | AZ46: 1023 | BA46: 135815.8637 | BB46: 56.5899432 | BD46: 0 | BE46: 0 | BH46: 0 | BI46: 2811.744022 | BJ46: 1.171560009 | BL46: 0 | BM46: 0 | BP46: 168.83 | BQ46: 6461.608568 | BR46: 2.692336903 | BT46: 20301.5025 | BU46: 8.458959375
B47: 16 | C47: 1191.83 | H47: 16 | I47: 1023 | K47: =IF(AND($I$9>0,B47=($I$24+1),C47>=D46),"ERREUR ECHEANCE",IF(AND($I$9>0,H47=$I$24),"Échéance Prêt relais","")) ->  | U47: 40 | V47: 40 | W47: 1191.83 | Y47: -1191.83 | AC47: 1023 | AE47: -1023 | AI47: 40 | AJ47: 1191.83 | AK47: 143469.3022 | AL47: 59.77887593 | AN47: 20301.5025 | AO47: 8.458959375 | AR47: 1191.83 | AS47: 140657.5582 | AT47: 58.60731592 | AV47: 20301.5025 | AW47: 8.458959375 | AZ47: 1023 | BA47: 136838.8637 | BB47: 57.0161932 | BD47: 0 | BE47: 0 | BH47: 0 | BI47: 2811.744022 | BJ47: 1.171560009 | BL47: 0 | BM47: 0 | BP47: 168.83 | BQ47: 6630.438568 | BR47: 2.762682737 | BT47: 20301.5025 | BU47: 8.458959375
B48: 17 | C48: 1191.83 | H48: 17 | I48: 1023 | U48: 41 | V48: 41 | W48: 1191.83 | Y48: -1191.83 | AC48: 1023 | AE48: -1023 | AI48: 41 | AJ48: 1191.83 | AK48: 144661.1322 | AL48: 60.27547177 | AN48: 20301.5025 | AO48: 8.458959375 | AR48: 1191.83 | AS48: 141849.3882 | AT48: 59.10391176 | AV48: 20301.5025 | AW48: 8.458959375 | AZ48: 1023 | BA48: 137861.8637 | BB48: 57.4424432 | BD48: 0 | BE48: 0 | BH48: 0 | BI48: 2811.744022 | BJ48: 1.171560009 | BL48: 0 | BM48: 0 | BP48: 168.83 | BQ48: 6799.268568 | BR48: 2.83302857 | BT48: 20301.5025 | BU48: 8.458959375
B49: 18 | C49: 1191.83 | H49: 18 | I49: 1023 | U49: 42 | V49: 42 | W49: 1191.83 | Y49: -1191.83 | AC49: 1023 | AE49: -1023 | AI49: 42 | AJ49: 1191.83 | AK49: 145852.9622 | AL49: 60.7720676 | AN49: 20301.5025 | AO49: 8.458959375 | AR49: 1191.83 | AS49: 143041.2182 | AT49: 59.60050759 | AV49: 20301.5025 | AW49: 8.458959375 | AZ49: 1023 | BA49: 138884.8637 | BB49: 57.8686932 | BD49: 0 | BE49: 0 | BH49: 0 | BI49: 2811.744022 | BJ49: 1.171560009 | BL49: 0 | BM49: 0 | BP49: 168.83 | BQ49: 6968.098568 | BR49: 2.903374403 | BT49: 20301.5025 | BU49: 8.458959375
B50: 19 | C50: 1191.83 | H50: 19 | I50: 1023 | U50: 43 | V50: 43 | W50: 1191.83 | Y50: -1191.83 | AC50: 1023 | AE50: -1023 | AI50: 43 | AJ50: 1191.83 | AK50: 147044.7922 | AL50: 61.26866343 | AN50: 20301.5025 | AO50: 8.458959375 | AR50: 1191.83 | AS50: 144233.0482 | AT50: 60.09710342 | AV50: 20301.5025 | AW50: 8.458959375 | AZ50: 1023 | BA50: 139907.8637 | BB50: 58.2949432 | BD50: 0 | BE50: 0 | BH50: 0 | BI50: 2811.744022 | BJ50: 1.171560009 | BL50: 0 | BM50: 0 | BP50: 168.83 | BQ50: 7136.928568 | BR50: 2.973720237 | BT50: 20301.5025 | BU50: 8.458959375
B51: 20 | C51: 1191.83 | H51: 20 | I51: 1023 | U51: 44 | V51: 44 | W51: 1191.83 | Y51: -1191.83 | AC51: 1023 | AE51: -1023 | AI51: 44 | AJ51: 1191.83 | AK51: 148236.6222 | AL51: 61.76525927 | AN51: 20301.5025 | AO51: 8.458959375 | AR51: 1191.83 | AS51: 145424.8782 | AT51: 60.59369926 | AV51: 20301.5025 | AW51: 8.458959375 | AZ51: 1023 | BA51: 140930.8637 | BB51: 58.7211932 | BD51: 0 | BE51: 0 | BH51: 0 | BI51: 2811.744022 | BJ51: 1.171560009 | BL51: 0 | BM51: 0 | BP51: 168.83 | BQ51: 7305.758568 | BR51: 3.04406607 | BT51: 20301.5025 | BU51: 8.458959375
B52: 21 | C52: 1191.83 | E52: ATTENTION Les TAEGF indiqués dans les cellules ''Q21'' et ''R21'' ci-contre ne sont pas les ''TAEG légaux'' qui sont calculés ''prêt par prêt" et ne prennent en considération que les seules charges rendues obligatoires ce qui exclut donc les primes d'assurances facultatives. De ce fait, entre autres éléments (apport personnel et/ou durées différents) dans sa prétendue fonction de critère de choix/comparaisons d'offres concurrentes, ce critère est très souvent dénué de toute fiablité et pertinence: => C'EST TRES SOUVENT DE LA FOUTAISE Les TAEGF indiqués dans ces cellules sont les ''TAEG Financiers'' qui - au contraire - sont calculés sur l'ensemble de tous les prêts composant le plan de financement et en intégrant toutes les charges qu'elles soient obligatoires ou facultatives. Ainsi trois des inconvénients du ''TAEG légal'' sont supprimés: + Un seul TAEGF pour l'ensemble des crédits composant le plan de financement . + Toutes les charges/dépenses obligatoires et facultatives supportées par l'emrunteur intégrées + Mauvaise répartition éventuelle des frais de dossier, parts sociales et frais de garanties (puisque ''tous prêts confondus'') Cependant subsistent toujours: + L'éventuelle différence d'apport personel qui est un crédit que l'emprunteur se consent à lui même au taux de son épargne + L'éventuelle différence de la durée maximale des prêts inclus dans les plans de financement à comparer. => POUR REMEDIER A CES INCONVENIENTS IL CONVIENT DE COMPARER LES COÛTS DU CREDIT CORRIGES ET/OU LA VALEUR TOTALE DU PATRIMOINE ACQUIS AU TERME DE LA DUREE LA PLUS LONGUE. | H52: 21 | I52: 1023 | U52: 45 | V52: 45 | W52: 1191.83 | Y52: -1191.83 | AC52: 1023 | AE52: -1023 | AI52: 45 | AJ52: 1191.83 | AK52: 149428.4522 | AL52: 62.2618551 | AN52: 20301.5025 | AO52: 8.458959375 | AR52: 1191.83 | AS52: 146616.7082 | AT52: 61.09029509 | AV52: 20301.5025 | AW52: 8.458959375 | AZ52: 1023 | BA52: 141953.8637 | BB52: 59.1474432 | BD52: 0 | BE52: 0 | BH52: 0 | BI52: 2811.744022 | BJ52: 1.171560009 | BL52: 0 | BM52: 0 | BP52: 168.83 | BQ52: 7474.588568 | BR52: 3.114411903 | BT52: 20301.5025 | BU52: 8.458959375
B53: 22 | C53: 1191.83 | H53: 22 | I53: 1023 | U53: 46 | V53: 46 | W53: 1191.83 | Y53: -1191.83 | AC53: 1023 | AE53: -1023 | AI53: 46 | AJ53: 1191.83 | AK53: 150620.2822 | AL53: 62.75845093 | AN53: 20301.5025 | AO53: 8.458959375 | AR53: 1191.83 | AS53: 147808.5382 | AT53: 61.58689092 | AV53: 20301.5025 | AW53: 8.458959375 | AZ53: 1023 | BA53: 142976.8637 | BB53: 59.5736932 | BD53: 0 | BE53: 0 | BH53: 0 | BI53: 2811.744022 | BJ53: 1.171560009 | BL53: 0 | BM53: 0 | BP53: 168.83 | BQ53: 7643.418568 | BR53: 3.184757737 | BT53: 20301.5025 | BU53: 8.458959375
B54: 23 | C54: 1191.83 | H54: 23 | I54: 1023 | U54: 47 | V54: 47 | W54: 1191.83 | Y54: -1191.83 | AC54: 1023 | AE54: -1023 | AI54: 47 | AJ54: 1191.83 | AK54: 151812.1122 | AL54: 63.25504677 | AN54: 20301.5025 | AO54: 8.458959375 | AR54: 1191.83 | AS54: 149000.3682 | AT54: 62.08348676 | AV54: 20301.5025 | AW54: 8.458959375 | AZ54: 1023 | BA54: 143999.8637 | BB54: 59.9999432 | BD54: 0 | BE54: 0 | BH54: 0 | BI54: 2811.744022 | BJ54: 1.171560009 | BL54: 0 | BM54: 0 | BP54: 168.83 | BQ54: 7812.248568 | BR54: 3.25510357 | BT54: 20301.5025 | BU54: 8.458959375
B55: 24 | C55: 93345.16 | D55: 93345.16 | H55: 24 | I55: 96141.75 | J55: 96141.75 | K55: Échéance Prêt relais | M55: Échéance Prêt relais | N55: Échéance à saisir = celle du prêt amortissable avec ADI + capital prêt relais + intérêts concernés | U55: 48 | V55: 48 | W55: 1191.83 | Y55: -1191.83 | AC55: 1023 | AE55: -1023 | AI55: 48 | AJ55: 1191.83 | AK55: =IF(AI55>$K$21,0,AK54+AJ55) -> 153003.9422 | AL55: =AK55*$E$20/12 -> 63.7516426 | AM55: =SUM(AL44:AL55) -> 732.2443862 | AN55: =IF(AI55>$K$21,0,AN54+AP55) -> 20403.01001 | AO55: 8.458959375 | AP55: =SUM(AO44:AO55) -> 101.5075125 | AR55: 1191.83 | AS55: =IF(AI55>$K$21,0,AS54+AR55) -> 150192.1982 | AT55: 62.58008259 | AU55: =SUM(AT44:AT55) -> 718.1856661 | AV55: =IF(AI55>$K$21,0,AV54+AX55) -> 20403.01001 | AW55: 8.458959375 | AX55: =SUM(AW44:AW55) -> 101.5075125 | AZ55: 1023 | BA55: 145022.8637 | BB55: 60.4261932 | BC55: =SUM(BB44:BB55) -> 696.9818184 | BD55: =IF(AI55>$K$21,0,BD54+BF55) -> 0 | BE55: 0 | BF55: =SUM(BE44:BE55) -> 0 | BH55: 0 | BI55: 2811.744022 | BJ55: 1.171560009 | BK55: =SUM(BJ44:BJ55) -> 14.05872011 | BL55: =IF(AI55>$K$21,0,BL54+BN55) -> 0 | BM55: 0 | BN55: =SUM(BM44:BM55) -> 0 | BP55: 168.83 | BQ55: 7981.078568 | BR55: 3.325449403 | BS55: =SUM(BR44:BR55) -> 35.26256784 | BT55: =IF(AI55>$K$21,0,BT54+BV55) -> 20403.01001 | BU55: 8.458959375 | BV55: =SUM(BU44:BU55) -> 101.5075125
B56: 25 | C56: 1191.83 | D56: 1191.83 | H56: 25 | I56: 1023 | J56: 1023 | M56: =IF(AND($J$9>0,H56=($J$24+1),I56>=J55),"ERREUR ECHEANCE",IF(AND($J$9>0,H56=$J$24),"Échéance Prêt relais","")) ->  | N56: =IF(OR(H56=$I$24+1,H56=$J$24+1),"Renseigner de nouveau l'échéance totale des prêts amortissables toutes assurances comprises",IF(OR(K56<>"",M56<>""),"Échéance à saisir = celle du prêt amortissable avec ADI + capital prêt relais + intérêts concernés","")) -> Renseigner de nouveau l'échéance totale des prêts amortissables toutes assurances comprises | U56: 49 | V56: 49 | W56: 1191.83 | Y56: -1191.83 | AC56: 1023 | AE56: -1023 | AI56: 49 | AJ56: 1191.83 | AK56: =IF(AI56>$K$21,0,AK55+AJ56+AM55) -> 154928.0166 | AL56: 64.55334026 | AN56: 20403.01001 | AO56: 8.501254172 | AR56: 1191.83 | AS56: =IF(AI56>$K$21,0,AS55+AR56+AU55) -> 152102.2139 | AT56: 63.37592245 | AV56: =IF(AI56>$K$21,0,AV55) -> 20403.01001 | AW56: 8.501254172 | AZ56: 1023 | BA56: =IF(AI56>$K$21,0,BA55+AZ56+BC55) -> 146742.8455 | BB56: 61.14285229 | BD56: =IF(AI56>$K$21,0,BD55) -> 0 | BE56: 0 | BH56: 0 | BI56: =IF(AI56>$K$21,0,BI55+BH56+BK55) -> 2825.802742 | BJ56: 1.177417809 | BL56: =IF(AI56>$K$21,0,BL55) -> 0 | BM56: 0 | BP56: 168.83 | BQ56: =IF(AI56>$K$21,0,BQ55+BP56+BS55) -> 8185.171136 | BR56: 3.410487973 | BT56: =IF(AI56>$K$21,0,BT55) -> 20403.01001 | BU56: 8.501254172
B57: 26 | C57: 1191.83 | H57: 26 | I57: 1023 | M57: =IF(AND($J$9>0,H57=($J$24+1),I57>=J56),"ERREUR ECHEANCE",IF(AND($J$9>0,H57=$J$24),"Échéance Prêt relais","")) ->  | N57: =IF(OR(H57=$I$24+1,H57=$J$24+1),"Renseigner de nouveau l'échéance totale des prêts amortissables toutes assurances comprises",IF(OR(K57<>"",M57<>""),"Échéance à saisir = celle du prêt amortissable avec ADI + capital prêt relais + intérêts concernés","")) ->  | U57: 50 | V57: 50 | W57: 1191.83 | Y57: -1191.83 | AC57: 1023 | AE57: -1023 | AI57: 50 | AJ57: 1191.83 | AK57: =AK56+AJ57 -> 156119.8466 | AL57: 65.04993609 | AN57: 20403.01001 | AO57: 8.501254172 | AR57: 1191.83 | AS57: =IF(AI57>$K$21,0,AS56+AR57) -> 153294.0439 | AT57: 63.87251828 | AV57: 20403.01001 | AW57: 8.501254172 | AZ57: 1023 | BA57: 147765.8455 | BB57: 61.56910229 | BD57: 0 | BE57: 0 | BH57: 0 | BI57: 2825.802742 | BJ57: 1.177417809 | BL57: 0 | BM57: 0 | BP57: 168.83 | BQ57: 8354.001136 | BR57: 3.480833807 | BT57: 20403.01001 | BU57: 8.501254172
B58: 27 | C58: 1191.83 | H58: 27 | I58: 1023 | K58: =IF(AND($I$9>0,B58=($I$24+1),C58>=D57),"ERREUR ECHEANCE",IF(AND($I$9>0,H58=$I$24),"Échéance Prêt relais","")) ->  | U58: 51 | V58: 51 | W58: 1191.83 | Y58: -1191.83 | AC58: 1023 | AE58: -1023 | AI58: 51 | AJ58: 1191.83 | AK58: 157311.6766 | AL58: 65.54653193 | AN58: 20403.01001 | AO58: 8.501254172 | AR58: 1191.83 | AS58: 154485.8739 | AT58: 64.36911412 | AV58: 20403.01001 | AW58: 8.501254172 | AZ58: 1023 | BA58: 148788.8455 | BB58: 61.99535229 | BD58: 0 | BE58: 0 | BH58: 0 | BI58: 2825.802742 | BJ58: 1.177417809 | BL58: 0 | BM58: 0 | BP58: 168.83 | BQ58: 8522.831136 | BR58: 3.55117964 | BT58: 20403.01001 | BU58: 8.501254172
B59: 28 | C59: 1191.83 | H59: 28 | I59: 1023 | U59: 52 | V59: 52 | W59: 1191.83 | Y59: -1191.83 | AC59: 1023 | AE59: -1023 | AI59: 52 | AJ59: 1191.83 | AK59: 158503.5066 | AL59: 66.04312776 | AN59: 20403.01001 | AO59: 8.501254172 | AR59: 1191.83 | AS59: 155677.7039 | AT59: 64.86570995 | AV59: 20403.01001 | AW59: 8.501254172 | AZ59: 1023 | BA59: 149811.8455 | BB59: 62.42160229 | BD59: 0 | BE59: 0 | BH59: 0 | BI59: 2825.802742 | BJ59: 1.177417809 | BL59: 0 | BM59: 0 | BP59: 168.83 | BQ59: 8691.661136 | BR59: 3.621525473 | BT59: 20403.01001 | BU59: 8.501254172
B60: 29 | C60: 1191.83 | H60: 29 | I60: 1023 | U60: 53 | V60: 53 | W60: 1191.83 | Y60: -1191.83 | AC60: 1023 | AE60: -1023 | AI60: 53 | AJ60: 1191.83 | AK60: 159695.3366 | AL60: 66.53972359 | AN60: 20403.01001 | AO60: 8.501254172 | AR60: 1191.83 | AS60: 156869.5339 | AT60: 65.36230578 | AV60: 20403.01001 | AW60: 8.501254172 | AZ60: 1023 | BA60: 150834.8455 | BB60: 62.84785229 | BD60: 0 | BE60: 0 | BH60: 0 | BI60: 2825.802742 | BJ60: 1.177417809 | BL60: 0 | BM60: 0 | BP60: 168.83 | BQ60: 8860.491136 | BR60: 3.691871307 | BT60: 20403.01001 | BU60: 8.501254172
B61: 30 | C61: 1191.83 | H61: 30 | I61: 1023 | U61: 54 | V61: 54 | W61: 1191.83 | Y61: -1191.83 | AC61: 1023 | AE61: -1023 | AI61: 54 | AJ61: 1191.83 | AK61: 160887.1666 | AL61: 67.03631943 | AN61: 20403.01001 | AO61: 8.501254172 | AR61: 1191.83 | AS61: 158061.3639 | AT61: 65.85890162 | AV61: 20403.01001 | AW61: 8.501254172 | AZ61: 1023 | BA61: 151857.8455 | BB61: 63.27410229 | BD61: 0 | BE61: 0 | BH61: 0 | BI61: 2825.802742 | BJ61: 1.177417809 | BL61: 0 | BM61: 0 | BP61: 168.83 | BQ61: 9029.321136 | BR61: 3.76221714 | BT61: 20403.01001 | BU61: 8.501254172
B62: 31 | C62: 1191.83 | H62: 31 | I62: 1023 | U62: 55 | V62: 55 | W62: 1191.83 | Y62: -1191.83 | AC62: 1023 | AE62: -1023 | AI62: 55 | AJ62: 1191.83 | AK62: 162078.9966 | AL62: 67.53291526 | AN62: 20403.01001 | AO62: 8.501254172 | AR62: 1191.83 | AS62: 159253.1939 | AT62: 66.35549745 | AV62: 20403.01001 | AW62: 8.501254172 | AZ62: 1023 | BA62: 152880.8455 | BB62: 63.70035229 | BD62: 0 | BE62: 0 | BH62: 0 | BI62: 2825.802742 | BJ62: 1.177417809 | BL62: 0 | BM62: 0 | BP62: 168.83 | BQ62: 9198.151136 | BR62: 3.832562973 | BT62: 20403.01001 | BU62: 8.501254172
B63: 32 | C63: 1191.83 | H63: 32 | I63: 1023 | U63: 56 | V63: 56 | W63: 1191.83 | Y63: -1191.83 | AC63: 1023 | AE63: -1023 | AI63: 56 | AJ63: 1191.83 | AK63: 163270.8266 | AL63: 68.02951109 | AN63: 20403.01001 | AO63: 8.501254172 | AR63: 1191.83 | AS63: 160445.0239 | AT63: 66.85209328 | AV63: 20403.01001 | AW63: 8.501254172 | AZ63: 1023 | BA63: 153903.8455 | BB63: 64.12660229 | BD63: 0 | BE63: 0 | BH63: 0 | BI63: 2825.802742 | BJ63: 1.177417809 | BL63: 0 | BM63: 0 | BP63: 168.83 | BQ63: 9366.981136 | BR63: 3.902908807 | BT63: 20403.01001 | BU63: 8.501254172
B64: 33 | C64: 1191.83 | H64: 33 | I64: 1023 | U64: 57 | V64: 57 | W64: 1191.83 | Y64: -1191.83 | AC64: 1023 | AE64: -1023 | AI64: 57 | AJ64: 1191.83 | AK64: 164462.6566 | AL64: 68.52610693 | AN64: 20403.01001 | AO64: 8.501254172 | AR64: 1191.83 | AS64: 161636.8539 | AT64: 67.34868912 | AV64: 20403.01001 | AW64: 8.501254172 | AZ64: 1023 | BA64: 154926.8455 | BB64: 64.55285229 | BD64: 0 | BE64: 0 | BH64: 0 | BI64: 2825.802742 | BJ64: 1.177417809 | BL64: 0 | BM64: 0 | BP64: 168.83 | BQ64: 9535.811136 | BR64: 3.97325464 | BT64: 20403.01001 | BU64: 8.501254172
B65: 34 | C65: 1191.83 | H65: 34 | I65: 1023 | U65: 58 | V65: 58 | W65: 1191.83 | Y65: -1191.83 | AC65: 1023 | AE65: -1023 | AI65: 58 | AJ65: 1191.83 | AK65: 165654.4866 | AL65: 69.02270276 | AN65: 20403.01001 | AO65: 8.501254172 | AR65: 1191.83 | AS65: 162828.6839 | AT65: 67.84528495 | AV65: 20403.01001 | AW65: 8.501254172 | AZ65: 1023 | BA65: 155949.8455 | BB65: 64.97910229 | BD65: 0 | BE65: 0 | BH65: 0 | BI65: 2825.802742 | BJ65: 1.177417809 | BL65: 0 | BM65: 0 | BP65: 168.83 | BQ65: 9704.641136 | BR65: 4.043600473 | BT65: 20403.01001 | BU65: 8.501254172
B66: 35 | C66: 1191.83 | H66: 35 | I66: 1023 | U66: 59 | V66: 59 | W66: 1191.83 | Y66: -1191.83 | AC66: 1023 | AE66: -1023 | AI66: 59 | AJ66: 1191.83 | AK66: 166846.3166 | AL66: 69.51929859 | AN66: 20403.01001 | AO66: 8.501254172 | AR66: 1191.83 | AS66: 164020.5139 | AT66: 68.34188078 | AV66: 20403.01001 | AW66: 8.501254172 | AZ66: 1023 | BA66: 156972.8455 | BB66: 65.40535229 | BD66: 0 | BE66: 0 | BH66: 0 | BI66: 2825.802742 | BJ66: 1.177417809 | BL66: 0 | BM66: 0 | BP66: 168.83 | BQ66: 9873.471136 | BR66: 4.113946307 | BT66: 20403.01001 | BU66: 8.501254172
B67: 36 | C67: 1191.83 | H67: 36 | I67: 1023 | U67: 60 | V67: 60 | W67: 1191.83 | Y67: -1191.83 | AC67: 1023 | AE67: -1023 | AI67: 60 | AJ67: 1191.83 | AK67: =IF(AI67>$K$21,0,AK66+AJ67) -> 168038.1466 | AL67: =AK67*$E$20/12 -> 70.01589443 | AM67: =SUM(AL56:AL67) -> 807.4154081 | AN67: =IF(AI67>$K$21,0,AN66+AP67) -> 20505.02506 | AO67: =IF(AI67>$K$21,0,AN66*$E$20/12) -> 8.501254172 | AP67: =SUM(AO56:AO67) -> 102.0150501 | AR67: 1191.83 | AS67: =IF(AI67>$K$21,0,AS66+AR67) -> 165212.3439 | AT67: 68.83847662 | AU67: =SUM(AT56:AT67) -> 793.2863944 | AV67: =IF(AI67>$K$21,0,AV66+AX67) -> 20505.02506 | AW67: 8.501254172 | AX67: =SUM(AW56:AW67) -> 102.0150501 | AZ67: 1023 | BA67: 157995.8455 | BB67: 65.83160229 | BC67: =SUM(BB56:BB67) -> 761.8467274 | BD67: =IF(AI67>$K$21,0,BD66+BF67) -> 0 | BE67: 0 | BF67: =SUM(BE56:BE67) -> 0 | BH67: 0 | BI67: 2825.802742 | BJ67: 1.177417809 | BK67: =SUM(BJ56:BJ67) -> 14.12901371 | BL67: =IF(AI67>$K$21,0,BL66+BN67) -> 0 | BM67: 0 | BN67: =SUM(BM56:BM67) -> 0 | BP67: 168.83 | BQ67: 10042.30114 | BR67: 4.18429214 | BS67: =SUM(BR56:BR67) -> 45.56868068 | BT67: =IF(AI67>$K$21,0,BT66+BV67) -> 20505.02506 | BU67: 8.501254172 | BV67: =SUM(BU56:BU67) -> 102.0150501
B68: 37 | C68: 1191.83 | H68: 37 | I68: 1023 | U68: 61 | V68: 61 | W68: 1191.83 | Y68: -1191.83 | AC68: 1023 | AE68: -1023 | AI68: 61 | AJ68: 1191.83 | AK68: =IF(AI68>$K$21,0,AK67+AJ68+AM67) -> 170037.392 | AL68: 70.84891335 | AN68: 20505.02506 | AO68: 8.543760443 | AR68: 1191.83 | AS68: =IF(AI68>$K$21,0,AS67+AR68+AU67) -> 167197.4603 | AT68: 69.66560845 | AV68: =IF(AI68>$K$21,0,AV67) -> 20505.02506 | AW68: 8.543760443 | AZ68: 1023 | BA68: =IF(AI68>$K$21,0,BA67+AZ68+BC67) -> 159780.6922 | BB68: 66.57528842 | BD68: =IF(AI68>$K$21,0,BD67) -> 0 | BE68: 0 | BH68: 0 | BI68: =IF(AI68>$K$21,0,BI67+BH68+BK67) -> 2839.931756 | BJ68: 1.183304898 | BL68: =IF(AI68>$K$21,0,BL67) -> 0 | BM68: 0 | BP68: 168.83 | BQ68: =IF(AI68>$K$21,0,BQ67+BP68+BS67) -> 10256.69982 | BR68: 4.273624924 | BT68: =IF(AI68>$K$21,0,BT67) -> 20505.02506 | BU68: 8.543760443
B69: 38 | C69: 1191.83 | H69: 38 | I69: 1023 | U69: 62 | V69: 62 | W69: 1191.83 | Y69: -1191.83 | AC69: 1023 | AE69: -1023 | AI69: 62 | AJ69: 1191.83 | AK69: =AK68+AJ69 -> 171229.222 | AL69: 71.34550918 | AN69: 20505.02506 | AO69: 8.543760443 | AR69: 1191.83 | AS69: =IF(AI69>$K$21,0,AS68+AR69) -> 168389.2903 | AT69: 70.16220428 | AV69: 20505.02506 | AW69: 8.543760443 | AZ69: 1023 | BA69: 160803.6922 | BB69: 67.00153842 | BD69: 0 | BE69: 0 | BH69: 0 | BI69: 2839.931756 | BJ69: 1.183304898 | BL69: 0 | BM69: 0 | BP69: 168.83 | BQ69: 10425.52982 | BR69: 4.343970757 | BT69: 20505.02506 | BU69: 8.543760443
B70: 39 | C70: 1191.83 | H70: 39 | I70: 1023 | U70: 63 | V70: 63 | W70: 1191.83 | Y70: -1191.83 | AC70: 1023 | AE70: -1023 | AI70: 63 | AJ70: 1191.83 | AK70: 172421.052 | AL70: 71.84210501 | AN70: 20505.02506 | AO70: 8.543760443 | AR70: 1191.83 | AS70: 169581.1203 | AT70: 70.65880012 | AV70: 20505.02506 | AW70: 8.543760443 | AZ70: 1023 | BA70: 161826.6922 | BB70: 67.42778842 | BD70: 0 | BE70: 0 | BH70: 0 | BI70: 2839.931756 | BJ70: 1.183304898 | BL70: 0 | BM70: 0 | BP70: 168.83 | BQ70: 10594.35982 | BR70: 4.41431659 | BT70: 20505.02506 | BU70: 8.543760443
B71: 40 | C71: 1191.83 | H71: 40 | I71: 1023 | U71: 64 | V71: 64 | W71: 1191.83 | Y71: -1191.83 | AC71: 1023 | AE71: -1023 | AI71: 64 | AJ71: 1191.83 | AK71: 173612.882 | AL71: 72.33870085 | AN71: 20505.02506 | AO71: 8.543760443 | AR71: 1191.83 | AS71: 170772.9503 | AT71: 71.15539595 | AV71: 20505.02506 | AW71: 8.543760443 | AZ71: 1023 | BA71: 162849.6922 | BB71: 67.85403842 | BD71: 0 | BE71: 0 | BH71: 0 | BI71: 2839.931756 | BJ71: 1.183304898 | BL71: 0 | BM71: 0 | BP71: 168.83 | BQ71: 10763.18982 | BR71: 4.484662424 | BT71: 20505.02506 | BU71: 8.543760443
B72: 41 | C72: 1191.83 | H72: 41 | I72: 1023 | U72: 65 | V72: 65 | W72: =C96 -> 1191.83 | Y72: =-W72 -> -1191.83 | AC72: =I96 -> 1023 | AE72: =-AC72 -> -1023 | AI72: 65 | AJ72: 1191.83 | AK72: 174804.712 | AL72: =AK72*$E$20/12 -> 72.83529668 | AN72: 20505.02506 | AO72: 8.543760443 | AR72: =W72 -> 1191.83 | AS72: 171964.7803 | AT72: =AS72*$E$20/12 -> 71.65199178 | AV72: 20505.02506 | AW72: 8.543760443 | AZ72: =AC72 -> 1023 | BA72: 163872.6922 | BB72: =BA72*$E$20/12 -> 68.28028842 | BD72: 0 | BE72: 0 | BH72: =AJ72-W72 -> 0 | BI72: 2839.931756 | BJ72: =BI72*$E$20/12 -> 1.183304898 | BL72: 0 | BM72: 0 | BP72: =AJ72-AC72 -> 168.83 | BQ72: 10932.01982 | BR72: =BQ72*$E$20/12 -> 4.555008257 | BT72: 20505.02506 | BU72: 8.543760443
B73: 42 | C73: 1191.83 | H73: 42 | I73: 1023 | U73: 66 | V73: 66 | W73: 1191.83 | Y73: -1191.83 | AC73: 1023 | AE73: -1023 | AI73: 66 | AJ73: =IF(AI73>$K$21,0,IF(AC73>W73,AC73,W73)) -> 1191.83 | AK73: 175996.542 | AL73: 73.33189251 | AN73: =IF(AI73>$K$21,0,AN72) -> 20505.02506 | AO73: 8.543760443 | AR73: 1191.83 | AS73: 173156.6103 | AT73: 72.14858762 | AV73: 20505.02506 | AW73: 8.543760443 | AZ73: 1023 | BA73: 164895.6922 | BB73: 68.70653842 | BD73: 0 | BE73: 0 | BH73: 0 | BI73: 2839.931756 | BJ73: 1.183304898 | BL73: 0 | BM73: 0 | BP73: 168.83 | BQ73: 11100.84982 | BR73: 4.62535409 | BT73: 20505.02506 | BU73: =IF(AI73>$K$21,0,BT72*$E$20/12) -> 8.543760443
B74: 43 | C74: 1191.83 | H74: 43 | I74: 1023 | U74: 67 | V74: 67 | W74: 1191.83 | Y74: -1191.83 | AC74: 1023 | AE74: -1023 | AI74: 67 | AJ74: 1191.83 | AK74: 177188.372 | AL74: 73.82848835 | AN74: 20505.02506 | AO74: 8.543760443 | AR74: 1191.83 | AS74: 174348.4403 | AT74: 72.64518345 | AV74: 20505.02506 | AW74: 8.543760443 | AZ74: 1023 | BA74: 165918.6922 | BB74: 69.13278842 | BD74: 0 | BE74: 0 | BH74: 0 | BI74: 2839.931756 | BJ74: 1.183304898 | BL74: 0 | BM74: 0 | BP74: 168.83 | BQ74: 11269.67982 | BR74: 4.695699924 | BT74: 20505.02506 | BU74: 8.543760443
B75: 44 | C75: 1191.83 | H75: 44 | I75: 1023 | U75: 68 | V75: 68 | W75: 1191.83 | Y75: -1191.83 | AC75: 1023 | AE75: -1023 | AI75: 68 | AJ75: 1191.83 | AK75: 178380.202 | AL75: 74.32508418 | AN75: 20505.02506 | AO75: 8.543760443 | AR75: 1191.83 | AS75: 175540.2703 | AT75: 73.14177928 | AV75: 20505.02506 | AW75: 8.543760443 | AZ75: 1023 | BA75: 166941.6922 | BB75: 69.55903842 | BD75: 0 | BE75: 0 | BH75: 0 | BI75: 2839.931756 | BJ75: 1.183304898 | BL75: 0 | BM75: 0 | BP75: 168.83 | BQ75: 11438.50982 | BR75: 4.766045757 | BT75: 20505.02506 | BU75: 8.543760443
B76: 45 | C76: 1191.83 | H76: 45 | I76: 1023 | U76: 69 | V76: 69 | W76: 1191.83 | Y76: -1191.83 | AC76: 1023 | AE76: -1023 | AI76: 69 | AJ76: 1191.83 | AK76: 179572.032 | AL76: 74.82168001 | AN76: 20505.02506 | AO76: 8.543760443 | AR76: 1191.83 | AS76: 176732.1003 | AT76: 73.63837512 | AV76: 20505.02506 | AW76: 8.543760443 | AZ76: 1023 | BA76: 167964.6922 | BB76: 69.98528842 | BD76: 0 | BE76: 0 | BH76: 0 | BI76: 2839.931756 | BJ76: 1.183304898 | BL76: 0 | BM76: 0 | BP76: 168.83 | BQ76: 11607.33982 | BR76: 4.83639159 | BT76: 20505.02506 | BU76: 8.543760443
B77: 46 | C77: 1191.83 | H77: 46 | I77: 1023 | U77: 70 | V77: 70 | W77: 1191.83 | Y77: -1191.83 | AC77: 1023 | AE77: -1023 | AI77: 70 | AJ77: 1191.83 | AK77: 180763.862 | AL77: 75.31827585 | AN77: 20505.02506 | AO77: 8.543760443 | AR77: 1191.83 | AS77: 177923.9303 | AT77: 74.13497095 | AV77: 20505.02506 | AW77: 8.543760443 | AZ77: 1023 | BA77: 168987.6922 | BB77: 70.41153842 | BD77: 0 | BE77: 0 | BH77: 0 | BI77: 2839.931756 | BJ77: 1.183304898 | BL77: 0 | BM77: 0 | BP77: 168.83 | BQ77: 11776.16982 | BR77: 4.906737424 | BT77: 20505.02506 | BU77: 8.543760443
B78: 47 | C78: 1191.83 | H78: 47 | I78: 1023 | U78: 71 | V78: 71 | W78: 1191.83 | Y78: -1191.83 | AC78: 1023 | AE78: -1023 | AI78: 71 | AJ78: 1191.83 | AK78: 181955.692 | AL78: 75.81487168 | AN78: 20505.02506 | AO78: 8.543760443 | AR78: 1191.83 | AS78: 179115.7603 | AT78: 74.63156678 | AV78: 20505.02506 | AW78: 8.543760443 | AZ78: 1023 | BA78: 170010.6922 | BB78: 70.83778842 | BD78: 0 | BE78: 0 | BH78: 0 | BI78: 2839.931756 | BJ78: 1.183304898 | BL78: 0 | BM78: 0 | BP78: 168.83 | BQ78: 11944.99982 | BR78: 4.977083257 | BT78: 20505.02506 | BU78: 8.543760443
B79: 48 | C79: 1191.83 | H79: 48 | I79: 1023 | U79: 72 | V79: 72 | W79: 1191.83 | Y79: -1191.83 | AC79: 1023 | AE79: -1023 | AI79: 72 | AJ79: 1191.83 | AK79: =IF(AI79>$K$21,0,AK78+AJ79) -> 183147.522 | AL79: 76.31146751 | AM79: =SUM(AL68:AL79) -> 882.9622852 | AN79: =IF(AI79>$K$21,0,AN78+AP79) -> 20607.55019 | AO79: 8.543760443 | AP79: =SUM(AO68:AO79) -> 102.5251253 | AR79: 1191.83 | AS79: =IF(AI79>$K$21,0,AS78+AR79) -> 180307.5903 | AT79: 75.12816262 | AU79: =SUM(AT68:AT79) -> 868.7626264 | AV79: =IF(AI79>$K$21,0,AV78+AX79) -> 20607.55019 | AW79: 8.543760443 | AX79: =SUM(AW68:AW79) -> 102.5251253 | AZ79: 1023 | BA79: 171033.6922 | BB79: 71.26403842 | BC79: =SUM(BB68:BB79) -> 827.0359611 | BD79: =IF(AI79>$K$21,0,BD78+BF79) -> 0 | BE79: 0 | BF79: =SUM(BE68:BE79) -> 0 | BH79: 0 | BI79: 2839.931756 | BJ79: 1.183304898 | BK79: =SUM(BJ68:BJ79) -> 14.19965878 | BL79: =IF(AI79>$K$21,0,BL78+BN79) -> 0 | BM79: 0 | BN79: =SUM(BM68:BM79) -> 0 | BP79: 168.83 | BQ79: 12113.82982 | BR79: 5.04742909 | BS79: =SUM(BR68:BR79) -> 55.92632408 | BT79: =IF(AI79>$K$21,0,BT78+BV79) -> 20607.55019 | BU79: 8.543760443 | BV79: =SUM(BU68:BU79) -> 102.5251253
B80: 49 | C80: 1191.83 | H80: 49 | I80: 1023 | U80: 73 | V80: 73 | W80: 1191.83 | Y80: -1191.83 | AC80: 1023 | AE80: -1023 | AI80: 73 | AJ80: 1191.83 | AK80: =IF(AI80>$K$21,0,AK79+AJ80+AM79) -> 185222.3143 | AL80: 77.1759643 | AN80: 20607.55019 | AO80: 8.586479245 | AR80: 1191.83 | AS80: =IF(AI80>$K$21,0,AS79+AR80+AU79) -> 182368.1829 | AT80: 75.98674288 | AV80: =IF(AI80>$K$21,0,AV79) -> 20607.55019 | AW80: 8.586479245 | AZ80: 1023 | BA80: =IF(AI80>$K$21,0,BA79+AZ80+BC79) -> 172883.7282 | BB80: 72.03488674 | BD80: =IF(AI80>$K$21,0,BD79) -> 0 | BE80: 0 | BH80: 0 | BI80: =IF(AI80>$K$21,0,BI79+BH80+BK79) -> 2854.131415 | BJ80: 1.189221423 | BL80: =IF(AI80>$K$21,0,BL79) -> 0 | BM80: 0 | BP80: 168.83 | BQ80: =IF(AI80>$K$21,0,BQ79+BP80+BS79) -> 12338.58614 | BR80: 5.141077559 | BT80: =IF(AI80>$K$21,0,BT79) -> 20607.55019 | BU80: 8.586479245
B81: 50 | C81: 1191.83 | H81: 50 | I81: 1023 | U81: 74 | V81: 74 | W81: 1191.83 | Y81: -1191.83 | AC81: 1023 | AE81: -1023 | AI81: 74 | AJ81: 1191.83 | AK81: =AK80+AJ81 -> 186414.1443 | AL81: 77.67256013 | AN81: 20607.55019 | AO81: 8.586479245 | AR81: 1191.83 | AS81: =IF(AI81>$K$21,0,AS80+AR81) -> 183560.0129 | AT81: 76.48333871 | AV81: 20607.55019 | AW81: 8.586479245 | AZ81: 1023 | BA81: 173906.7282 | BB81: 72.46113674 | BD81: 0 | BE81: 0 | BH81: 0 | BI81: 2854.131415 | BJ81: 1.189221423 | BL81: 0 | BM81: 0 | BP81: 168.83 | BQ81: 12507.41614 | BR81: 5.211423392 | BT81: 20607.55019 | BU81: 8.586479245
B82: 51 | C82: 1191.83 | H82: 51 | I82: 1023 | U82: 75 | V82: 75 | W82: 1191.83 | Y82: -1191.83 | AC82: 1023 | AE82: -1023 | AI82: 75 | AJ82: 1191.83 | AK82: 187605.9743 | AL82: 78.16915597 | AN82: 20607.55019 | AO82: 8.586479245 | AR82: 1191.83 | AS82: 184751.8429 | AT82: 76.97993454 | AV82: 20607.55019 | AW82: 8.586479245 | AZ82: 1023 | BA82: 174929.7282 | BB82: 72.88738674 | BD82: 0 | BE82: 0 | BH82: 0 | BI82: 2854.131415 | BJ82: 1.189221423 | BL82: 0 | BM82: 0 | BP82: 168.83 | BQ82: 12676.24614 | BR82: 5.281769225 | BT82: 20607.55019 | BU82: 8.586479245
B83: 52 | C83: 1191.83 | H83: 52 | I83: 1023 | U83: 76 | V83: 76 | W83: 1191.83 | Y83: -1191.83 | AC83: 1023 | AE83: -1023 | AI83: 76 | AJ83: 1191.83 | AK83: 188797.8043 | AL83: 78.6657518 | AN83: 20607.55019 | AO83: 8.586479245 | AR83: 1191.83 | AS83: 185943.6729 | AT83: 77.47653038 | AV83: 20607.55019 | AW83: 8.586479245 | AZ83: 1023 | BA83: 175952.7282 | BB83: 73.31363674 | BD83: 0 | BE83: 0 | BH83: 0 | BI83: 2854.131415 | BJ83: 1.189221423 | BL83: 0 | BM83: 0 | BP83: 168.83 | BQ83: 12845.07614 | BR83: 5.352115059 | BT83: 20607.55019 | BU83: 8.586479245
B84: 53 | C84: 1191.83 | H84: 53 | I84: 1023 | U84: 77 | V84: 77 | W84: 1191.83 | Y84: -1191.83 | AC84: 1023 | AE84: -1023 | AI84: 77 | AJ84: 1191.83 | AK84: 189989.6343 | AL84: 79.16234763 | AN84: 20607.55019 | AO84: 8.586479245 | AR84: 1191.83 | AS84: 187135.5029 | AT84: 77.97312621 | AV84: 20607.55019 | AW84: 8.586479245 | AZ84: 1023 | BA84: 176975.7282 | BB84: 73.73988674 | BD84: 0 | BE84: 0 | BH84: 0 | BI84: 2854.131415 | BJ84: 1.189221423 | BL84: 0 | BM84: 0 | BP84: 168.83 | BQ84: 13013.90614 | BR84: 5.422460892 | BT84: 20607.55019 | BU84: 8.586479245
B85: 54 | C85: 1191.83 | H85: 54 | I85: 1023 | U85: 78 | V85: 78 | W85: 1191.83 | Y85: -1191.83 | AC85: 1023 | AE85: -1023 | AI85: 78 | AJ85: 1191.83 | AK85: 191181.4643 | AL85: 79.65894347 | AN85: 20607.55019 | AO85: 8.586479245 | AR85: 1191.83 | AS85: 188327.3329 | AT85: 78.46972204 | AV85: 20607.55019 | AW85: 8.586479245 | AZ85: 1023 | BA85: 177998.7282 | BB85: 74.16613674 | BD85: 0 | BE85: 0 | BH85: 0 | BI85: 2854.131415 | BJ85: 1.189221423 | BL85: 0 | BM85: 0 | BP85: 168.83 | BQ85: 13182.73614 | BR85: 5.492806725 | BT85: 20607.55019 | BU85: 8.586479245
B86: 55 | C86: 1191.83 | H86: 55 | I86: 1023 | U86: 79 | V86: 79 | W86: 1191.83 | Y86: -1191.83 | AC86: 1023 | AE86: -1023 | AI86: 79 | AJ86: 1191.83 | AK86: 192373.2943 | AL86: 80.1555393 | AN86: 20607.55019 | AO86: 8.586479245 | AR86: 1191.83 | AS86: 189519.1629 | AT86: 78.96631788 | AV86: 20607.55019 | AW86: 8.586479245 | AZ86: 1023 | BA86: 179021.7282 | BB86: 74.59238674 | BD86: 0 | BE86: 0 | BH86: 0 | BI86: 2854.131415 | BJ86: 1.189221423 | BL86: 0 | BM86: 0 | BP86: 168.83 | BQ86: 13351.56614 | BR86: 5.563152559 | BT86: 20607.55019 | BU86: 8.586479245
B87: 56 | C87: 1191.83 | H87: 56 | I87: 1023 | U87: 80 | V87: 80 | W87: 1191.83 | Y87: -1191.83 | AC87: 1023 | AE87: -1023 | AI87: 80 | AJ87: 1191.83 | AK87: 193565.1243 | AL87: 80.65213513 | AN87: 20607.55019 | AO87: 8.586479245 | AR87: 1191.83 | AS87: 190710.9929 | AT87: 79.46291371 | AV87: 20607.55019 | AW87: 8.586479245 | AZ87: 1023 | BA87: 180044.7282 | BB87: 75.01863674 | BD87: 0 | BE87: 0 | BH87: 0 | BI87: 2854.131415 | BJ87: 1.189221423 | BL87: 0 | BM87: 0 | BP87: 168.83 | BQ87: 13520.39614 | BR87: 5.633498392 | BT87: 20607.55019 | BU87: 8.586479245
B88: 57 | C88: 1191.83 | H88: 57 | I88: 1023 | U88: 81 | V88: 81 | W88: 1191.83 | Y88: -1191.83 | AC88: 1023 | AE88: -1023 | AI88: 81 | AJ88: 1191.83 | AK88: 194756.9543 | AL88: 81.14873097 | AN88: 20607.55019 | AO88: 8.586479245 | AR88: 1191.83 | AS88: 191902.8229 | AT88: 79.95950954 | AV88: 20607.55019 | AW88: 8.586479245 | AZ88: 1023 | BA88: 181067.7282 | BB88: 75.44488674 | BD88: 0 | BE88: 0 | BH88: 0 | BI88: 2854.131415 | BJ88: 1.189221423 | BL88: 0 | BM88: 0 | BP88: 168.83 | BQ88: 13689.22614 | BR88: 5.703844225 | BT88: 20607.55019 | BU88: 8.586479245
B89: 58 | C89: 1191.83 | H89: 58 | I89: 1023 | U89: 82 | V89: 82 | W89: 1191.83 | Y89: -1191.83 | AC89: 1023 | AE89: -1023 | AI89: 82 | AJ89: 1191.83 | AK89: 195948.7843 | AL89: 81.6453268 | AN89: 20607.55019 | AO89: 8.586479245 | AR89: 1191.83 | AS89: 193094.6529 | AT89: 80.45610538 | AV89: 20607.55019 | AW89: 8.586479245 | AZ89: 1023 | BA89: 182090.7282 | BB89: 75.87113674 | BD89: 0 | BE89: 0 | BH89: 0 | BI89: 2854.131415 | BJ89: 1.189221423 | BL89: 0 | BM89: 0 | BP89: 168.83 | BQ89: 13858.05614 | BR89: 5.774190059 | BT89: 20607.55019 | BU89: 8.586479245
B90: 59 | C90: 1191.83 | H90: 59 | I90: 1023 | U90: 83 | V90: 83 | W90: 1191.83 | Y90: -1191.83 | AC90: 1023 | AE90: -1023 | AI90: 83 | AJ90: 1191.83 | AK90: 197140.6143 | AL90: 82.14192263 | AN90: 20607.55019 | AO90: 8.586479245 | AR90: 1191.83 | AS90: 194286.4829 | AT90: 80.95270121 | AV90: 20607.55019 | AW90: 8.586479245 | AZ90: 1023 | BA90: 183113.7282 | BB90: 76.29738674 | BD90: 0 | BE90: 0 | BH90: 0 | BI90: 2854.131415 | BJ90: 1.189221423 | BL90: 0 | BM90: 0 | BP90: 168.83 | BQ90: 14026.88614 | BR90: 5.844535892 | BT90: 20607.55019 | BU90: 8.586479245
B91: 60 | C91: 1191.83 | H91: 60 | I91: 1023 | U91: 84 | V91: 84 | W91: 1191.83 | Y91: -1191.83 | AC91: 1023 | AE91: -1023 | AI91: 84 | AJ91: 1191.83 | AK91: =IF(AI91>$K$21,0,AK90+AJ91) -> 198332.4443 | AL91: 82.63851847 | AM91: =SUM(AL80:AL91) -> 958.8868966 | AN91: =IF(AI91>$K$21,0,AN90+AP91) -> 20710.58794 | AO91: 8.586479245 | AP91: =SUM(AO80:AO91) -> 103.0377509 | AR91: 1191.83 | AS91: =IF(AI91>$K$21,0,AS90+AR91) -> 195478.3129 | AT91: 81.44929704 | AU91: =SUM(AT80:AT91) -> 944.6162395 | AV91: =IF(AI91>$K$21,0,AV90+AX91) -> 20710.58794 | AW91: 8.586479245 | AX91: =SUM(AW80:AW91) -> 103.0377509 | AZ91: 1023 | BA91: 184136.7282 | BB91: 76.72363674 | BC91: =SUM(BB80:BB91) -> 892.5511409 | BD91: =IF(AI91>$K$21,0,BD90+BF91) -> 0 | BE91: 0 | BF91: =SUM(BE80:BE91) -> 0 | BH91: 0 | BI91: 2854.131415 | BJ91: 1.189221423 | BK91: =SUM(BJ80:BJ91) -> 14.27065707 | BL91: =IF(AI91>$K$21,0,BL90+BN91) -> 0 | BM91: 0 | BN91: =SUM(BM80:BM91) -> 0 | BP91: 168.83 | BQ91: 14195.71614 | BR91: 5.914881725 | BS91: =SUM(BR80:BR91) -> 66.3357557 | BT91: =IF(AI91>$K$21,0,BT90+BV91) -> 20710.58794 | BU91: 8.586479245 | BV91: =SUM(BU80:BU91) -> 103.0377509
B92: 61 | C92: 1191.83 | H92: 61 | I92: 1023 | U92: 85 | V92: 85 | W92: 1191.83 | Y92: -1191.83 | AC92: 1023 | AE92: -1023 | AI92: 85 | AJ92: 1191.83 | AK92: =IF(AI92>$K$21,0,AK91+AJ92+AM91) -> 200483.1612 | AL92: 83.53465051 | AN92: 20710.58794 | AO92: 8.629411641 | AR92: 1191.83 | AS92: =IF(AI92>$K$21,0,AS91+AR92+AU91) -> 197614.7591 | AT92: 82.33948298 | AV92: =IF(AI92>$K$21,0,AV91) -> 20710.58794 | AW92: 8.629411641 | AZ92: 1023 | BA92: =IF(AI92>$K$21,0,BA91+AZ92+BC91) -> 186052.2793 | BB92: 77.52178305 | BD92: =IF(AI92>$K$21,0,BD91) -> 0 | BE92: 0 | BH92: 0 | BI92: =IF(AI92>$K$21,0,BI91+BH92+BK91) -> 2868.402072 | BJ92: 1.19516753 | BL92: =IF(AI92>$K$21,0,BL91) -> 0 | BM92: 0 | BP92: 168.83 | BQ92: =IF(AI92>$K$21,0,BQ91+BP92+BS91) -> 14430.8819 | BR92: 6.012867457 | BT92: =IF(AI92>$K$21,0,BT91) -> 20710.58794 | BU92: 8.629411641
B93: 62 | C93: 1191.83 | H93: 62 | I93: 1023 | U93: 86 | V93: 86 | W93: 1191.83 | Y93: -1191.83 | AC93: 1023 | AE93: -1023 | AI93: 86 | AJ93: 1191.83 | AK93: =AK92+AJ93 -> 201674.9912 | AL93: 84.03124634 | AN93: 20710.58794 | AO93: 8.629411641 | AR93: 1191.83 | AS93: =IF(AI93>$K$21,0,AS92+AR93) -> 198806.5891 | AT93: 82.83607881 | AV93: 20710.58794 | AW93: 8.629411641 | AZ93: 1023 | BA93: 187075.2793 | BB93: 77.94803305 | BD93: 0 | BE93: 0 | BH93: 0 | BI93: 2868.402072 | BJ93: 1.19516753 | BL93: 0 | BM93: 0 | BP93: 168.83 | BQ93: 14599.7119 | BR93: 6.08321329 | BT93: 20710.58794 | BU93: 8.629411641
B94: 63 | C94: 1191.83 | H94: 63 | I94: 1023 | U94: 87 | V94: 87 | W94: 1191.83 | Y94: -1191.83 | AC94: 1023 | AE94: -1023 | AI94: 87 | AJ94: 1191.83 | AK94: 202866.8212 | AL94: 84.52784217 | AN94: 20710.58794 | AO94: 8.629411641 | AR94: 1191.83 | AS94: 199998.4191 | AT94: 83.33267464 | AV94: 20710.58794 | AW94: 8.629411641 | AZ94: 1023 | BA94: 188098.2793 | BB94: 78.37428305 | BD94: 0 | BE94: 0 | BH94: 0 | BI94: 2868.402072 | BJ94: 1.19516753 | BL94: 0 | BM94: 0 | BP94: 168.83 | BQ94: 14768.5419 | BR94: 6.153559124 | BT94: 20710.58794 | BU94: 8.629411641
B95: 64 | C95: 1191.83 | H95: 64 | I95: 1023 | U95: 88 | V95: 88 | W95: 1191.83 | Y95: -1191.83 | AC95: 1023 | AE95: -1023 | AI95: 88 | AJ95: 1191.83 | AK95: 204058.6512 | AL95: 85.02443801 | AN95: 20710.58794 | AO95: 8.629411641 | AR95: 1191.83 | AS95: 201190.2491 | AT95: 83.82927048 | AV95: 20710.58794 | AW95: =IF(AI95>$K$21,0,AV94*$E$20/12) -> 8.629411641 | AZ95: 1023 | BA95: =IF(AI95>$K$21,0,BA94+AZ95) -> 189121.2793 | BB95: 78.80053305 | BD95: 0 | BE95: =IF(AI95>$K$21,0,BD94*$E$20/12) -> 0 | BH95: 0 | BI95: =IF(V95>$K$21,0,BI94+BH95) -> 2868.402072 | BJ95: 1.19516753 | BL95: 0 | BM95: =IF(AI95>$K$21,0,BL94*$E$20/12) -> 0 | BP95: 168.83 | BQ95: =IF(AI95>$K$21,0,BQ94+BP95) -> 14937.3719 | BR95: 6.223904957 | BT95: 20710.58794 | BU95: 8.629411641
B96: 65 | C96: 1191.83 | H96: 65 | I96: 1023 | U96: 89 | V96: 89 | W96: 1191.83 | Y96: -1191.83 | AC96: 1023 | AE96: -1023 | AI96: 89 | AJ96: 1191.83 | AK96: 205250.4812 | AL96: 85.52103384 | AN96: 20710.58794 | AO96: 8.629411641 | AR96: 1191.83 | AS96: 202382.0791 | AT96: 84.32586631 | AV96: 20710.58794 | AW96: 8.629411641 | AZ96: 1023 | BA96: 190144.2793 | BB96: 79.22678305 | BD96: 0 | BE96: 0 | BH96: 0 | BI96: 2868.402072 | BJ96: 1.19516753 | BL96: 0 | BM96: 0 | BP96: 168.83 | BQ96: 15106.2019 | BR96: 6.29425079 | BT96: 20710.58794 | BU96: 8.629411641
B97: 66 | C97: 1191.83 | H97: 66 | I97: 1023 | U97: 90 | V97: 90 | W97: 1191.83 | Y97: -1191.83 | AC97: 1023 | AE97: -1023 | AI97: 90 | AJ97: 1191.83 | AK97: 206442.3112 | AL97: 86.01762967 | AN97: 20710.58794 | AO97: 8.629411641 | AR97: 1191.83 | AS97: 203573.9091 | AT97: 84.82246214 | AV97: 20710.58794 | AW97: 8.629411641 | AZ97: 1023 | BA97: 191167.2793 | BB97: 79.65303305 | BD97: 0 | BE97: 0 | BH97: 0 | BI97: 2868.402072 | BJ97: 1.19516753 | BL97: 0 | BM97: 0 | BP97: 168.83 | BQ97: 15275.0319 | BR97: 6.364596624 | BT97: 20710.58794 | BU97: 8.629411641
B98: 67 | C98: =IF(B98>$I$21,0,IF(AND(D98<>C97,D98<>0),D98,C97)) -> 1191.83 | H98: 67 | I98: =IF(H98>$J$21,0,IF(AND(J98<>I97,J98<>0),J98,I97)) -> 1023 | U98: 91 | V98: 91 | W98: 1191.83 | Y98: -1191.83 | AC98: 1023 | AE98: -1023 | AI98: 91 | AJ98: 1191.83 | AK98: 207634.1412 | AL98: 86.51422551 | AN98: 20710.58794 | AO98: 8.629411641 | AR98: 1191.83 | AS98: 204765.7391 | AT98: 85.31905798 | AV98: 20710.58794 | AW98: 8.629411641 | AZ98: 1023 | BA98: 192190.2793 | BB98: 80.07928305 | BD98: 0 | BE98: 0 | BH98: 0 | BI98: 2868.402072 | BJ98: 1.19516753 | BL98: 0 | BM98: 0 | BP98: 168.83 | BQ98: 15443.8619 | BR98: 6.434942457 | BT98: 20710.58794 | BU98: 8.629411641
B99: 68 | C99: 1191.83 | H99: 68 | I99: 1023 | U99: 92 | V99: 92 | W99: 1191.83 | Y99: -1191.83 | AC99: 1023 | AE99: -1023 | AI99: 92 | AJ99: 1191.83 | AK99: 208825.9712 | AL99: 87.01082134 | AN99: 20710.58794 | AO99: 8.629411641 | AR99: 1191.83 | AS99: 205957.5691 | AT99: 85.81565381 | AV99: 20710.58794 | AW99: 8.629411641 | AZ99: 1023 | BA99: 193213.2793 | BB99: 80.50553305 | BD99: 0 | BE99: 0 | BH99: 0 | BI99: 2868.402072 | BJ99: 1.19516753 | BL99: 0 | BM99: 0 | BP99: 168.83 | BQ99: 15612.6919 | BR99: 6.50528829 | BT99: 20710.58794 | BU99: 8.629411641
B100: 69 | C100: 1191.83 | H100: 69 | I100: 1023 | U100: 93 | V100: 93 | W100: 1191.83 | Y100: -1191.83 | AC100: 1023 | AE100: -1023 | AI100: 93 | AJ100: 1191.83 | AK100: 210017.8012 | AL100: 87.50741717 | AN100: 20710.58794 | AO100: 8.629411641 | AR100: 1191.83 | AS100: 207149.3991 | AT100: 86.31224964 | AV100: 20710.58794 | AW100: 8.629411641 | AZ100: 1023 | BA100: 194236.2793 | BB100: 80.93178305 | BD100: 0 | BE100: 0 | BH100: 0 | BI100: 2868.402072 | BJ100: 1.19516753 | BL100: 0 | BM100: 0 | BP100: 168.83 | BQ100: 15781.5219 | BR100: 6.575634124 | BT100: 20710.58794 | BU100: 8.629411641
B101: 70 | C101: 1191.83 | E101: ATTENTION Cet applicatif suppose que la totalité des fonds soit mise à disposition en une seule fois. Avec un investissement de type"VEFA" qui génère plusieurs déblocages de fonds successifs en fonction de l'avancement des travaux les résultats obtenus en valeurs absolues ne seront donc pax exacts. Mais, s'agissant de comparer deux offres concurrentes, en valeurs relatives, l'orientation préconisée dudit résultat restera toujours fiable et pertinente. | H101: 70 | I101: 1023 | U101: 94 | V101: 94 | W101: 1191.83 | Y101: -1191.83 | AC101: 1023 | AE101: -1023 | AI101: 94 | AJ101: 1191.83 | AK101: 211209.6312 | AL101: 88.00401301 | AN101: 20710.58794 | AO101: 8.629411641 | AR101: 1191.83 | AS101: 208341.2291 | AT101: 86.80884548 | AV101: 20710.58794 | AW101: 8.629411641 | AZ101: 1023 | BA101: 195259.2793 | BB101: 81.35803305 | BD101: 0 | BE101: 0 | BH101: 0 | BI101: 2868.402072 | BJ101: 1.19516753 | BL101: 0 | BM101: 0 | BP101: 168.83 | BQ101: 15950.3519 | BR101: 6.645979957 | BT101: 20710.58794 | BU101: 8.629411641
B102: 71 | C102: 1191.83 | H102: 71 | I102: 1023 | U102: 95 | V102: 95 | W102: 1191.83 | Y102: -1191.83 | AC102: 1023 | AE102: -1023 | AI102: 95 | AJ102: 1191.83 | AK102: 212401.4612 | AL102: 88.50060884 | AN102: 20710.58794 | AO102: 8.629411641 | AR102: 1191.83 | AS102: 209533.0591 | AT102: 87.30544131 | AV102: 20710.58794 | AW102: 8.629411641 | AZ102: 1023 | BA102: 196282.2793 | BB102: 81.78428305 | BD102: 0 | BE102: 0 | BH102: 0 | BI102: 2868.402072 | BJ102: 1.19516753 | BL102: 0 | BM102: 0 | BP102: 168.83 | BQ102: 16119.1819 | BR102: 6.71632579 | BT102: 20710.58794 | BU102: 8.629411641
B103: 72 | C103: 1191.83 | H103: 72 | I103: 1023 | U103: 96 | V103: 96 | W103: 1191.83 | Y103: -1191.83 | AC103: 1023 | AE103: -1023 | AI103: 96 | AJ103: 1191.83 | AK103: =IF(AI103>$K$21,0,AK102+AJ103) -> 213593.2912 | AL103: 88.99720467 | AM103: =SUM(AL92:AL103) -> 1035.191131 | AN103: =IF(AI103>$K$21,0,AN102+AP103) -> 20814.14088 | AO103: 8.629411641 | AP103: =SUM(AO92:AO103) -> 103.5529397 | AR103: 1191.83 | AS103: =IF(AI103>$K$21,0,AS102+AR103) -> 210724.8891 | AT103: 87.80203714 | AU103: =SUM(AT92:AT103) -> 1020.849121 | AV103: =IF(AI103>$K$21,0,AV102+AX103) -> 20814.14088 | AW103: 8.629411641 | AX103: =SUM(AW92:AW103) -> 103.5529397 | AZ103: 1023 | BA103: 197305.2793 | BB103: 82.21053305 | BC103: =SUM(BB92:BB103) -> 958.3938966 | BD103: =IF(AI103>$K$21,0,BD102+BF103) -> 0 | BE103: 0 | BF103: =SUM(BE92:BE103) -> 0 | BH103: 0 | BI103: 2868.402072 | BJ103: 1.19516753 | BK103: =SUM(BJ92:BJ103) -> 14.34201036 | BL103: =IF(AI103>$K$21,0,BL102+BN103) -> 0 | BM103: 0 | BN103: =SUM(BM92:BM103) -> 0 | BP103: 168.83 | BQ103: 16288.0119 | BR103: 6.786671624 | BS103: =SUM(BR92:BR103) -> 76.79723448 | BT103: =IF(AI103>$K$21,0,BT102+BV103) -> 20814.14088 | BU103: 8.629411641 | BV103: =SUM(BU92:BU103) -> 103.5529397
B104: 73 | C104: 1191.83 | H104: 73 | I104: 1023 | U104: 97 | V104: 97 | W104: 1191.83 | Y104: -1191.83 | AC104: 1023 | AE104: -1023 | AI104: 97 | AJ104: 1191.83 | AK104: =IF(AI104>$K$21,0,AK103+AJ104+AM103) -> 215820.3123 | AL104: 89.92513014 | AN104: 20814.14088 | AO104: 8.672558699 | AR104: 1191.83 | AS104: =IF(AI104>$K$21,0,AS103+AR104+AU103) -> 212937.5683 | AT104: 88.72398678 | AV104: =IF(AI104>$K$21,0,AV103) -> 20814.14088 | AW104: 8.672558699 | AZ104: 1023 | BA104: =IF(AI104>$K$21,0,BA103+AZ104+BC103) -> 199286.6732 | BB104: 83.03611384 | BD104: =IF(AI104>$K$21,0,BD103) -> 0 | BE104: 0 | BH104: 0 | BI104: =IF(AI104>$K$21,0,BI103+BH104+BK103) -> 2882.744082 | BJ104: 1.201143368 | BL104: =IF(AI104>$K$21,0,BL103) -> 0 | BM104: 0 | BP104: 168.83 | BQ104: =IF(AI104>$K$21,0,BQ103+BP104+BS103) -> 16533.63913 | BR104: 6.889016305 | BT104: =IF(AI104>$K$21,0,BT103) -> 20814.14088 | BU104: 8.672558699
B105: 74 | C105: 1191.83 | H105: 74 | I105: 1023 | U105: 98 | V105: 98 | W105: 1191.83 | Y105: -1191.83 | AC105: 1023 | AE105: -1023 | AI105: 98 | AJ105: 1191.83 | AK105: =AK104+AJ105 -> 217012.1423 | AL105: 90.42172598 | AN105: 20814.14088 | AO105: 8.672558699 | AR105: 1191.83 | AS105: =IF(AI105>$K$21,0,AS104+AR105) -> 214129.3983 | AT105: 89.22058261 | AV105: 20814.14088 | AW105: 8.672558699 | AZ105: 1023 | BA105: 200309.6732 | BB105: 83.46236384 | BD105: 0 | BE105: 0 | BH105: 0 | BI105: 2882.744082 | BJ105: 1.201143368 | BL105: 0 | BM105: 0 | BP105: 168.83 | BQ105: 16702.46913 | BR105: 6.959362138 | BT105: 20814.14088 | BU105: 8.672558699
B106: 75 | C106: 1191.83 | H106: 75 | I106: 1023 | U106: 99 | V106: 99 | W106: 1191.83 | Y106: -1191.83 | AC106: 1023 | AE106: -1023 | AI106: 99 | AJ106: 1191.83 | AK106: 218203.9723 | AL106: 90.91832181 | AN106: 20814.14088 | AO106: 8.672558699 | AR106: 1191.83 | AS106: 215321.2283 | AT106: 89.71717844 | AV106: 20814.14088 | AW106: 8.672558699 | AZ106: 1023 | BA106: 201332.6732 | BB106: 83.88861384 | BD106: 0 | BE106: 0 | BH106: 0 | BI106: 2882.744082 | BJ106: 1.201143368 | BL106: 0 | BM106: 0 | BP106: 168.83 | BQ106: 16871.29913 | BR106: 7.029707971 | BT106: 20814.14088 | BU106: 8.672558699
B107: 76 | C107: 1191.83 | H107: 76 | I107: 1023 | U107: 100 | V107: 100 | W107: 1191.83 | Y107: -1191.83 | AC107: 1023 | AE107: -1023 | AI107: 100 | AJ107: 1191.83 | AK107: 219395.8023 | AL107: 91.41491764 | AN107: 20814.14088 | AO107: 8.672558699 | AR107: 1191.83 | AS107: 216513.0583 | AT107: 90.21377428 | AV107: 20814.14088 | AW107: 8.672558699 | AZ107: 1023 | BA107: 202355.6732 | BB107: 84.31486384 | BD107: 0 | BE107: 0 | BH107: 0 | BI107: 2882.744082 | BJ107: 1.201143368 | BL107: 0 | BM107: 0 | BP107: 168.83 | BQ107: 17040.12913 | BR107: 7.100053805 | BT107: 20814.14088 | BU107: 8.672558699
B108: 77 | C108: 1191.83 | H108: 77 | I108: 1023 | U108: 101 | V108: 101 | W108: 1191.83 | Y108: -1191.83 | AC108: 1023 | AE108: -1023 | AI108: 101 | AJ108: 1191.83 | AK108: 220587.6323 | AL108: 91.91151348 | AN108: 20814.14088 | AO108: 8.672558699 | AR108: 1191.83 | AS108: 217704.8883 | AT108: 90.71037011 | AV108: 20814.14088 | AW108: 8.672558699 | AZ108: 1023 | BA108: 203378.6732 | BB108: 84.74111384 | BD108: 0 | BE108: 0 | BH108: 0 | BI108: 2882.744082 | BJ108: 1.201143368 | BL108: 0 | BM108: 0 | BP108: 168.83 | BQ108: 17208.95913 | BR108: 7.170399638 | BT108: 20814.14088 | BU108: 8.672558699
B109: 78 | C109: 1191.83 | H109: 78 | I109: 1023 | U109: 102 | V109: 102 | W109: 1191.83 | Y109: -1191.83 | AC109: 1023 | AE109: -1023 | AI109: 102 | AJ109: 1191.83 | AK109: 221779.4623 | AL109: 92.40810931 | AN109: 20814.14088 | AO109: 8.672558699 | AR109: 1191.83 | AS109: 218896.7183 | AT109: 91.20696594 | AV109: 20814.14088 | AW109: 8.672558699 | AZ109: 1023 | BA109: 204401.6732 | BB109: 85.16736384 | BD109: 0 | BE109: 0 | BH109: 0 | BI109: 2882.744082 | BJ109: 1.201143368 | BL109: 0 | BM109: 0 | BP109: 168.83 | BQ109: 17377.78913 | BR109: 7.240745471 | BT109: 20814.14088 | BU109: 8.672558699
B110: 79 | C110: 1191.83 | H110: 79 | I110: 1023 | U110: 103 | V110: 103 | W110: 1191.83 | Y110: -1191.83 | AC110: 1023 | AE110: -1023 | AI110: 103 | AJ110: 1191.83 | AK110: 222971.2923 | AL110: 92.90470514 | AN110: 20814.14088 | AO110: 8.672558699 | AR110: 1191.83 | AS110: 220088.5483 | AT110: 91.70356178 | AV110: 20814.14088 | AW110: 8.672558699 | AZ110: 1023 | BA110: 205424.6732 | BB110: 85.59361384 | BD110: 0 | BE110: 0 | BH110: 0 | BI110: 2882.744082 | BJ110: 1.201143368 | BL110: 0 | BM110: 0 | BP110: 168.83 | BQ110: 17546.61913 | BR110: 7.311091305 | BT110: 20814.14088 | BU110: 8.672558699
B111: 80 | C111: 1191.83 | H111: 80 | I111: 1023 | U111: 104 | V111: 104 | W111: 1191.83 | Y111: -1191.83 | AC111: 1023 | AE111: -1023 | AI111: 104 | AJ111: 1191.83 | AK111: 224163.1223 | AL111: 93.40130098 | AN111: 20814.14088 | AO111: 8.672558699 | AR111: 1191.83 | AS111: 221280.3783 | AT111: 92.20015761 | AV111: 20814.14088 | AW111: 8.672558699 | AZ111: 1023 | BA111: 206447.6732 | BB111: 86.01986384 | BD111: 0 | BE111: 0 | BH111: 0 | BI111: 2882.744082 | BJ111: 1.201143368 | BL111: 0 | BM111: 0 | BP111: 168.83 | BQ111: 17715.44913 | BR111: 7.381437138 | BT111: 20814.14088 | BU111: 8.672558699
B112: 81 | C112: 1191.83 | H112: 81 | I112: 1023 | U112: 105 | V112: 105 | W112: 1191.83 | Y112: -1191.83 | AC112: 1023 | AE112: -1023 | AI112: 105 | AJ112: 1191.83 | AK112: 225354.9523 | AL112: 93.89789681 | AN112: 20814.14088 | AO112: 8.672558699 | AR112: 1191.83 | AS112: 222472.2083 | AT112: 92.69675344 | AV112: 20814.14088 | AW112: 8.672558699 | AZ112: 1023 | BA112: 207470.6732 | BB112: 86.44611384 | BD112: 0 | BE112: 0 | BH112: 0 | BI112: 2882.744082 | BJ112: 1.201143368 | BL112: 0 | BM112: 0 | BP112: 168.83 | BQ112: 17884.27913 | BR112: 7.451782971 | BT112: 20814.14088 | BU112: 8.672558699
B113: 82 | C113: 1191.83 | H113: 82 | I113: 1023 | U113: 106 | V113: 106 | W113: 1191.83 | Y113: -1191.83 | AC113: 1023 | AE113: -1023 | AI113: 106 | AJ113: 1191.83 | AK113: 226546.7823 | AL113: 94.39449264 | AN113: 20814.14088 | AO113: 8.672558699 | AR113: 1191.83 | AS113: 223664.0383 | AT113: 93.19334928 | AV113: 20814.14088 | AW113: 8.672558699 | AZ113: 1023 | BA113: 208493.6732 | BB113: 86.87236384 | BD113: 0 | BE113: 0 | BH113: 0 | BI113: 2882.744082 | BJ113: 1.201143368 | BL113: 0 | BM113: 0 | BP113: 168.83 | BQ113: 18053.10913 | BR113: 7.522128805 | BT113: 20814.14088 | BU113: 8.672558699
B114: 83 | C114: 1191.83 | H114: 83 | I114: 1023 | U114: 107 | V114: 107 | W114: 1191.83 | Y114: -1191.83 | AC114: 1023 | AE114: -1023 | AI114: 107 | AJ114: 1191.83 | AK114: 227738.6123 | AL114: 94.89108848 | AN114: 20814.14088 | AO114: 8.672558699 | AR114: 1191.83 | AS114: 224855.8683 | AT114: 93.68994511 | AV114: 20814.14088 | AW114: 8.672558699 | AZ114: 1023 | BA114: 209516.6732 | BB114: 87.29861384 | BD114: 0 | BE114: 0 | BH114: 0 | BI114: 2882.744082 | BJ114: 1.201143368 | BL114: 0 | BM114: 0 | BP114: 168.83 | BQ114: 18221.93913 | BR114: 7.592474638 | BT114: 20814.14088 | BU114: 8.672558699
B115: 84 | C115: 1191.83 | E115: ATTENTION Si vous avez plus de deux offres de prêts à comparer, à chaque simulation il suffit de conserver la plus intéressante et de remplacer celle qui est la plus chère par une nouvelle à comparer….et ainsi de suite. In fine vous obtiendrez le plan de financement financièrement le plus intéressant. | H115: 84 | I115: 1023 | U115: 108 | V115: 108 | W115: 1191.83 | Y115: -1191.83 | AC115: 1023 | AE115: -1023 | AI115: 108 | AJ115: 1191.83 | AK115: =IF(AI115>$K$21,0,AK114+AJ115) -> 228930.4423 | AL115: 95.38768431 | AM115: =SUM(AL104:AL115) -> 1111.876887 | AN115: =IF(AI115>$K$21,0,AN114+AP115) -> 20918.21158 | AO115: 8.672558699 | AP115: =SUM(AO104:AO115) -> 104.0707044 | AR115: 1191.83 | AS115: =IF(AI115>$K$21,0,AS114+AR115) -> 226047.6983 | AT115: 94.18654094 | AU115: =SUM(AT104:AT115) -> 1097.463166 | AV115: =IF(AI115>$K$21,0,AV114+AX115) -> 20918.21158 | AW115: 8.672558699 | AX115: =SUM(AW104:AW115) -> 104.0707044 | AZ115: 1023 | BA115: 210539.6732 | BB115: 87.72486384 | BC115: =SUM(BB104:BB115) -> 1024.565866 | BD115: =IF(AI115>$K$21,0,BD114+BF115) -> 0 | BE115: 0 | BF115: =SUM(BE104:BE115) -> 0 | BH115: 0 | BI115: 2882.744082 | BJ115: 1.201143368 | BK115: =SUM(BJ104:BJ115) -> 14.41372041 | BL115: =IF(AI115>$K$21,0,BL114+BN115) -> 0 | BM115: 0 | BN115: =SUM(BM104:BM115) -> 0 | BP115: 168.83 | BQ115: 18390.76913 | BR115: 7.662820471 | BS115: =SUM(BR104:BR115) -> 87.31102066 | BT115: =IF(AI115>$K$21,0,BT114+BV115) -> 20918.21158 | BU115: 8.672558699 | BV115: =SUM(BU104:BU115) -> 104.0707044
B116: 85 | C116: 1191.83 | H116: 85 | I116: 1023 | U116: 109 | V116: 109 | W116: 1191.83 | Y116: -1191.83 | AC116: 1023 | AE116: -1023 | AI116: 109 | AJ116: 1191.83 | AK116: =IF(AI116>$K$21,0,AK115+AJ116+AM115) -> 231234.1492 | AL116: 96.34756218 | AN116: 20918.21158 | AO116: 8.715921493 | AR116: 1191.83 | AS116: =IF(AI116>$K$21,0,AS115+AR116+AU115) -> 228336.9914 | AT116: 95.1404131 | AV116: =IF(AI116>$K$21,0,AV115) -> 20918.21158 | AW116: 8.715921493 | AZ116: 1023 | BA116: =IF(AI116>$K$21,0,BA115+AZ116+BC115) -> 212587.2391 | BB116: 88.57801628 | BD116: =IF(AI116>$K$21,0,BD115) -> 0 | BE116: 0 | BH116: 0 | BI116: =IF(AI116>$K$21,0,BI115+BH116+BK115) -> 2897.157803 | BJ116: 1.207149084 | BL116: =IF(AI116>$K$21,0,BL115) -> 0 | BM116: 0 | BP116: 168.83 | BQ116: =IF(AI116>$K$21,0,BQ115+BP116+BS115) -> 18646.91015 | BR116: 7.769545897 | BT116: =IF(AI116>$K$21,0,BT115) -> 20918.21158 | BU116: 8.715921493
B117: 86 | C117: 1191.83 | H117: 86 | I117: 1023 | U117: 110 | V117: 110 | W117: 1191.83 | Y117: -1191.83 | AC117: 1023 | AE117: -1023 | AI117: 110 | AJ117: 1191.83 | AK117: =AK116+AJ117 -> 232425.9792 | AL117: 96.84415801 | AN117: 20918.21158 | AO117: 8.715921493 | AR117: 1191.83 | AS117: =IF(AI117>$K$21,0,AS116+AR117) -> 229528.8214 | AT117: 95.63700893 | AV117: 20918.21158 | AW117: 8.715921493 | AZ117: 1023 | BA117: 213610.2391 | BB117: 89.00426628 | BD117: 0 | BE117: 0 | BH117: 0 | BI117: 2897.157803 | BJ117: 1.207149084 | BL117: 0 | BM117: 0 | BP117: 168.83 | BQ117: 18815.74015 | BR117: 7.83989173 | BT117: 20918.21158 | BU117: 8.715921493
B118: 87 | C118: 1191.83 | H118: 87 | I118: 1023 | U118: 111 | V118: 111 | W118: 1191.83 | Y118: -1191.83 | AC118: 1023 | AE118: -1023 | AI118: 111 | AJ118: 1191.83 | AK118: 233617.8092 | AL118: 97.34075385 | AN118: 20918.21158 | AO118: 8.715921493 | AR118: 1191.83 | AS118: 230720.6514 | AT118: 96.13360476 | AV118: 20918.21158 | AW118: 8.715921493 | AZ118: 1023 | BA118: 214633.2391 | BB118: 89.43051628 | BD118: 0 | BE118: 0 | BH118: 0 | BI118: 2897.157803 | BJ118: 1.207149084 | BL118: 0 | BM118: 0 | BP118: 168.83 | BQ118: 18984.57015 | BR118: 7.910237563 | BT118: 20918.21158 | BU118: 8.715921493
B119: 88 | C119: 1191.83 | H119: 88 | I119: 1023 | U119: 112 | V119: 112 | W119: 1191.83 | Y119: -1191.83 | AC119: 1023 | AE119: -1023 | AI119: 112 | AJ119: 1191.83 | AK119: 234809.6392 | AL119: 97.83734968 | AN119: 20918.21158 | AO119: 8.715921493 | AR119: 1191.83 | AS119: 231912.4814 | AT119: 96.6302006 | AV119: 20918.21158 | AW119: 8.715921493 | AZ119: 1023 | BA119: 215656.2391 | BB119: 89.85676628 | BD119: 0 | BE119: 0 | BH119: 0 | BI119: 2897.157803 | BJ119: 1.207149084 | BL119: 0 | BM119: 0 | BP119: 168.83 | BQ119: 19153.40015 | BR119: 7.980583397 | BT119: 20918.21158 | BU119: 8.715921493
B120: 89 | C120: 1191.83 | H120: 89 | I120: 1023 | U120: 113 | V120: 113 | W120: 1191.83 | Y120: -1191.83 | AC120: 1023 | AE120: -1023 | AI120: 113 | AJ120: 1191.83 | AK120: 236001.4692 | AL120: 98.33394551 | AN120: 20918.21158 | AO120: 8.715921493 | AR120: 1191.83 | AS120: 233104.3114 | AT120: 97.12679643 | AV120: 20918.21158 | AW120: 8.715921493 | AZ120: 1023 | BA120: 216679.2391 | BB120: 90.28301628 | BD120: 0 | BE120: 0 | BH120: 0 | BI120: 2897.157803 | BJ120: 1.207149084 | BL120: 0 | BM120: 0 | BP120: 168.83 | BQ120: 19322.23015 | BR120: 8.05092923 | BT120: 20918.21158 | BU120: 8.715921493
B121: 90 | C121: 1191.83 | H121: 90 | I121: 1023 | M121: =IF(AND($J$9>0,H121=($J$24+1),I121>=J120),"ERREUR ECHEANCE",IF(AND($J$9>0,H121=$J$24),"Échéance Prêt relais","")) ->  | N121: =IF(OR(H121=$I$24+1,H121=$J$24+1),"Renseigner de nouveau l'échéance totale des prêts amortissables toutes assurances comprises",IF(OR(K121<>"",M121<>""),"Échéance à saisir = celle du prêt amortissable avec ADI + capital prêt relais + intérêts concernés","")) ->  | U121: 114 | V121: 114 | W121: 1191.83 | Y121: -1191.83 | AC121: 1023 | AE121: -1023 | AI121: 114 | AJ121: 1191.83 | AK121: 237193.2992 | AL121: 98.83054135 | AN121: 20918.21158 | AO121: 8.715921493 | AR121: 1191.83 | AS121: 234296.1414 | AT121: 97.62339226 | AV121: 20918.21158 | AW121: 8.715921493 | AZ121: 1023 | BA121: 217702.2391 | BB121: 90.70926628 | BD121: 0 | BE121: 0 | BH121: 0 | BI121: 2897.157803 | BJ121: 1.207149084 | BL121: 0 | BM121: 0 | BP121: 168.83 | BQ121: 19491.06015 | BR121: 8.121275063 | BT121: 20918.21158 | BU121: 8.715921493
B122: 91 | C122: 1191.83 | H122: 91 | I122: 1023 | K122: =IF(AND($I$9>0,B122=($I$24+1),C122>=D121),"ERREUR ECHEANCE",IF(AND($I$9>0,H122=$I$24),"Échéance Prêt relais","")) ->  | U122: 115 | V122: 115 | W122: 1191.83 | Y122: -1191.83 | AC122: 1023 | AE122: -1023 | AI122: 115 | AJ122: 1191.83 | AK122: 238385.1292 | AL122: 99.32713718 | AN122: 20918.21158 | AO122: 8.715921493 | AR122: 1191.83 | AS122: 235487.9714 | AT122: 98.1199881 | AV122: 20918.21158 | AW122: 8.715921493 | AZ122: 1023 | BA122: 218725.2391 | BB122: 91.13551628 | BD122: 0 | BE122: 0 | BH122: 0 | BI122: 2897.157803 | BJ122: 1.207149084 | BL122: 0 | BM122: 0 | BP122: 168.83 | BQ122: 19659.89015 | BR122: 8.191620897 | BT122: 20918.21158 | BU122: 8.715921493
B123: 92 | C123: 1191.83 | H123: 92 | I123: 1023 | U123: 116 | V123: 116 | W123: 1191.83 | Y123: -1191.83 | AC123: 1023 | AE123: -1023 | AI123: 116 | AJ123: 1191.83 | AK123: 239576.9592 | AL123: 99.82373301 | AN123: 20918.21158 | AO123: 8.715921493 | AR123: 1191.83 | AS123: 236679.8014 | AT123: 98.61658393 | AV123: 20918.21158 | AW123: 8.715921493 | AZ123: 1023 | BA123: 219748.2391 | BB123: 91.56176628 | BD123: 0 | BE123: 0 | BH123: 0 | BI123: 2897.157803 | BJ123: 1.207149084 | BL123: 0 | BM123: 0 | BP123: 168.83 | BQ123: 19828.72015 | BR123: 8.26196673 | BT123: 20918.21158 | BU123: 8.715921493
B124: 93 | C124: 1191.83 | H124: 93 | I124: 1023 | U124: 117 | V124: 117 | W124: 1191.83 | Y124: -1191.83 | AC124: 1023 | AE124: -1023 | AI124: 117 | AJ124: 1191.83 | AK124: 240768.7892 | AL124: 100.3203288 | AN124: 20918.21158 | AO124: 8.715921493 | AR124: 1191.83 | AS124: 237871.6314 | AT124: 99.11317976 | AV124: 20918.21158 | AW124: 8.715921493 | AZ124: 1023 | BA124: 220771.2391 | BB124: 91.98801628 | BD124: 0 | BE124: 0 | BH124: 0 | BI124: 2897.157803 | BJ124: 1.207149084 | BL124: 0 | BM124: 0 | BP124: 168.83 | BQ124: 19997.55015 | BR124: 8.332312563 | BT124: 20918.21158 | BU124: 8.715921493
B125: 94 | C125: 1191.83 | H125: 94 | I125: 1023 | U125: 118 | V125: 118 | W125: 1191.83 | Y125: -1191.83 | AC125: 1023 | AE125: -1023 | AI125: 118 | AJ125: 1191.83 | AK125: 241960.6192 | AL125: 100.8169247 | AN125: 20918.21158 | AO125: 8.715921493 | AR125: 1191.83 | AS125: 239063.4614 | AT125: 99.6097756 | AV125: 20918.21158 | AW125: 8.715921493 | AZ125: 1023 | BA125: 221794.2391 | BB125: 92.41426628 | BD125: 0 | BE125: 0 | BH125: 0 | BI125: 2897.157803 | BJ125: 1.207149084 | BL125: 0 | BM125: 0 | BP125: 168.83 | BQ125: 20166.38015 | BR125: 8.402658397 | BT125: 20918.21158 | BU125: 8.715921493
B126: 95 | C126: 1191.83 | H126: 95 | I126: 1023 | U126: 119 | V126: 119 | W126: 1191.83 | Y126: -1191.83 | AC126: 1023 | AE126: -1023 | AI126: 119 | AJ126: 1191.83 | AK126: 243152.4492 | AL126: 101.3135205 | AN126: 20918.21158 | AO126: 8.715921493 | AR126: 1191.83 | AS126: 240255.2914 | AT126: 100.1063714 | AV126: 20918.21158 | AW126: 8.715921493 | AZ126: 1023 | BA126: 222817.2391 | BB126: 92.84051628 | BD126: 0 | BE126: 0 | BH126: 0 | BI126: 2897.157803 | BJ126: 1.207149084 | BL126: 0 | BM126: 0 | BP126: 168.83 | BQ126: 20335.21015 | BR126: 8.47300423 | BT126: 20918.21158 | BU126: 8.715921493
B127: 96 | C127: 1191.83 | H127: 96 | I127: 1023 | U127: 120 | V127: 120 | W127: 1191.83 | Y127: -1191.83 | AC127: 1023 | AE127: -1023 | AI127: 120 | AJ127: 1191.83 | AK127: =IF(AI127>$K$21,0,AK126+AJ127) -> 244344.2792 | AL127: 101.8101163 | AM127: =SUM(AL116:AL127) -> 1188.946071 | AN127: =IF(AI127>$K$21,0,AN126+AP127) -> 21022.80264 | AO127: 8.715921493 | AP127: =SUM(AO116:AO127) -> 104.5910579 | AR127: 1191.83 | AS127: =IF(AI127>$K$21,0,AS126+AR127) -> 241447.1214 | AT127: 100.6029673 | AU127: =SUM(AT116:AT127) -> 1174.460282 | AV127: =IF(AI127>$K$21,0,AV126+AX127) -> 21022.80264 | AW127: 8.715921493 | AX127: =SUM(AW116:AW127) -> 104.5910579 | AZ127: 1023 | BA127: 223840.2391 | BB127: 93.26676628 | BC127: =SUM(BB116:BB127) -> 1091.068695 | BD127: =IF(AI127>$K$21,0,BD126+BF127) -> 0 | BE127: 0 | BF127: =SUM(BE116:BE127) -> 0 | BH127: 0 | BI127: 2897.157803 | BJ127: 1.207149084 | BK127: =SUM(BJ116:BJ127) -> 14.48578901 | BL127: =IF(AI127>$K$21,0,BL126+BN127) -> 0 | BM127: 0 | BN127: =SUM(BM116:BM127) -> 0 | BP127: 168.83 | BQ127: 20504.04015 | BR127: 8.543350063 | BS127: =SUM(BR116:BR127) -> 97.87737576 | BT127: =IF(AI127>$K$21,0,BT126+BV127) -> 21022.80264 | BU127: 8.715921493 | BV127: =SUM(BU116:BU127) -> 104.5910579
B128: 97 | C128: 1191.83 | H128: 97 | I128: 1023 | U128: 121 | V128: 121 | W128: 1191.83 | Y128: -1191.83 | AC128: 1023 | AE128: -1023 | AI128: 121 | AJ128: 1191.83 | AK128: =IF(AI128>$K$21,0,AK127+AJ128+AM127) -> 246725.0553 | AL128: 102.8021064 | AN128: 21022.80264 | AO128: 8.7595011 | AR128: 1191.83 | AS128: =IF(AI128>$K$21,0,AS127+AR128+AU127) -> 243813.4117 | AT128: 101.5889215 | AV128: =IF(AI128>$K$21,0,AV127) -> 21022.80264 | AW128: 8.7595011 | AZ128: 1023 | BA128: =IF(AI128>$K$21,0,BA127+AZ128+BC127) -> 225954.3078 | BB128: 94.14762824 | BD128: =IF(AI128>$K$21,0,BD127) -> 0 | BE128: 0 | BH128: 0 | BI128: =IF(AI128>$K$21,0,BI127+BH128+BK127) -> 2911.643592 | BJ128: 1.21318483 | BL128: =IF(AI128>$K$21,0,BL127) -> 0 | BM128: 0 | BP128: 168.83 | BQ128: =IF(AI128>$K$21,0,BQ127+BP128+BS127) -> 20770.74753 | BR128: 8.654478136 | BT128: =IF(AI128>$K$21,0,BT127) -> 21022.80264 | BU128: 8.7595011
B129: 98 | C129: 1191.83 | H129: 98 | I129: 1023 | U129: 122 | V129: 122 | W129: 1191.83 | Y129: -1191.83 | AC129: 1023 | AE129: -1023 | AI129: 122 | AJ129: 1191.83 | AK129: =AK128+AJ129 -> 247916.8853 | AL129: 103.2987022 | AN129: 21022.80264 | AO129: 8.7595011 | AR129: 1191.83 | AS129: =IF(AI129>$K$21,0,AS128+AR129) -> 245005.2417 | AT129: 102.0855174 | AV129: 21022.80264 | AW129: 8.7595011 | AZ129: 1023 | BA129: 226977.3078 | BB129: 94.57387824 | BD129: 0 | BE129: 0 | BH129: 0 | BI129: 2911.643592 | BJ129: 1.21318483 | BL129: 0 | BM129: 0 | BP129: 168.83 | BQ129: 20939.57753 | BR129: 8.72482397 | BT129: 21022.80264 | BU129: 8.7595011
B130: 99 | C130: 1191.83 | H130: 99 | I130: 1023 | U130: 123 | V130: 123 | W130: 1191.83 | Y130: -1191.83 | AC130: 1023 | AE130: -1023 | AI130: 123 | AJ130: 1191.83 | AK130: 249108.7153 | AL130: 103.795298 | AN130: 21022.80264 | AO130: 8.7595011 | AR130: 1191.83 | AS130: 246197.0717 | AT130: 102.5821132 | AV130: 21022.80264 | AW130: 8.7595011 | AZ130: 1023 | BA130: 228000.3078 | BB130: 95.00012824 | BD130: 0 | BE130: 0 | BH130: 0 | BI130: 2911.643592 | BJ130: 1.21318483 | BL130: 0 | BM130: 0 | BP130: 168.83 | BQ130: 21108.40753 | BR130: 8.795169803 | BT130: 21022.80264 | BU130: 8.7595011
B131: 100 | C131: 1191.83 | H131: 100 | I131: 1023 | U131: 124 | V131: 124 | W131: 1191.83 | Y131: -1191.83 | AC131: 1023 | AE131: -1023 | AI131: 124 | AJ131: 1191.83 | AK131: 250300.5453 | AL131: 104.2918939 | AN131: 21022.80264 | AO131: =IF(AI131>$K$21,0,AN130*$E$20/12) -> 8.7595011 | AR131: 1191.83 | AS131: 247388.9017 | AT131: 103.078709 | AV131: 21022.80264 | AW131: 8.7595011 | AZ131: 1023 | BA131: 229023.3078 | BB131: 95.42637824 | BD131: 0 | BE131: 0 | BH131: 0 | BI131: 2911.643592 | BJ131: 1.21318483 | BL131: 0 | BM131: 0 | BP131: 168.83 | BQ131: 21277.23753 | BR131: 8.865515636 | BT131: 21022.80264 | BU131: 8.7595011
B132: 101 | C132: 1191.83 | H132: 101 | I132: 1023 | U132: 125 | V132: 125 | W132: 1191.83 | Y132: -1191.83 | AC132: 1023 | AE132: -1023 | AI132: 125 | AJ132: 1191.83 | AK132: 251492.3753 | AL132: 104.7884897 | AN132: 21022.80264 | AO132: 8.7595011 | AR132: 1191.83 | AS132: 248580.7317 | AT132: 103.5753049 | AV132: 21022.80264 | AW132: 8.7595011 | AZ132: 1023 | BA132: 230046.3078 | BB132: 95.85262824 | BD132: 0 | BE132: 0 | BH132: 0 | BI132: 2911.643592 | BJ132: 1.21318483 | BL132: 0 | BM132: 0 | BP132: 168.83 | BQ132: 21446.06753 | BR132: 8.93586147 | BT132: 21022.80264 | BU132: 8.7595011
B133: 102 | C133: 1191.83 | H133: 102 | I133: 1023 | U133: 126 | V133: 126 | W133: 1191.83 | Y133: -1191.83 | AC133: 1023 | AE133: -1023 | AI133: 126 | AJ133: 1191.83 | AK133: 252684.2053 | AL133: 105.2850855 | AN133: 21022.80264 | AO133: 8.7595011 | AR133: 1191.83 | AS133: 249772.5617 | AT133: 104.0719007 | AV133: 21022.80264 | AW133: 8.7595011 | AZ133: 1023 | BA133: 231069.3078 | BB133: 96.27887824 | BD133: 0 | BE133: 0 | BH133: 0 | BI133: 2911.643592 | BJ133: 1.21318483 | BL133: 0 | BM133: 0 | BP133: 168.83 | BQ133: 21614.89753 | BR133: 9.006207303 | BT133: 21022.80264 | BU133: 8.7595011
B134: 103 | C134: 1191.83 | H134: 103 | I134: 1023 | U134: 127 | V134: 127 | W134: 1191.83 | Y134: -1191.83 | AC134: 1023 | AE134: -1023 | AI134: 127 | AJ134: 1191.83 | AK134: 253876.0353 | AL134: 105.7816814 | AN134: 21022.80264 | AO134: 8.7595011 | AR134: 1191.83 | AS134: 250964.3917 | AT134: 104.5684965 | AV134: 21022.80264 | AW134: 8.7595011 | AZ134: 1023 | BA134: 232092.3078 | BB134: 96.70512824 | BD134: 0 | BE134: 0 | BH134: 0 | BI134: 2911.643592 | BJ134: 1.21318483 | BL134: 0 | BM134: 0 | BP134: 168.83 | BQ134: 21783.72753 | BR134: 9.076553136 | BT134: 21022.80264 | BU134: 8.7595011
B135: 104 | C135: 1191.83 | H135: 104 | I135: 1023 | U135: 128 | V135: 128 | W135: 1191.83 | Y135: -1191.83 | AC135: 1023 | AE135: -1023 | AI135: 128 | AJ135: 1191.83 | AK135: 255067.8653 | AL135: 106.2782772 | AN135: 21022.80264 | AO135: 8.7595011 | AR135: 1191.83 | AS135: 252156.2217 | AT135: 105.0650924 | AV135: 21022.80264 | AW135: 8.7595011 | AZ135: 1023 | BA135: 233115.3078 | BB135: 97.13137824 | BD135: 0 | BE135: 0 | BH135: 0 | BI135: 2911.643592 | BJ135: 1.21318483 | BL135: 0 | BM135: 0 | BP135: 168.83 | BQ135: 21952.55753 | BR135: 9.14689897 | BT135: 21022.80264 | BU135: 8.7595011
B136: 105 | C136: 1191.83 | H136: 105 | I136: 1023 | U136: 129 | V136: 129 | W136: =C160 -> 1191.83 | Y136: =-W136 -> -1191.83 | AC136: =I160 -> 1023 | AE136: =-AC136 -> -1023 | AI136: 129 | AJ136: 1191.83 | AK136: 256259.6953 | AL136: =AK136*$E$20/12 -> 106.774873 | AN136: 21022.80264 | AO136: 8.7595011 | AR136: =W136 -> 1191.83 | AS136: 253348.0517 | AT136: =AS136*$E$20/12 -> 105.5616882 | AV136: 21022.80264 | AW136: 8.7595011 | AZ136: =AC136 -> 1023 | BA136: 234138.3078 | BB136: =BA136*$E$20/12 -> 97.55762824 | BD136: 0 | BE136: 0 | BH136: =AJ136-W136 -> 0 | BI136: 2911.643592 | BJ136: =BI136*$E$20/12 -> 1.21318483 | BL136: 0 | BM136: 0 | BP136: =AJ136-AC136 -> 168.83 | BQ136: 22121.38753 | BR136: =BQ136*$E$20/12 -> 9.217244803 | BT136: 21022.80264 | BU136: 8.7595011
B137: 106 | C137: 1191.83 | H137: 106 | I137: 1023 | U137: 130 | V137: 130 | W137: 1191.83 | Y137: -1191.83 | AC137: 1023 | AE137: -1023 | AI137: 130 | AJ137: =IF(AI137>$K$21,0,IF(AC137>W137,AC137,W137)) -> 1191.83 | AK137: 257451.5253 | AL137: 107.2714689 | AN137: =IF(AI137>$K$21,0,AN136) -> 21022.80264 | AO137: 8.7595011 | AR137: 1191.83 | AS137: 254539.8817 | AT137: 106.058284 | AV137: 21022.80264 | AW137: 8.7595011 | AZ137: 1023 | BA137: 235161.3078 | BB137: 97.98387824 | BD137: 0 | BE137: 0 | BH137: 0 | BI137: 2911.643592 | BJ137: 1.21318483 | BL137: 0 | BM137: 0 | BP137: 168.83 | BQ137: 22290.21753 | BR137: 9.287590636 | BT137: 21022.80264 | BU137: =IF(AI137>$K$21,0,BT136*$E$20/12) -> 8.7595011
B138: 107 | C138: 1191.83 | H138: 107 | I138: 1023 | U138: 131 | V138: 131 | W138: 1191.83 | Y138: -1191.83 | AC138: 1023 | AE138: -1023 | AI138: 131 | AJ138: 1191.83 | AK138: 258643.3553 | AL138: 107.7680647 | AN138: 21022.80264 | AO138: 8.7595011 | AR138: 1191.83 | AS138: 255731.7117 | AT138: 106.5548799 | AV138: 21022.80264 | AW138: 8.7595011 | AZ138: 1023 | BA138: 236184.3078 | BB138: 98.41012824 | BD138: 0 | BE138: 0 | BH138: 0 | BI138: 2911.643592 | BJ138: 1.21318483 | BL138: 0 | BM138: 0 | BP138: 168.83 | BQ138: 22459.04753 | BR138: 9.35793647 | BT138: 21022.80264 | BU138: 8.7595011
B139: 108 | C139: 1191.83 | H139: 108 | I139: 1023 | U139: 132 | V139: 132 | W139: 1191.83 | Y139: -1191.83 | AC139: 1023 | AE139: -1023 | AI139: 132 | AJ139: 1191.83 | AK139: =IF(AI139>$K$21,0,AK138+AJ139) -> 259835.1853 | AL139: 108.2646605 | AM139: =SUM(AL128:AL139) -> 1266.400602 | AN139: =IF(AI139>$K$21,0,AN138+AP139) -> 21127.91665 | AO139: 8.7595011 | AP139: =SUM(AO128:AO139) -> 105.1140132 | AR139: 1191.83 | AS139: =IF(AI139>$K$21,0,AS138+AR139) -> 256923.5417 | AT139: 107.0514757 | AU139: =SUM(AT128:AT139) -> 1251.842384 | AV139: =IF(AI139>$K$21,0,AV138+AX139) -> 21127.91665 | AW139: 8.7595011 | AX139: =SUM(AW128:AW139) -> 105.1140132 | AZ139: 1023 | BA139: 237207.3078 | BB139: 98.83637824 | BC139: =SUM(BB128:BB139) -> 1157.904039 | BD139: =IF(AI139>$K$21,0,BD138+BF139) -> 0 | BE139: 0 | BF139: =SUM(BE128:BE139) -> 0 | BH139: 0 | BI139: 2911.643592 | BJ139: 1.21318483 | BK139: =SUM(BJ128:BJ139) -> 14.55821796 | BL139: =IF(AI139>$K$21,0,BL138+BN139) -> 0 | BM139: 0 | BN139: =SUM(BM128:BM139) -> 0 | BP139: 168.83 | BQ139: 22627.87753 | BR139: 9.428282303 | BS139: =SUM(BR128:BR139) -> 108.4965626 | BT139: =IF(AI139>$K$21,0,BT138+BV139) -> 21127.91665 | BU139: 8.7595011 | BV139: =SUM(BU128:BU139) -> 105.1140132
B140: 109 | C140: 1191.83 | H140: 109 | I140: 1023 | U140: 133 | V140: 133 | W140: 1191.83 | Y140: -1191.83 | AC140: 1023 | AE140: -1023 | AI140: 133 | AJ140: 1191.83 | AK140: =IF(AI140>$K$21,0,AK139+AJ140+AM139) -> 262293.4159 | AL140: 109.2889233 | AN140: 21127.91665 | AO140: 8.803298606 | AR140: 1191.83 | AS140: =IF(AI140>$K$21,0,AS139+AR140+AU139) -> 259367.2141 | AT140: 108.0696725 | AV140: =IF(AI140>$K$21,0,AV139) -> 21127.91665 | AW140: 8.803298606 | AZ140: 1023 | BA140: =IF(AI140>$K$21,0,BA139+AZ140+BC139) -> 239388.2118 | BB140: 99.74508826 | BD140: =IF(AI140>$K$21,0,BD139) -> 0 | BE140: 0 | BH140: 0 | BI140: =IF(AI140>$K$21,0,BI139+BH140+BK139) -> 2926.201809 | BJ140: 1.219250754 | BL140: =IF(AI140>$K$21,0,BL139) -> 0 | BM140: 0 | BP140: 168.83 | BQ140: =IF(AI140>$K$21,0,BQ139+BP140+BS139) -> 22905.20409 | BR140: 9.543835038 | BT140: =IF(AI140>$K$21,0,BT139) -> 21127.91665 | BU140: 8.803298606
B141: 110 | C141: 1191.83 | H141: 110 | I141: 1023 | U141: 134 | V141: 134 | W141: 1191.83 | Y141: -1191.83 | AC141: 1023 | AE141: -1023 | AI141: 134 | AJ141: 1191.83 | AK141: =AK140+AJ141 -> 263485.2459 | AL141: 109.7855191 | AN141: 21127.91665 | AO141: 8.803298606 | AR141: 1191.83 | AS141: =IF(AI141>$K$21,0,AS140+AR141) -> 260559.0441 | AT141: 108.5662684 | AV141: 21127.91665 | AW141: 8.803298606 | AZ141: 1023 | BA141: 240411.2118 | BB141: 100.1713383 | BD141: 0 | BE141: 0 | BH141: 0 | BI141: 2926.201809 | BJ141: 1.219250754 | BL141: 0 | BM141: 0 | BP141: 168.83 | BQ141: 23074.03409 | BR141: 9.614180871 | BT141: 21127.91665 | BU141: 8.803298606
B142: 111 | C142: 1191.83 | H142: 111 | I142: 1023 | U142: 135 | V142: 135 | W142: 1191.83 | Y142: -1191.83 | AC142: 1023 | AE142: -1023 | AI142: 135 | AJ142: 1191.83 | AK142: 264677.0759 | AL142: 110.282115 | AN142: 21127.91665 | AO142: 8.803298606 | AR142: 1191.83 | AS142: 261750.8741 | AT142: 109.0628642 | AV142: 21127.91665 | AW142: 8.803298606 | AZ142: 1023 | BA142: 241434.2118 | BB142: 100.5975883 | BD142: 0 | BE142: 0 | BH142: 0 | BI142: 2926.201809 | BJ142: 1.219250754 | BL142: 0 | BM142: 0 | BP142: 168.83 | BQ142: 23242.86409 | BR142: 9.684526704 | BT142: 21127.91665 | BU142: 8.803298606
B143: 112 | C143: 1191.83 | H143: 112 | I143: 1023 | U143: 136 | V143: 136 | W143: 1191.83 | Y143: -1191.83 | AC143: 1023 | AE143: -1023 | AI143: 136 | AJ143: 1191.83 | AK143: 265868.9059 | AL143: 110.7787108 | AN143: 21127.91665 | AO143: 8.803298606 | AR143: 1191.83 | AS143: 262942.7041 | AT143: 109.55946 | AV143: 21127.91665 | AW143: 8.803298606 | AZ143: 1023 | BA143: 242457.2118 | BB143: 101.0238383 | BD143: 0 | BE143: 0 | BH143: 0 | BI143: 2926.201809 | BJ143: 1.219250754 | BL143: 0 | BM143: 0 | BP143: 168.83 | BQ143: 23411.69409 | BR143: 9.754872538 | BT143: 21127.91665 | BU143: 8.803298606
B144: 113 | C144: 1191.83 | H144: 113 | I144: 1023 | U144: 137 | V144: 137 | W144: 1191.83 | Y144: -1191.83 | AC144: 1023 | AE144: -1023 | AI144: 137 | AJ144: 1191.83 | AK144: 267060.7359 | AL144: 111.2753066 | AN144: 21127.91665 | AO144: 8.803298606 | AR144: 1191.83 | AS144: 264134.5341 | AT144: 110.0560559 | AV144: 21127.91665 | AW144: 8.803298606 | AZ144: 1023 | BA144: 243480.2118 | BB144: 101.4500883 | BD144: 0 | BE144: 0 | BH144: 0 | BI144: 2926.201809 | BJ144: 1.219250754 | BL144: 0 | BM144: 0 | BP144: 168.83 | BQ144: 23580.52409 | BR144: 9.825218371 | BT144: 21127.91665 | BU144: 8.803298606
B145: 114 | C145: 1191.83 | H145: 114 | I145: 1023 | U145: 138 | V145: 138 | W145: 1191.83 | Y145: -1191.83 | AC145: 1023 | AE145: -1023 | AI145: 138 | AJ145: 1191.83 | AK145: 268252.5659 | AL145: 111.7719025 | AN145: 21127.91665 | AO145: 8.803298606 | AR145: 1191.83 | AS145: 265326.3641 | AT145: 110.5526517 | AV145: 21127.91665 | AW145: 8.803298606 | AZ145: 1023 | BA145: 244503.2118 | BB145: 101.8763383 | BD145: 0 | BE145: 0 | BH145: 0 | BI145: 2926.201809 | BJ145: 1.219250754 | BL145: 0 | BM145: 0 | BP145: 168.83 | BQ145: 23749.35409 | BR145: 9.895564204 | BT145: 21127.91665 | BU145: 8.803298606
B146: 115 | C146: 1191.83 | H146: 115 | I146: 1023 | U146: 139 | V146: 139 | W146: 1191.83 | Y146: -1191.83 | AC146: 1023 | AE146: -1023 | AI146: 139 | AJ146: 1191.83 | AK146: 269444.3959 | AL146: 112.2684983 | AN146: 21127.91665 | AO146: 8.803298606 | AR146: 1191.83 | AS146: 266518.1941 | AT146: 111.0492475 | AV146: 21127.91665 | AW146: 8.803298606 | AZ146: 1023 | BA146: 245526.2118 | BB146: 102.3025883 | BD146: 0 | BE146: 0 | BH146: 0 | BI146: 2926.201809 | BJ146: 1.219250754 | BL146: 0 | BM146: 0 | BP146: 168.83 | BQ146: 23918.18409 | BR146: 9.965910038 | BT146: 21127.91665 | BU146: 8.803298606
B147: 116 | C147: 1191.83 | H147: 116 | I147: 1023 | U147: 140 | V147: 140 | W147: 1191.83 | Y147: -1191.83 | AC147: 1023 | AE147: -1023 | AI147: 140 | AJ147: 1191.83 | AK147: 270636.2259 | AL147: 112.7650941 | AN147: 21127.91665 | AO147: 8.803298606 | AR147: 1191.83 | AS147: 267710.0241 | AT147: 111.5458434 | AV147: 21127.91665 | AW147: 8.803298606 | AZ147: 1023 | BA147: 246549.2118 | BB147: 102.7288383 | BD147: 0 | BE147: 0 | BH147: 0 | BI147: 2926.201809 | BJ147: 1.219250754 | BL147: 0 | BM147: 0 | BP147: 168.83 | BQ147: 24087.01409 | BR147: 10.03625587 | BT147: 21127.91665 | BU147: 8.803298606
B148: 117 | C148: 1191.83 | H148: 117 | I148: 1023 | U148: 141 | V148: 141 | W148: 1191.83 | Y148: -1191.83 | AC148: 1023 | AE148: -1023 | AI148: 141 | AJ148: 1191.83 | AK148: 271828.0559 | AL148: 113.26169 | AN148: 21127.91665 | AO148: 8.803298606 | AR148: 1191.83 | AS148: 268901.8541 | AT148: 112.0424392 | AV148: 21127.91665 | AW148: 8.803298606 | AZ148: 1023 | BA148: 247572.2118 | BB148: 103.1550883 | BD148: 0 | BE148: 0 | BH148: 0 | BI148: 2926.201809 | BJ148: 1.219250754 | BL148: 0 | BM148: 0 | BP148: 168.83 | BQ148: 24255.84409 | BR148: 10.1066017 | BT148: 21127.91665 | BU148: 8.803298606
B149: 118 | C149: 1191.83 | H149: 118 | I149: 1023 | U149: 142 | V149: 142 | W149: 1191.83 | Y149: -1191.83 | AC149: 1023 | AE149: -1023 | AI149: 142 | AJ149: 1191.83 | AK149: 273019.8859 | AL149: 113.7582858 | AN149: 21127.91665 | AO149: 8.803298606 | AR149: 1191.83 | AS149: 270093.6841 | AT149: 112.539035 | AV149: 21127.91665 | AW149: 8.803298606 | AZ149: 1023 | BA149: 248595.2118 | BB149: 103.5813383 | BD149: 0 | BE149: 0 | BH149: 0 | BI149: 2926.201809 | BJ149: 1.219250754 | BL149: 0 | BM149: 0 | BP149: 168.83 | BQ149: 24424.67409 | BR149: 10.17694754 | BT149: 21127.91665 | BU149: 8.803298606
B150: 119 | C150: 1191.83 | H150: 119 | I150: 1023 | U150: 143 | V150: 143 | W150: 1191.83 | Y150: -1191.83 | AC150: 1023 | AE150: -1023 | AI150: 143 | AJ150: 1191.83 | AK150: 274211.7159 | AL150: 114.2548816 | AN150: 21127.91665 | AO150: 8.803298606 | AR150: 1191.83 | AS150: 271285.5141 | AT150: 113.0356309 | AV150: 21127.91665 | AW150: 8.803298606 | AZ150: 1023 | BA150: 249618.2118 | BB150: 104.0075883 | BD150: 0 | BE150: 0 | BH150: 0 | BI150: 2926.201809 | BJ150: 1.219250754 | BL150: 0 | BM150: 0 | BP150: 168.83 | BQ150: 24593.50409 | BR150: 10.24729337 | BT150: 21127.91665 | BU150: 8.803298606
B151: 120 | C151: 1191.83 | H151: 120 | I151: 1023 | U151: 144 | V151: 144 | W151: 1191.83 | Y151: -1191.83 | AC151: 1023 | AE151: -1023 | AI151: 144 | AJ151: 1191.83 | AK151: =IF(AI151>$K$21,0,AK150+AJ151) -> 275403.5459 | AL151: 114.7514775 | AM151: =SUM(AL140:AL151) -> 1344.242405 | AN151: =IF(AI151>$K$21,0,AN150+AP151) -> 21233.55624 | AO151: 8.803298606 | AP151: =SUM(AO140:AO151) -> 105.6395833 | AR151: 1191.83 | AS151: =IF(AI151>$K$21,0,AS150+AR151) -> 272477.3441 | AT151: 113.5322267 | AU151: =SUM(AT140:AT151) -> 1329.611395 | AV151: =IF(AI151>$K$21,0,AV150+AX151) -> 21233.55624 | AW151: 8.803298606 | AX151: =SUM(AW140:AW151) -> 105.6395833 | AZ151: 1023 | BA151: 250641.2118 | BB151: 104.4338383 | BC151: =SUM(BB140:BB151) -> 1225.073559 | BD151: =IF(AI151>$K$21,0,BD150+BF151) -> 0 | BE151: 0 | BF151: =SUM(BE140:BE151) -> 0 | BH151: 0 | BI151: 2926.201809 | BJ151: 1.219250754 | BK151: =SUM(BJ140:BJ151) -> 14.63100905 | BL151: =IF(AI151>$K$21,0,BL150+BN151) -> 0 | BM151: 0 | BN151: =SUM(BM140:BM151) -> 0 | BP151: 168.83 | BQ151: 24762.33409 | BR151: 10.3176392 | BS151: =SUM(BR140:BR151) -> 119.1688455 | BT151: =IF(AI151>$K$21,0,BT150+BV151) -> 21233.55624 | BU151: 8.803298606 | BV151: =SUM(BU140:BU151) -> 105.6395833
B152: 121 | C152: 1191.83 | H152: 121 | I152: 1023 | U152: 145 | V152: 145 | W152: 1191.83 | Y152: -1191.83 | AC152: 1023 | AE152: -1023 | AI152: 145 | AJ152: 1191.83 | AK152: =IF(AI152>$K$21,0,AK151+AJ152+AM151) -> 277939.6183 | AL152: 115.8081743 | AN152: 21233.55624 | AO152: 8.847315099 | AR152: 1191.83 | AS152: =IF(AI152>$K$21,0,AS151+AR152+AU151) -> 274998.7855 | AT152: 114.5828273 | AV152: =IF(AI152>$K$21,0,AV151) -> 21233.55624 | AW152: 8.847315099 | AZ152: 1023 | BA152: =IF(AI152>$K$21,0,BA151+AZ152+BC151) -> 252889.2854 | BB152: 105.3705356 | BD152: =IF(AI152>$K$21,0,BD151) -> 0 | BE152: 0 | BH152: 0 | BI152: =IF(AI152>$K$21,0,BI151+BH152+BK151) -> 2940.832819 | BJ152: 1.225347008 | BL152: =IF(AI152>$K$21,0,BL151) -> 0 | BM152: 0 | BP152: 168.83 | BQ152: =IF(AI152>$K$21,0,BQ151+BP152+BS151) -> 25050.33294 | BR152: 10.43763872 | BT152: =IF(AI152>$K$21,0,BT151) -> 21233.55624 | BU152: 8.847315099
B153: 122 | C153: 1191.83 | H153: 122 | I153: 1023 | U153: 146 | V153: 146 | W153: 1191.83 | Y153: -1191.83 | AC153: 1023 | AE153: -1023 | AI153: 146 | AJ153: 1191.83 | AK153: =AK152+AJ153 -> 279131.4483 | AL153: 116.3047701 | AN153: 21233.55624 | AO153: 8.847315099 | AR153: 1191.83 | AS153: =IF(AI153>$K$21,0,AS152+AR153) -> 276190.6155 | AT153: 115.0794231 | AV153: 21233.55624 | AW153: 8.847315099 | AZ153: 1023 | BA153: 253912.2854 | BB153: 105.7967856 | BD153: 0 | BE153: 0 | BH153: 0 | BI153: 2940.832819 | BJ153: 1.225347008 | BL153: 0 | BM153: 0 | BP153: 168.83 | BQ153: 25219.16294 | BR153: 10.50798456 | BT153: 21233.55624 | BU153: 8.847315099
B154: 123 | C154: 1191.83 | H154: 123 | I154: 1023 | U154: 147 | V154: 147 | W154: 1191.83 | Y154: -1191.83 | AC154: 1023 | AE154: -1023 | AI154: 147 | AJ154: 1191.83 | AK154: 280323.2783 | AL154: 116.801366 | AN154: 21233.55624 | AO154: 8.847315099 | AR154: 1191.83 | AS154: 277382.4455 | AT154: 115.576019 | AV154: 21233.55624 | AW154: 8.847315099 | AZ154: 1023 | BA154: 254935.2854 | BB154: 106.2230356 | BD154: 0 | BE154: 0 | BH154: 0 | BI154: 2940.832819 | BJ154: 1.225347008 | BL154: 0 | BM154: 0 | BP154: 168.83 | BQ154: 25387.99294 | BR154: 10.57833039 | BT154: 21233.55624 | BU154: 8.847315099
B155: 124 | C155: 1191.83 | H155: 124 | I155: 1023 | U155: 148 | V155: 148 | W155: 1191.83 | Y155: -1191.83 | AC155: 1023 | AE155: -1023 | AI155: 148 | AJ155: 1191.83 | AK155: 281515.1083 | AL155: 117.2979618 | AN155: 21233.55624 | AO155: 8.847315099 | AR155: 1191.83 | AS155: 278574.2755 | AT155: 116.0726148 | AV155: 21233.55624 | AW155: 8.847315099 | AZ155: 1023 | BA155: 255958.2854 | BB155: 106.6492856 | BD155: 0 | BE155: 0 | BH155: 0 | BI155: 2940.832819 | BJ155: 1.225347008 | BL155: 0 | BM155: 0 | BP155: 168.83 | BQ155: 25556.82294 | BR155: 10.64867622 | BT155: 21233.55624 | BU155: 8.847315099
B156: 125 | C156: 1191.83 | H156: 125 | I156: 1023 | U156: 149 | V156: 149 | W156: 1191.83 | Y156: -1191.83 | AC156: 1023 | AE156: -1023 | AI156: 149 | AJ156: 1191.83 | AK156: 282706.9383 | AL156: 117.7945576 | AN156: 21233.55624 | AO156: 8.847315099 | AR156: 1191.83 | AS156: 279766.1055 | AT156: 116.5692106 | AV156: 21233.55624 | AW156: 8.847315099 | AZ156: 1023 | BA156: 256981.2854 | BB156: 107.0755356 | BD156: 0 | BE156: 0 | BH156: 0 | BI156: 2940.832819 | BJ156: 1.225347008 | BL156: 0 | BM156: 0 | BP156: 168.83 | BQ156: 25725.65294 | BR156: 10.71902206 | BT156: 21233.55624 | BU156: 8.847315099
B157: 126 | C157: 1191.83 | H157: 126 | I157: 1023 | U157: 150 | V157: 150 | W157: 1191.83 | Y157: -1191.83 | AC157: 1023 | AE157: -1023 | AI157: 150 | AJ157: 1191.83 | AK157: 283898.7683 | AL157: 118.2911535 | AN157: 21233.55624 | AO157: 8.847315099 | AR157: 1191.83 | AS157: 280957.9355 | AT157: 117.0658065 | AV157: 21233.55624 | AW157: 8.847315099 | AZ157: 1023 | BA157: 258004.2854 | BB157: 107.5017856 | BD157: 0 | BE157: 0 | BH157: 0 | BI157: 2940.832819 | BJ157: 1.225347008 | BL157: 0 | BM157: 0 | BP157: 168.83 | BQ157: 25894.48294 | BR157: 10.78936789 | BT157: 21233.55624 | BU157: 8.847315099
B158: 127 | C158: 1191.83 | H158: 127 | I158: 1023 | U158: 151 | V158: 151 | W158: 1191.83 | Y158: -1191.83 | AC158: 1023 | AE158: -1023 | AI158: 151 | AJ158: 1191.83 | AK158: 285090.5983 | AL158: 118.7877493 | AN158: 21233.55624 | AO158: 8.847315099 | AR158: 1191.83 | AS158: 282149.7655 | AT158: 117.5624023 | AV158: 21233.55624 | AW158: 8.847315099 | AZ158: 1023 | BA158: 259027.2854 | BB158: 107.9280356 | BD158: 0 | BE158: 0 | BH158: 0 | BI158: 2940.832819 | BJ158: 1.225347008 | BL158: 0 | BM158: 0 | BP158: 168.83 | BQ158: 26063.31294 | BR158: 10.85971372 | BT158: 21233.55624 | BU158: 8.847315099
B159: 128 | C159: 1191.83 | H159: 128 | I159: 1023 | U159: 152 | V159: 152 | W159: 1191.83 | Y159: -1191.83 | AC159: 1023 | AE159: -1023 | AI159: 152 | AJ159: 1191.83 | AK159: 286282.4283 | AL159: 119.2843451 | AN159: 21233.55624 | AO159: 8.847315099 | AR159: 1191.83 | AS159: 283341.5955 | AT159: 118.0589981 | AV159: 21233.55624 | AW159: =IF(AI159>$K$21,0,AV158*$E$20/12) -> 8.847315099 | AZ159: 1023 | BA159: =IF(AI159>$K$21,0,BA158+AZ159) -> 260050.2854 | BB159: 108.3542856 | BD159: 0 | BE159: =IF(AI159>$K$21,0,BD158*$E$20/12) -> 0 | BH159: 0 | BI159: =IF(V159>$K$21,0,BI158+BH159) -> 2940.832819 | BJ159: 1.225347008 | BL159: 0 | BM159: =IF(AI159>$K$21,0,BL158*$E$20/12) -> 0 | BP159: 168.83 | BQ159: =IF(AI159>$K$21,0,BQ158+BP159) -> 26232.14294 | BR159: 10.93005956 | BT159: 21233.55624 | BU159: 8.847315099
B160: 129 | C160: 1191.83 | H160: 129 | I160: 1023 | U160: 153 | V160: 153 | W160: 1191.83 | Y160: -1191.83 | AC160: 1023 | AE160: -1023 | AI160: 153 | AJ160: 1191.83 | AK160: 287474.2583 | AL160: 119.780941 | AN160: 21233.55624 | AO160: 8.847315099 | AR160: 1191.83 | AS160: 284533.4255 | AT160: 118.555594 | AV160: 21233.55624 | AW160: 8.847315099 | AZ160: 1023 | BA160: 261073.2854 | BB160: 108.7805356 | BD160: 0 | BE160: 0 | BH160: 0 | BI160: 2940.832819 | BJ160: 1.225347008 | BL160: 0 | BM160: 0 | BP160: 168.83 | BQ160: 26400.97294 | BR160: 11.00040539 | BT160: 21233.55624 | BU160: 8.847315099
B161: 130 | C161: 1191.83 | H161: 130 | I161: 1023 | U161: 154 | V161: 154 | W161: 1191.83 | Y161: -1191.83 | AC161: 1023 | AE161: -1023 | AI161: 154 | AJ161: 1191.83 | AK161: 288666.0883 | AL161: 120.2775368 | AN161: 21233.55624 | AO161: 8.847315099 | AR161: 1191.83 | AS161: 285725.2555 | AT161: 119.0521898 | AV161: 21233.55624 | AW161: 8.847315099 | AZ161: 1023 | BA161: 262096.2854 | BB161: 109.2067856 | BD161: 0 | BE161: 0 | BH161: 0 | BI161: 2940.832819 | BJ161: 1.225347008 | BL161: 0 | BM161: 0 | BP161: 168.83 | BQ161: 26569.80294 | BR161: 11.07075122 | BT161: 21233.55624 | BU161: 8.847315099
B162: 131 | C162: =IF(B162>$I$21,0,IF(AND(D162<>C161,D162<>0),D162,C161)) -> 1191.83 | H162: 131 | I162: =IF(H162>$J$21,0,IF(AND(J162<>I161,J162<>0),J162,I161)) -> 1023 | U162: 155 | V162: 155 | W162: 1191.83 | Y162: -1191.83 | AC162: 1023 | AE162: -1023 | AI162: 155 | AJ162: 1191.83 | AK162: 289857.9183 | AL162: 120.7741326 | AN162: 21233.55624 | AO162: 8.847315099 | AR162: 1191.83 | AS162: 286917.0855 | AT162: 119.5487856 | AV162: 21233.55624 | AW162: 8.847315099 | AZ162: 1023 | BA162: 263119.2854 | BB162: 109.6330356 | BD162: 0 | BE162: 0 | BH162: 0 | BI162: 2940.832819 | BJ162: 1.225347008 | BL162: 0 | BM162: 0 | BP162: 168.83 | BQ162: 26738.63294 | BR162: 11.14109706 | BT162: 21233.55624 | BU162: 8.847315099
B163: 132 | C163: 1191.83 | H163: 132 | I163: 1023 | U163: 156 | V163: 156 | W163: 1191.83 | Y163: -1191.83 | AC163: 1023 | AE163: -1023 | AI163: 156 | AJ163: 1191.83 | AK163: =IF(AI163>$K$21,0,AK162+AJ163) -> 291049.7483 | AL163: 121.2707285 | AM163: =SUM(AL152:AL163) -> 1422.473417 | AN163: =IF(AI163>$K$21,0,AN162+AP163) -> 21339.72402 | AO163: 8.847315099 | AP163: =SUM(AO152:AO163) -> 106.1677812 | AR163: 1191.83 | AS163: =IF(AI163>$K$21,0,AS162+AR163) -> 288108.9155 | AT163: 120.0453815 | AU163: =SUM(AT152:AT163) -> 1407.769252 | AV163: =IF(AI163>$K$21,0,AV162+AX163) -> 21339.72402 | AW163: 8.847315099 | AX163: =SUM(AW152:AW163) -> 106.1677812 | AZ163: 1023 | BA163: 264142.2854 | BB163: 110.0592856 | BC163: =SUM(BB152:BB163) -> 1292.578927 | BD163: =IF(AI163>$K$21,0,BD162+BF163) -> 0 | BE163: 0 | BF163: =SUM(BE152:BE163) -> 0 | BH163: 0 | BI163: 2940.832819 | BJ163: 1.225347008 | BK163: =SUM(BJ152:BJ163) -> 14.70416409 | BL163: =IF(AI163>$K$21,0,BL162+BN163) -> 0 | BM163: 0 | BN163: =SUM(BM152:BM163) -> 0 | BP163: 168.83 | BQ163: 26907.46294 | BR163: 11.21144289 | BS163: =SUM(BR152:BR163) -> 129.8944897 | BT163: =IF(AI163>$K$21,0,BT162+BV163) -> 21339.72402 | BU163: 8.847315099 | BV163: =SUM(BU152:BU163) -> 106.1677812
B164: 133 | C164: 1191.83 | H164: 133 | I164: 1023 | U164: 157 | V164: 157 | W164: 1191.83 | Y164: -1191.83 | AC164: 1023 | AE164: -1023 | AI164: 157 | AJ164: 1191.83 | AK164: =IF(AI164>$K$21,0,AK163+AJ164+AM163) -> 293664.0517 | AL164: 122.3600216 | AN164: 21339.72402 | AO164: 8.891551674 | AR164: 1191.83 | AS164: =IF(AI164>$K$21,0,AS163+AR164+AU163) -> 290708.5147 | AT164: 121.1285478 | AV164: =IF(AI164>$K$21,0,AV163) -> 21339.72402 | AW164: 8.891551674 | AZ164: 1023 | BA164: =IF(AI164>$K$21,0,BA163+AZ164+BC163) -> 266457.8643 | BB164: 111.0241101 | BD164: =IF(AI164>$K$21,0,BD163) -> 0 | BE164: 0 | BH164: 0 | BI164: =IF(AI164>$K$21,0,BI163+BH164+BK163) -> 2955.536983 | BJ164: 1.231473743 | BL164: =IF(AI164>$K$21,0,BL163) -> 0 | BM164: 0 | BP164: 168.83 | BQ164: =IF(AI164>$K$21,0,BQ163+BP164+BS163) -> 27206.18743 | BR164: 11.33591143 | BT164: =IF(AI164>$K$21,0,BT163) -> 21339.72402 | BU164: 8.891551674
B165: 134 | C165: 1191.83 | H165: 134 | I165: 1023 | U165: 158 | V165: 158 | W165: 1191.83 | Y165: -1191.83 | AC165: 1023 | AE165: -1023 | AI165: 158 | AJ165: 1191.83 | AK165: =AK164+AJ165 -> 294855.8817 | AL165: 122.8566174 | AN165: 21339.72402 | AO165: 8.891551674 | AR165: 1191.83 | AS165: =IF(AI165>$K$21,0,AS164+AR165) -> 291900.3447 | AT165: 121.6251436 | AV165: 21339.72402 | AW165: 8.891551674 | AZ165: 1023 | BA165: 267480.8643 | BB165: 111.4503601 | BD165: 0 | BE165: 0 | BH165: 0 | BI165: 2955.536983 | BJ165: 1.231473743 | BL165: 0 | BM165: 0 | BP165: 168.83 | BQ165: 27375.01743 | BR165: 11.40625726 | BT165: 21339.72402 | BU165: 8.891551674
B166: 135 | C166: 1191.83 | H166: 135 | I166: 1023 | U166: 159 | V166: 159 | W166: 1191.83 | Y166: -1191.83 | AC166: 1023 | AE166: -1023 | AI166: 159 | AJ166: 1191.83 | AK166: 296047.7117 | AL166: 123.3532132 | AN166: 21339.72402 | AO166: 8.891551674 | AR166: 1191.83 | AS166: 293092.1747 | AT166: 122.1217395 | AV166: 21339.72402 | AW166: 8.891551674 | AZ166: 1023 | BA166: 268503.8643 | BB166: 111.8766101 | BD166: 0 | BE166: 0 | BH166: 0 | BI166: 2955.536983 | BJ166: 1.231473743 | BL166: 0 | BM166: 0 | BP166: 168.83 | BQ166: 27543.84743 | BR166: 11.47660309 | BT166: 21339.72402 | BU166: 8.891551674
B167: 136 | C167: 1191.83 | H167: 136 | I167: 1023 | U167: 160 | V167: 160 | W167: 1191.83 | Y167: -1191.83 | AC167: 1023 | AE167: -1023 | AI167: 160 | AJ167: 1191.83 | AK167: 297239.5417 | AL167: 123.8498091 | AN167: 21339.72402 | AO167: 8.891551674 | AR167: 1191.83 | AS167: 294284.0047 | AT167: 122.6183353 | AV167: 21339.72402 | AW167: 8.891551674 | AZ167: 1023 | BA167: 269526.8643 | BB167: 112.3028601 | BD167: 0 | BE167: 0 | BH167: 0 | BI167: 2955.536983 | BJ167: 1.231473743 | BL167: 0 | BM167: 0 | BP167: 168.83 | BQ167: 27712.67743 | BR167: 11.54694893 | BT167: 21339.72402 | BU167: 8.891551674
B168: 137 | C168: 1191.83 | H168: 137 | I168: 1023 | U168: 161 | V168: 161 | W168: 1191.83 | Y168: -1191.83 | AC168: 1023 | AE168: -1023 | AI168: 161 | AJ168: 1191.83 | AK168: 298431.3717 | AL168: 124.3464049 | AN168: 21339.72402 | AO168: 8.891551674 | AR168: 1191.83 | AS168: 295475.8347 | AT168: 123.1149311 | AV168: 21339.72402 | AW168: 8.891551674 | AZ168: 1023 | BA168: 270549.8643 | BB168: 112.7291101 | BD168: 0 | BE168: 0 | BH168: 0 | BI168: 2955.536983 | BJ168: 1.231473743 | BL168: 0 | BM168: 0 | BP168: 168.83 | BQ168: 27881.50743 | BR168: 11.61729476 | BT168: 21339.72402 | BU168: 8.891551674
B169: 138 | C169: 1191.83 | H169: 138 | I169: 1023 | U169: 162 | V169: 162 | W169: 1191.83 | Y169: -1191.83 | AC169: 1023 | AE169: -1023 | AI169: 162 | AJ169: 1191.83 | AK169: 299623.2017 | AL169: 124.8430007 | AN169: 21339.72402 | AO169: 8.891551674 | AR169: 1191.83 | AS169: 296667.6647 | AT169: 123.611527 | AV169: 21339.72402 | AW169: 8.891551674 | AZ169: 1023 | BA169: 271572.8643 | BB169: 113.1553601 | BD169: 0 | BE169: 0 | BH169: 0 | BI169: 2955.536983 | BJ169: 1.231473743 | BL169: 0 | BM169: 0 | BP169: 168.83 | BQ169: 28050.33743 | BR169: 11.68764059 | BT169: 21339.72402 | BU169: 8.891551674
B170: 139 | C170: 1191.83 | H170: 139 | I170: 1023 | U170: 163 | V170: 163 | W170: 1191.83 | Y170: -1191.83 | AC170: 1023 | AE170: -1023 | AI170: 163 | AJ170: 1191.83 | AK170: 300815.0317 | AL170: 125.3395966 | AN170: 21339.72402 | AO170: 8.891551674 | AR170: 1191.83 | AS170: 297859.4947 | AT170: 124.1081228 | AV170: 21339.72402 | AW170: 8.891551674 | AZ170: 1023 | BA170: 272595.8643 | BB170: 113.5816101 | BD170: 0 | BE170: 0 | BH170: 0 | BI170: 2955.536983 | BJ170: 1.231473743 | BL170: 0 | BM170: 0 | BP170: 168.83 | BQ170: 28219.16743 | BR170: 11.75798643 | BT170: 21339.72402 | BU170: 8.891551674
B171: 140 | C171: 1191.83 | H171: 140 | I171: 1023 | U171: 164 | V171: 164 | W171: 1191.83 | Y171: -1191.83 | AC171: 1023 | AE171: -1023 | AI171: 164 | AJ171: 1191.83 | AK171: 302006.8617 | AL171: 125.8361924 | AN171: 21339.72402 | AO171: 8.891551674 | AR171: 1191.83 | AS171: 299051.3247 | AT171: 124.6047186 | AV171: 21339.72402 | AW171: 8.891551674 | AZ171: 1023 | BA171: 273618.8643 | BB171: 114.0078601 | BD171: 0 | BE171: 0 | BH171: 0 | BI171: 2955.536983 | BJ171: 1.231473743 | BL171: 0 | BM171: 0 | BP171: 168.83 | BQ171: 28387.99743 | BR171: 11.82833226 | BT171: 21339.72402 | BU171: 8.891551674
B172: 141 | C172: 1191.83 | H172: 141 | I172: 1023 | U172: 165 | V172: 165 | W172: 1191.83 | Y172: -1191.83 | AC172: 1023 | AE172: -1023 | AI172: 165 | AJ172: 1191.83 | AK172: 303198.6917 | AL172: 126.3327882 | AN172: 21339.72402 | AO172: 8.891551674 | AR172: 1191.83 | AS172: 300243.1547 | AT172: 125.1013145 | AV172: 21339.72402 | AW172: 8.891551674 | AZ172: 1023 | BA172: 274641.8643 | BB172: 114.4341101 | BD172: 0 | BE172: 0 | BH172: 0 | BI172: 2955.536983 | BJ172: 1.231473743 | BL172: 0 | BM172: 0 | BP172: 168.83 | BQ172: 28556.82743 | BR172: 11.89867809 | BT172: 21339.72402 | BU172: 8.891551674
B173: 142 | C173: 1191.83 | H173: 142 | I173: 1023 | U173: 166 | V173: 166 | W173: 1191.83 | Y173: -1191.83 | AC173: 1023 | AE173: -1023 | AI173: 166 | AJ173: 1191.83 | AK173: 304390.5217 | AL173: 126.8293841 | AN173: 21339.72402 | AO173: 8.891551674 | AR173: 1191.83 | AS173: 301434.9847 | AT173: 125.5979103 | AV173: 21339.72402 | AW173: 8.891551674 | AZ173: 1023 | BA173: 275664.8643 | BB173: 114.8603601 | BD173: 0 | BE173: 0 | BH173: 0 | BI173: 2955.536983 | BJ173: 1.231473743 | BL173: 0 | BM173: 0 | BP173: 168.83 | BQ173: 28725.65743 | BR173: 11.96902393 | BT173: 21339.72402 | BU173: 8.891551674
B174: 143 | C174: 1191.83 | H174: 143 | I174: 1023 | U174: 167 | V174: 167 | W174: 1191.83 | Y174: -1191.83 | AC174: 1023 | AE174: -1023 | AI174: 167 | AJ174: 1191.83 | AK174: 305582.3517 | AL174: 127.3259799 | AN174: 21339.72402 | AO174: 8.891551674 | AR174: 1191.83 | AS174: 302626.8147 | AT174: 126.0945061 | AV174: 21339.72402 | AW174: 8.891551674 | AZ174: 1023 | BA174: 276687.8643 | BB174: 115.2866101 | BD174: 0 | BE174: 0 | BH174: 0 | BI174: 2955.536983 | BJ174: 1.231473743 | BL174: 0 | BM174: 0 | BP174: 168.83 | BQ174: 28894.48743 | BR174: 12.03936976 | BT174: 21339.72402 | BU174: 8.891551674
B175: 144 | C175: 1191.83 | H175: 144 | I175: 1023 | U175: 168 | V175: 168 | W175: 1191.83 | Y175: -1191.83 | AC175: 1023 | AE175: -1023 | AI175: 168 | AJ175: 1191.83 | AK175: =IF(AI175>$K$21,0,AK174+AJ175) -> 306774.1817 | AL175: 127.8225757 | AM175: =SUM(AL164:AL175) -> 1501.095584 | AN175: =IF(AI175>$K$21,0,AN174+AP175) -> 21446.42264 | AO175: 8.891551674 | AP175: =SUM(AO164:AO175) -> 106.6986201 | AR175: 1191.83 | AS175: =IF(AI175>$K$21,0,AS174+AR175) -> 303818.6447 | AT175: 126.591102 | AU175: =SUM(AT164:AT175) -> 1486.317899 | AV175: =IF(AI175>$K$21,0,AV174+AX175) -> 21446.42264 | AW175: 8.891551674 | AX175: =SUM(AW164:AW175) -> 106.6986201 | AZ175: 1023 | BA175: 277710.8643 | BB175: 115.7128601 | BC175: =SUM(BB164:BB175) -> 1360.421822 | BD175: =IF(AI175>$K$21,0,BD174+BF175) -> 0 | BE175: 0 | BF175: =SUM(BE164:BE175) -> 0 | BH175: 0 | BI175: 2955.536983 | BJ175: 1.231473743 | BK175: =SUM(BJ164:BJ175) -> 14.77768491 | BL175: =IF(AI175>$K$21,0,BL174+BN175) -> 0 | BM175: 0 | BN175: =SUM(BM164:BM175) -> 0 | BP175: 168.83 | BQ175: 29063.31743 | BR175: 12.10971559 | BS175: =SUM(BR164:BR175) -> 140.6737621 | BT175: =IF(AI175>$K$21,0,BT174+BV175) -> 21446.42264 | BU175: 8.891551674 | BV175: =SUM(BU164:BU175) -> 106.6986201
B176: 145 | C176: 1191.83 | H176: 145 | I176: 1023 | U176: 169 | V176: 169 | W176: 1191.83 | Y176: -1191.83 | AC176: 1023 | AE176: -1023 | AI176: 169 | AJ176: 1191.83 | AK176: =IF(AI176>$K$21,0,AK175+AJ176+AM175) -> 309467.1073 | AL176: 128.944628 | AN176: 21446.42264 | AO176: 8.936009433 | AR176: 1191.83 | AS176: =IF(AI176>$K$21,0,AS175+AR176+AU175) -> 306496.7926 | AT176: 127.7069969 | AV176: =IF(AI176>$K$21,0,AV175) -> 21446.42264 | AW176: 8.936009433 | AZ176: 1023 | BA176: =IF(AI176>$K$21,0,BA175+AZ176+BC175) -> 280094.2861 | BB176: 116.7059526 | BD176: =IF(AI176>$K$21,0,BD175) -> 0 | BE176: 0 | BH176: 0 | BI176: =IF(AI176>$K$21,0,BI175+BH176+BK175) -> 2970.314668 | BJ176: 1.237631111 | BL176: =IF(AI176>$K$21,0,BL175) -> 0 | BM176: 0 | BP176: 168.83 | BQ176: =IF(AI176>$K$21,0,BQ175+BP176+BS175) -> 29372.82119 | BR176: 12.23867549 | BT176: =IF(AI176>$K$21,0,BT175) -> 21446.42264 | BU176: 8.936009433
B177: 146 | C177: 1191.83 | H177: 146 | I177: 1023 | U177: 170 | V177: 170 | W177: 1191.83 | Y177: -1191.83 | AC177: 1023 | AE177: -1023 | AI177: 170 | AJ177: 1191.83 | AK177: =AK176+AJ177 -> 310658.9373 | AL177: 129.4412239 | AN177: 21446.42264 | AO177: 8.936009433 | AR177: 1191.83 | AS177: =IF(AI177>$K$21,0,AS176+AR177) -> 307688.6226 | AT177: 128.2035928 | AV177: 21446.42264 | AW177: 8.936009433 | AZ177: 1023 | BA177: 281117.2861 | BB177: 117.1322026 | BD177: 0 | BE177: 0 | BH177: 0 | BI177: 2970.314668 | BJ177: 1.237631111 | BL177: 0 | BM177: 0 | BP177: 168.83 | BQ177: 29541.65119 | BR177: 12.30902133 | BT177: 21446.42264 | BU177: 8.936009433
B178: 147 | C178: 1191.83 | H178: 147 | I178: 1023 | U178: 171 | V178: 171 | W178: 1191.83 | Y178: -1191.83 | AC178: 1023 | AE178: -1023 | AI178: 171 | AJ178: 1191.83 | AK178: 311850.7673 | AL178: 129.9378197 | AN178: 21446.42264 | AO178: 8.936009433 | AR178: 1191.83 | AS178: 308880.4526 | AT178: 128.7001886 | AV178: 21446.42264 | AW178: 8.936009433 | AZ178: 1023 | BA178: 282140.2861 | BB178: 117.5584526 | BD178: 0 | BE178: 0 | BH178: 0 | BI178: 2970.314668 | BJ178: 1.237631111 | BL178: 0 | BM178: 0 | BP178: 168.83 | BQ178: 29710.48119 | BR178: 12.37936716 | BT178: 21446.42264 | BU178: 8.936009433
B179: 148 | C179: 1191.83 | H179: 148 | I179: 1023 | U179: 172 | V179: 172 | W179: 1191.83 | Y179: -1191.83 | AC179: 1023 | AE179: -1023 | AI179: 172 | AJ179: 1191.83 | AK179: 313042.5973 | AL179: 130.4344155 | AN179: 21446.42264 | AO179: 8.936009433 | AR179: 1191.83 | AS179: 310072.2826 | AT179: 129.1967844 | AV179: 21446.42264 | AW179: 8.936009433 | AZ179: 1023 | BA179: 283163.2861 | BB179: 117.9847026 | BD179: 0 | BE179: 0 | BH179: 0 | BI179: 2970.314668 | BJ179: 1.237631111 | BL179: 0 | BM179: 0 | BP179: 168.83 | BQ179: 29879.31119 | BR179: 12.44971299 | BT179: 21446.42264 | BU179: 8.936009433
B180: 149 | C180: 1191.83 | H180: 149 | I180: 1023 | U180: 173 | V180: 173 | W180: 1191.83 | Y180: -1191.83 | AC180: 1023 | AE180: -1023 | AI180: 173 | AJ180: 1191.83 | AK180: 314234.4273 | AL180: 130.9310114 | AN180: 21446.42264 | AO180: 8.936009433 | AR180: 1191.83 | AS180: 311264.1126 | AT180: 129.6933803 | AV180: 21446.42264 | AW180: 8.936009433 | AZ180: 1023 | BA180: 284186.2861 | BB180: 118.4109526 | BD180: 0 | BE180: 0 | BH180: 0 | BI180: 2970.314668 | BJ180: 1.237631111 | BL180: 0 | BM180: 0 | BP180: 168.83 | BQ180: 30048.14119 | BR180: 12.52005883 | BT180: 21446.42264 | BU180: 8.936009433
B181: 150 | C181: 1191.83 | H181: 150 | I181: 1023 | U181: 174 | V181: 174 | W181: 1191.83 | Y181: -1191.83 | AC181: 1023 | AE181: -1023 | AI181: 174 | AJ181: 1191.83 | AK181: 315426.2573 | AL181: 131.4276072 | AN181: 21446.42264 | AO181: 8.936009433 | AR181: 1191.83 | AS181: 312455.9426 | AT181: 130.1899761 | AV181: 21446.42264 | AW181: 8.936009433 | AZ181: 1023 | BA181: 285209.2861 | BB181: 118.8372026 | BD181: 0 | BE181: 0 | BH181: 0 | BI181: 2970.314668 | BJ181: 1.237631111 | BL181: 0 | BM181: 0 | BP181: 168.83 | BQ181: 30216.97119 | BR181: 12.59040466 | BT181: 21446.42264 | BU181: 8.936009433
B182: 151 | C182: 1191.83 | H182: 151 | I182: 1023 | U182: 175 | V182: 175 | W182: 1191.83 | Y182: -1191.83 | AC182: 1023 | AE182: -1023 | AI182: 175 | AJ182: 1191.83 | AK182: 316618.0873 | AL182: 131.924203 | AN182: 21446.42264 | AO182: 8.936009433 | AR182: 1191.83 | AS182: 313647.7726 | AT182: 130.6865719 | AV182: 21446.42264 | AW182: 8.936009433 | AZ182: 1023 | BA182: 286232.2861 | BB182: 119.2634526 | BD182: 0 | BE182: 0 | BH182: 0 | BI182: 2970.314668 | BJ182: 1.237631111 | BL182: 0 | BM182: 0 | BP182: 168.83 | BQ182: 30385.80119 | BR182: 12.66075049 | BT182: 21446.42264 | BU182: 8.936009433
B183: 152 | C183: 1191.83 | H183: 152 | I183: 1023 | U183: 176 | V183: 176 | W183: 1191.83 | Y183: -1191.83 | AC183: 1023 | AE183: -1023 | AI183: 176 | AJ183: 1191.83 | AK183: 317809.9173 | AL183: 132.4207989 | AN183: 21446.42264 | AO183: 8.936009433 | AR183: 1191.83 | AS183: 314839.6026 | AT183: 131.1831678 | AV183: 21446.42264 | AW183: 8.936009433 | AZ183: 1023 | BA183: 287255.2861 | BB183: 119.6897026 | BD183: 0 | BE183: 0 | BH183: 0 | BI183: 2970.314668 | BJ183: 1.237631111 | BL183: 0 | BM183: 0 | BP183: 168.83 | BQ183: 30554.63119 | BR183: 12.73109633 | BT183: 21446.42264 | BU183: 8.936009433
B184: 153 | C184: 1191.83 | H184: 153 | I184: 1023 | U184: 177 | V184: 177 | W184: 1191.83 | Y184: -1191.83 | AC184: 1023 | AE184: -1023 | AI184: 177 | AJ184: 1191.83 | AK184: 319001.7473 | AL184: 132.9173947 | AN184: 21446.42264 | AO184: 8.936009433 | AR184: 1191.83 | AS184: 316031.4326 | AT184: 131.6797636 | AV184: 21446.42264 | AW184: 8.936009433 | AZ184: 1023 | BA184: 288278.2861 | BB184: 120.1159526 | BD184: 0 | BE184: 0 | BH184: 0 | BI184: 2970.314668 | BJ184: 1.237631111 | BL184: 0 | BM184: 0 | BP184: 168.83 | BQ184: 30723.46119 | BR184: 12.80144216 | BT184: 21446.42264 | BU184: 8.936009433
B185: 154 | C185: 1191.83 | H185: 154 | I185: 1023 | M185: =IF(AND($J$9>0,H185=($J$24+1),I185>=J184),"ERREUR ECHEANCE",IF(AND($J$9>0,H185=$J$24),"Échéance Prêt relais","")) ->  | N185: =IF(OR(H185=$I$24+1,H185=$J$24+1),"Renseigner de nouveau l'échéance totale des prêts amortissables toutes assurances comprises",IF(OR(K185<>"",M185<>""),"Échéance à saisir = celle du prêt amortissable avec ADI + capital prêt relais + intérêts concernés","")) ->  | U185: 178 | V185: 178 | W185: 1191.83 | Y185: -1191.83 | AC185: 1023 | AE185: -1023 | AI185: 178 | AJ185: 1191.83 | AK185: 320193.5773 | AL185: 133.4139905 | AN185: 21446.42264 | AO185: 8.936009433 | AR185: 1191.83 | AS185: 317223.2626 | AT185: 132.1763594 | AV185: 21446.42264 | AW185: 8.936009433 | AZ185: 1023 | BA185: 289301.2861 | BB185: 120.5422026 | BD185: 0 | BE185: 0 | BH185: 0 | BI185: 2970.314668 | BJ185: 1.237631111 | BL185: 0 | BM185: 0 | BP185: 168.83 | BQ185: 30892.29119 | BR185: 12.87178799 | BT185: 21446.42264 | BU185: 8.936009433
B186: 155 | C186: 1191.83 | H186: 155 | I186: 1023 | K186: =IF(AND($I$9>0,B186=($I$24+1),C186>=D185),"ERREUR ECHEANCE",IF(AND($I$9>0,H186=$I$24),"Échéance Prêt relais","")) ->  | U186: 179 | V186: 179 | W186: 1191.83 | Y186: -1191.83 | AC186: 1023 | AE186: -1023 | AI186: 179 | AJ186: 1191.83 | AK186: 321385.4073 | AL186: 133.9105864 | AN186: 21446.42264 | AO186: 8.936009433 | AR186: 1191.83 | AS186: 318415.0926 | AT186: 132.6729553 | AV186: 21446.42264 | AW186: 8.936009433 | AZ186: 1023 | BA186: 290324.2861 | BB186: 120.9684526 | BD186: 0 | BE186: 0 | BH186: 0 | BI186: 2970.314668 | BJ186: 1.237631111 | BL186: 0 | BM186: 0 | BP186: 168.83 | BQ186: 31061.12119 | BR186: 12.94213383 | BT186: 21446.42264 | BU186: 8.936009433
B187: 156 | C187: 1191.83 | H187: 156 | I187: 1023 | U187: 180 | V187: 180 | W187: 1191.21 | Y187: -1191.21 | AC187: 1023 | AE187: -1023 | AI187: 180 | AJ187: 1191.21 | AK187: =IF(AI187>$K$21,0,AK186+AJ187) -> 322576.6173 | AL187: 134.4069239 | AM187: =SUM(AL176:AL187) -> 1580.110603 | AN187: =IF(AI187>$K$21,0,AN186+AP187) -> 21553.65475 | AO187: 8.936009433 | AP187: =SUM(AO176:AO187) -> 107.2321132 | AR187: 1191.21 | AS187: =IF(AI187>$K$21,0,AS186+AR187) -> 319606.3026 | AT187: 133.1692928 | AU187: =SUM(AT176:AT187) -> 1565.25903 | AV187: =IF(AI187>$K$21,0,AV186+AX187) -> 21553.65475 | AW187: 8.936009433 | AX187: =SUM(AW176:AW187) -> 107.2321132 | AZ187: 1023 | BA187: 291347.2861 | BB187: 121.3947026 | BC187: =SUM(BB176:BB187) -> 1428.603931 | BD187: =IF(AI187>$K$21,0,BD186+BF187) -> 0 | BE187: 0 | BF187: =SUM(BE176:BE187) -> 0 | BH187: 0 | BI187: 2970.314668 | BJ187: 1.237631111 | BK187: =SUM(BJ176:BJ187) -> 14.85157334 | BL187: =IF(AI187>$K$21,0,BL186+BN187) -> 0 | BM187: 0 | BN187: =SUM(BM176:BM187) -> 0 | BP187: 168.21 | BQ187: 31229.33119 | BR187: 13.01222133 | BS187: =SUM(BR176:BR187) -> 151.5066726 | BT187: =IF(AI187>$K$21,0,BT186+BV187) -> 21553.65475 | BU187: 8.936009433 | BV187: =SUM(BU176:BU187) -> 107.2321132
B188: 157 | C188: 1191.83 | H188: 157 | I188: 1023 | U188: 181 | V188: 181 | W188: 0 | Y188: 0 | AC188: 1023 | AE188: -1023 | AI188: 181 | AJ188: 1023 | AK188: =IF(AI188>$K$21,0,AK187+AJ188+AM187) -> 325179.7279 | AL188: 135.4915533 | AN188: 21553.65475 | AO188: 8.98068948 | AR188: 0 | AS188: =IF(AI188>$K$21,0,AS187+AR188+AU187) -> 321171.5617 | AT188: 133.821484 | AV188: =IF(AI188>$K$21,0,AV187) -> 21553.65475 | AW188: 8.98068948 | AZ188: 1023 | BA188: =IF(AI188>$K$21,0,BA187+AZ188+BC187) -> 293798.8901 | BB188: 122.4162042 | BD188: =IF(AI188>$K$21,0,BD187) -> 0 | BE188: 0 | BH188: 1023 | BI188: =IF(AI188>$K$21,0,BI187+BH188+BK187) -> 4008.166241 | BJ188: 1.670069267 | BL188: =IF(AI188>$K$21,0,BL187) -> 0 | BM188: 0 | BP188: 0 | BQ188: =IF(AI188>$K$21,0,BQ187+BP188+BS187) -> 31380.83786 | BR188: 13.07534911 | BT188: =IF(AI188>$K$21,0,BT187) -> 21553.65475 | BU188: 8.98068948
B189: 158 | C189: 1191.83 | H189: 158 | I189: 1023 | U189: 182 | V189: 182 | W189: 0 | Y189: 0 | AC189: 1023 | AE189: -1023 | AI189: 182 | AJ189: 1023 | AK189: =AK188+AJ189 -> 326202.7279 | AL189: 135.9178033 | AN189: 21553.65475 | AO189: 8.98068948 | AR189: 0 | AS189: =IF(AI189>$K$21,0,AS188+AR189) -> 321171.5617 | AT189: 133.821484 | AV189: 21553.65475 | AW189: 8.98068948 | AZ189: 1023 | BA189: 294821.8901 | BB189: 122.8424542 | BD189: 0 | BE189: 0 | BH189: 1023 | BI189: 5031.166241 | BJ189: 2.096319267 | BL189: 0 | BM189: 0 | BP189: 0 | BQ189: 31380.83786 | BR189: 13.07534911 | BT189: 21553.65475 | BU189: 8.98068948
B190: 159 | C190: 1191.83 | H190: 159 | I190: 1023 | U190: 183 | V190: 183 | W190: 0 | Y190: 0 | AC190: 1023 | AE190: -1023 | AI190: 183 | AJ190: 1023 | AK190: 327225.7279 | AL190: 136.3440533 | AN190: 21553.65475 | AO190: 8.98068948 | AR190: 0 | AS190: 321171.5617 | AT190: 133.821484 | AV190: 21553.65475 | AW190: 8.98068948 | AZ190: 1023 | BA190: 295844.8901 | BB190: 123.2687042 | BD190: 0 | BE190: 0 | BH190: 1023 | BI190: 6054.166241 | BJ190: 2.522569267 | BL190: 0 | BM190: 0 | BP190: 0 | BQ190: 31380.83786 | BR190: 13.07534911 | BT190: 21553.65475 | BU190: 8.98068948
B191: 160 | C191: 1191.83 | H191: 160 | I191: 1023 | U191: 184 | V191: 184 | W191: 0 | Y191: 0 | AC191: 1023 | AE191: -1023 | AI191: 184 | AJ191: 1023 | AK191: 328248.7279 | AL191: 136.7703033 | AN191: 21553.65475 | AO191: 8.98068948 | AR191: 0 | AS191: 321171.5617 | AT191: 133.821484 | AV191: 21553.65475 | AW191: 8.98068948 | AZ191: 1023 | BA191: 296867.8901 | BB191: 123.6949542 | BD191: 0 | BE191: 0 | BH191: 1023 | BI191: 7077.166241 | BJ191: 2.948819267 | BL191: 0 | BM191: 0 | BP191: 0 | BQ191: 31380.83786 | BR191: 13.07534911 | BT191: 21553.65475 | BU191: 8.98068948
B192: 161 | C192: 1191.83 | H192: 161 | I192: 1023 | U192: 185 | V192: 185 | W192: 0 | Y192: 0 | AC192: 1023 | AE192: -1023 | AI192: 185 | AJ192: 1023 | AK192: 329271.7279 | AL192: 137.1965533 | AN192: 21553.65475 | AO192: 8.98068948 | AR192: 0 | AS192: 321171.5617 | AT192: 133.821484 | AV192: 21553.65475 | AW192: 8.98068948 | AZ192: 1023 | BA192: 297890.8901 | BB192: 124.1212042 | BD192: 0 | BE192: 0 | BH192: 1023 | BI192: 8100.166241 | BJ192: 3.375069267 | BL192: 0 | BM192: 0 | BP192: 0 | BQ192: 31380.83786 | BR192: 13.07534911 | BT192: 21553.65475 | BU192: 8.98068948
B193: 162 | C193: 1191.83 | H193: 162 | I193: 1023 | U193: 186 | V193: 186 | W193: 0 | Y193: 0 | AC193: 1023 | AE193: -1023 | AI193: 186 | AJ193: 1023 | AK193: 330294.7279 | AL193: 137.6228033 | AN193: 21553.65475 | AO193: 8.98068948 | AR193: 0 | AS193: 321171.5617 | AT193: 133.821484 | AV193: 21553.65475 | AW193: 8.98068948 | AZ193: 1023 | BA193: 298913.8901 | BB193: 124.5474542 | BD193: 0 | BE193: 0 | BH193: 1023 | BI193: 9123.166241 | BJ193: 3.801319267 | BL193: 0 | BM193: 0 | BP193: 0 | BQ193: 31380.83786 | BR193: 13.07534911 | BT193: 21553.65475 | BU193: 8.98068948
B194: 163 | C194: 1191.83 | H194: 163 | I194: 1023 | U194: 187 | V194: 187 | W194: 0 | Y194: 0 | AC194: 1023 | AE194: -1023 | AI194: 187 | AJ194: 1023 | AK194: 331317.7279 | AL194: 138.0490533 | AN194: 21553.65475 | AO194: 8.98068948 | AR194: 0 | AS194: 321171.5617 | AT194: 133.821484 | AV194: 21553.65475 | AW194: 8.98068948 | AZ194: 1023 | BA194: 299936.8901 | BB194: 124.9737042 | BD194: 0 | BE194: 0 | BH194: 1023 | BI194: 10146.16624 | BJ194: 4.227569267 | BL194: 0 | BM194: 0 | BP194: 0 | BQ194: 31380.83786 | BR194: 13.07534911 | BT194: 21553.65475 | BU194: 8.98068948
B195: 164 | C195: 1191.83 | H195: 164 | I195: 1023 | U195: 188 | V195: 188 | W195: 0 | Y195: 0 | AC195: 1023 | AE195: -1023 | AI195: 188 | AJ195: 1023 | AK195: 332340.7279 | AL195: 138.4753033 | AN195: 21553.65475 | AO195: =IF(AI195>$K$21,0,AN194*$E$20/12) -> 8.98068948 | AR195: 0 | AS195: 321171.5617 | AT195: 133.821484 | AV195: 21553.65475 | AW195: 8.98068948 | AZ195: 1023 | BA195: 300959.8901 | BB195: 125.3999542 | BD195: 0 | BE195: 0 | BH195: 1023 | BI195: 11169.16624 | BJ195: 4.653819267 | BL195: 0 | BM195: 0 | BP195: 0 | BQ195: 31380.83786 | BR195: 13.07534911 | BT195: 21553.65475 | BU195: 8.98068948
B196: 165 | C196: 1191.83 | H196: 165 | I196: 1023 | U196: 189 | V196: 189 | W196: 0 | Y196: 0 | AC196: 1023 | AE196: -1023 | AI196: 189 | AJ196: 1023 | AK196: 333363.7279 | AL196: 138.9015533 | AN196: 21553.65475 | AO196: 8.98068948 | AR196: 0 | AS196: 321171.5617 | AT196: 133.821484 | AV196: 21553.65475 | AW196: 8.98068948 | AZ196: 1023 | BA196: 301982.8901 | BB196: 125.8262042 | BD196: 0 | BE196: 0 | BH196: 1023 | BI196: 12192.16624 | BJ196: 5.080069267 | BL196: 0 | BM196: 0 | BP196: 0 | BQ196: 31380.83786 | BR196: 13.07534911 | BT196: 21553.65475 | BU196: 8.98068948
B197: 166 | C197: 1191.83 | H197: 166 | I197: 1023 | U197: 190 | V197: 190 | W197: 0 | Y197: 0 | AC197: 1023 | AE197: -1023 | AI197: 190 | AJ197: 1023 | AK197: 334386.7279 | AL197: 139.3278033 | AN197: 21553.65475 | AO197: 8.98068948 | AR197: 0 | AS197: 321171.5617 | AT197: 133.821484 | AV197: 21553.65475 | AW197: 8.98068948 | AZ197: 1023 | BA197: 303005.8901 | BB197: 126.2524542 | BD197: 0 | BE197: 0 | BH197: 1023 | BI197: 13215.16624 | BJ197: 5.506319267 | BL197: 0 | BM197: 0 | BP197: 0 | BQ197: 31380.83786 | BR197: 13.07534911 | BT197: 21553.65475 | BU197: 8.98068948
B198: 167 | C198: 1191.83 | H198: 167 | I198: 1023 | U198: 191 | V198: 191 | W198: 0 | Y198: 0 | AC198: 1023 | AE198: -1023 | AI198: 191 | AJ198: 1023 | AK198: 335409.7279 | AL198: 139.7540533 | AN198: 21553.65475 | AO198: 8.98068948 | AR198: 0 | AS198: 321171.5617 | AT198: 133.821484 | AV198: 21553.65475 | AW198: 8.98068948 | AZ198: 1023 | BA198: 304028.8901 | BB198: 126.6787042 | BD198: 0 | BE198: 0 | BH198: 1023 | BI198: 14238.16624 | BJ198: 5.932569267 | BL198: 0 | BM198: 0 | BP198: 0 | BQ198: 31380.83786 | BR198: 13.07534911 | BT198: 21553.65475 | BU198: 8.98068948
B199: 168 | C199: 1191.83 | H199: 168 | I199: 1023 | U199: 192 | V199: 192 | W199: 0 | Y199: 0 | AC199: 1023 | AE199: -1023 | AI199: 192 | AJ199: 1023 | AK199: =IF(AI199>$K$21,0,AK198+AJ199) -> 336432.7279 | AL199: 140.1803033 | AM199: =SUM(AL188:AL199) -> 1654.03114 | AN199: =IF(AI199>$K$21,0,AN198+AP199) -> 21661.42303 | AO199: 8.98068948 | AP199: =SUM(AO188:AO199) -> 107.7682738 | AR199: 0 | AS199: =IF(AI199>$K$21,0,AS198+AR199) -> 321171.5617 | AT199: 133.821484 | AU199: =SUM(AT188:AT199) -> 1605.857808 | AV199: =IF(AI199>$K$21,0,AV198+AX199) -> 21661.42303 | AW199: 8.98068948 | AX199: =SUM(AW188:AW199) -> 107.7682738 | AZ199: 1023 | BA199: 305051.8901 | BB199: 127.1049542 | BC199: =SUM(BB188:BB199) -> 1497.12695 | BD199: =IF(AI199>$K$21,0,BD198+BF199) -> 0 | BE199: 0 | BF199: =SUM(BE188:BE199) -> 0 | BH199: 1023 | BI199: 15261.16624 | BJ199: 6.358819267 | BK199: =SUM(BJ188:BJ199) -> 48.1733312 | BL199: =IF(AI199>$K$21,0,BL198+BN199) -> 0 | BM199: 0 | BN199: =SUM(BM188:BM199) -> 0 | BP199: 0 | BQ199: 31380.83786 | BR199: 13.07534911 | BS199: =SUM(BR188:BR199) -> 156.9041893 | BT199: =IF(AI199>$K$21,0,BT198+BV199) -> 21661.42303 | BU199: 8.98068948 | BV199: =SUM(BU188:BU199) -> 107.7682738
B200: 169 | C200: 1191.83 | H200: 169 | I200: 1023 | U200: 193 | V200: 193 | W200: =C224 -> 0 | Y200: =-W200 -> 0 | AC200: =I224 -> 1023 | AE200: =-AC200 -> -1023 | AI200: 193 | AJ200: 1023 | AK200: =IF(AI200>$K$21,0,AK199+AJ200+AM199) -> 339109.7591 | AL200: =AK200*$E$20/12 -> 141.2957329 | AN200: 21661.42303 | AO200: 9.025592927 | AR200: =W200 -> 0 | AS200: =IF(AI200>$K$21,0,AS199+AR200+AU199) -> 322777.4195 | AT200: =AS200*$E$20/12 -> 134.4905915 | AV200: =IF(AI200>$K$21,0,AV199) -> 21661.42303 | AW200: 9.025592927 | AZ200: =AC200 -> 1023 | BA200: =IF(AI200>$K$21,0,BA199+AZ200+BC199) -> 307572.017 | BB200: =BA200*$E$20/12 -> 128.1550071 | BD200: =IF(AI200>$K$21,0,BD199) -> 0 | BE200: 0 | BH200: =AJ200-W200 -> 1023 | BI200: =IF(AI200>$K$21,0,BI199+BH200+BK199) -> 16332.33957 | BJ200: =BI200*$E$20/12 -> 6.805141488 | BL200: =IF(AI200>$K$21,0,BL199) -> 0 | BM200: 0 | BP200: =AJ200-AC200 -> 0 | BQ200: =IF(AI200>$K$21,0,BQ199+BP200+BS199) -> 31537.74205 | BR200: =BQ200*$E$20/12 -> 13.14072585 | BT200: =IF(AI200>$K$21,0,BT199) -> 21661.42303 | BU200: 9.025592927
B201: 170 | C201: 1191.83 | H201: 170 | I201: 1023 | U201: 194 | V201: 194 | W201: 0 | Y201: 0 | AC201: 1023 | AE201: -1023 | AI201: 194 | AJ201: =IF(AI201>$K$21,0,IF(AC201>W201,AC201,W201)) -> 1023 | AK201: =AK200+AJ201 -> 340132.7591 | AL201: 141.7219829 | AN201: =IF(AI201>$K$21,0,AN200) -> 21661.42303 | AO201: 9.025592927 | AR201: 0 | AS201: =IF(AI201>$K$21,0,AS200+AR201) -> 322777.4195 | AT201: 134.4905915 | AV201: 21661.42303 | AW201: 9.025592927 | AZ201: 1023 | BA201: 308595.017 | BB201: 128.5812571 | BD201: 0 | BE201: 0 | BH201: 1023 | BI201: 17355.33957 | BJ201: 7.231391488 | BL201: 0 | BM201: 0 | BP201: 0 | BQ201: 31537.74205 | BR201: 13.14072585 | BT201: 21661.42303 | BU201: =IF(AI201>$K$21,0,BT200*$E$20/12) -> 9.025592927
B202: 171 | C202: 1191.83 | H202: 171 | I202: 1023 | U202: 195 | V202: 195 | W202: 0 | Y202: 0 | AC202: 1023 | AE202: -1023 | AI202: 195 | AJ202: 1023 | AK202: 341155.7591 | AL202: 142.1482329 | AN202: 21661.42303 | AO202: 9.025592927 | AR202: 0 | AS202: 322777.4195 | AT202: 134.4905915 | AV202: 21661.42303 | AW202: 9.025592927 | AZ202: 1023 | BA202: 309618.017 | BB202: 129.0075071 | BD202: 0 | BE202: 0 | BH202: 1023 | BI202: 18378.33957 | BJ202: 7.657641488 | BL202: 0 | BM202: 0 | BP202: 0 | BQ202: 31537.74205 | BR202: 13.14072585 | BT202: 21661.42303 | BU202: 9.025592927
... 226 more rows

Sheet Feuil3
